Organisation Name,Organisation Code,Effective Date,Directorate Where Expenditure Occurred,Supplier Name,Payment Date,Transaction Number,Gross Amount,Purpose of Spend,Merchant Category,Card Transactions
WALSALL COUNCIL,http://opendatacommunities.org/id/metropolitan-district-council/walsall ,31/03/2024,RESOURCES AND TRANSFORMATION,CHICKEN JOES LTD,01/01/2024,H59620240103BNFJIGKIV-1,142.20,CATERING - SCHOOLS-FOOD & DRINK SUPPLIES,CATERERS,GPC
WALSALL COUNCIL,http://opendatacommunities.org/id/metropolitan-district-council/walsall ,31/03/2024,RESOURCES AND TRANSFORMATION,CHICKEN JOES LTD,01/01/2024,H59620240103CDZFVSPHP-1,232.98,CATERING - SCHOOLS-FOOD & DRINK SUPPLIES,CATERERS,GPC
WALSALL COUNCIL,http://opendatacommunities.org/id/metropolitan-district-council/walsall ,31/03/2024,ECONOMY & ENVIRONMENT,WETRANSFER,01/01/2024,H59620240103CRMQCKWKG-1,8.70,NAG - ART GALLERY MARKETING-SUBSCRIPTIONS,"COMPUTER PROGRAM, SYSTEM DESIGN",GPC
WALSALL COUNCIL,http://opendatacommunities.org/id/metropolitan-district-council/walsall ,31/03/2024,RESOURCES AND TRANSFORMATION,CHICKEN JOES LTD,01/01/2024,H59620240103EURPZCICF-1,633.66,CATERING - SCHOOLS-FOOD & DRINK SUPPLIES,CATERERS,GPC
WALSALL COUNCIL,http://opendatacommunities.org/id/metropolitan-district-council/walsall ,31/03/2024,RESOURCES AND TRANSFORMATION,CHICKEN JOES LTD,01/01/2024,H59620240103FRWSLIMVJ-1,158.60,CATERING - SCHOOLS-FOOD & DRINK SUPPLIES,CATERERS,GPC
WALSALL COUNCIL,http://opendatacommunities.org/id/metropolitan-district-council/walsall ,31/03/2024,RESOURCES AND TRANSFORMATION,CHICKEN JOES LTD,01/01/2024,H59620240103GMWDXBGEX-1,173.00,CATERING - SCHOOLS-FOOD & DRINK SUPPLIES,CATERERS,GPC
WALSALL COUNCIL,http://opendatacommunities.org/id/metropolitan-district-council/walsall ,31/03/2024,CHILDRENS SERVICES,TESCO STORES 5783,01/01/2024,H59620240103JNZZVMLPU-1,18.07,FAMILY SAFEGUARDING CENTRAL AN-FOOD & DRINK SUPPLIES,GROCERY STORES AND SUPERMARKETS,GPC
WALSALL COUNCIL,http://opendatacommunities.org/id/metropolitan-district-council/walsall ,31/03/2024,RESOURCES AND TRANSFORMATION,CHICKEN JOES LTD,01/01/2024,H59620240103LORVHCSUL-1,51.78,CATERING - SCHOOLS-FOOD & DRINK SUPPLIES,CATERERS,GPC
WALSALL COUNCIL,http://opendatacommunities.org/id/metropolitan-district-council/walsall ,31/03/2024,RESOURCES AND TRANSFORMATION,CHICKEN JOES LTD,01/01/2024,H59620240103MJLINDZDJ-1,164.03,CATERING - SCHOOLS-FOOD & DRINK SUPPLIES,CATERERS,GPC
WALSALL COUNCIL,http://opendatacommunities.org/id/metropolitan-district-council/walsall ,31/03/2024,RESOURCES AND TRANSFORMATION,CHICKEN JOES LTD,01/01/2024,H59620240103NGPIEJTRM-1,107.80,CATERING - SCHOOLS-FOOD & DRINK SUPPLIES,CATERERS,GPC
WALSALL COUNCIL,http://opendatacommunities.org/id/metropolitan-district-council/walsall ,31/03/2024,CHILDRENS SERVICES,ADOBE ACROPRO SUBS,01/01/2024,H59620240103OGCMKAMTM-1,16.64,ADMINISTRATIVE SUPPLIES-MATERIALS,COMPUTER SOFTWARE STORES,GPC
WALSALL COUNCIL,http://opendatacommunities.org/id/metropolitan-district-council/walsall ,31/03/2024,RESOURCES AND TRANSFORMATION,CHICKEN JOES LTD,01/01/2024,H59620240103OXJGPBAZI-1,173.39,CATERING - SCHOOLS-FOOD & DRINK SUPPLIES,CATERERS,GPC
WALSALL COUNCIL,http://opendatacommunities.org/id/metropolitan-district-council/walsall ,31/03/2024,CHILDRENS SERVICES,LEBARA MOBILE LIMITED,01/01/2024,H59620240103PPYJOIFUK-1,6.90,ADMINISTRATIVE SUPPLIES-STATIONERY & GENERAL OFFICE SU,TELECOMMUNICATION SERVICES,GPC
WALSALL COUNCIL,http://opendatacommunities.org/id/metropolitan-district-council/walsall ,31/03/2024,RESOURCES AND TRANSFORMATION,CHICKEN JOES LTD,01/01/2024,H59620240103PWCZRTLED-1,152.70,CATERING - SCHOOLS-FOOD & DRINK SUPPLIES,CATERERS,GPC
WALSALL COUNCIL,http://opendatacommunities.org/id/metropolitan-district-council/walsall ,31/03/2024,RESOURCES AND TRANSFORMATION,CHICKEN JOES LTD,01/01/2024,H59620240103QOKQQNAIG-1,94.49,CATERING - SCHOOLS-FOOD & DRINK SUPPLIES,CATERERS,GPC
WALSALL COUNCIL,http://opendatacommunities.org/id/metropolitan-district-council/walsall ,31/03/2024,RESOURCES AND TRANSFORMATION,CHICKEN JOES LTD,01/01/2024,H59620240103QVHUSYJYF-1,55.23,CATERING - SCHOOLS-FOOD & DRINK SUPPLIES,CATERERS,GPC
WALSALL COUNCIL,http://opendatacommunities.org/id/metropolitan-district-council/walsall ,31/03/2024,RESOURCES AND TRANSFORMATION,CHICKEN JOES LTD,01/01/2024,H59620240103QYSKGGNHK-1,187.80,CATERING - SCHOOLS-FOOD & DRINK SUPPLIES,CATERERS,GPC
WALSALL COUNCIL,http://opendatacommunities.org/id/metropolitan-district-council/walsall ,31/03/2024,RESOURCES AND TRANSFORMATION,BLAKEMORE FOODSERVICE,01/01/2024,H59620240103REXVRBQEQ-1,-19.82,CATERING - SCHOOLS-FOOD & DRINK SUPPLIES,CATERERS,GPC
WALSALL COUNCIL,http://opendatacommunities.org/id/metropolitan-district-council/walsall ,31/03/2024,RESOURCES AND TRANSFORMATION,CHICKEN JOES LTD,01/01/2024,H59620240103SEVACXSGE-1,83.46,CATERING - SCHOOLS-FOOD & DRINK SUPPLIES,CATERERS,GPC
WALSALL COUNCIL,http://opendatacommunities.org/id/metropolitan-district-council/walsall ,31/03/2024,RESOURCES AND TRANSFORMATION,INDEED 87540554,01/01/2024,H59620240103TCUYOMXZQ-1,81.33,HR STRATEGY-ADVERTISING STAFF VACANCIES,"EMPLOYMENT AGENCIES, TEMPORARY HELP SERVICES",GPC
WALSALL COUNCIL,http://opendatacommunities.org/id/metropolitan-district-council/walsall ,31/03/2024,RESOURCES AND TRANSFORMATION,SAINSBURYS S/MKT,01/01/2024,H59620240103TKEVQGNZX-1,5.65,CATERING - MANAGEMENT-FOOD & DRINK SUPPLIES,GROCERY STORES AND SUPERMARKETS,GPC
WALSALL COUNCIL,http://opendatacommunities.org/id/metropolitan-district-council/walsall ,31/03/2024,RESOURCES AND TRANSFORMATION,CHICKEN JOES LTD,01/01/2024,H59620240103UFVFLRFIV-1,261.80,CATERING - SCHOOLS-FOOD & DRINK SUPPLIES,CATERERS,GPC
WALSALL COUNCIL,http://opendatacommunities.org/id/metropolitan-district-council/walsall ,31/03/2024,RESOURCES AND TRANSFORMATION,CHICKEN JOES LTD,01/01/2024,H59620240103UFVFLRFIV-2,82.51,CATERING - MANAGEMENT-FOOD & DRINK SUPPLIES,CATERERS,GPC
WALSALL COUNCIL,http://opendatacommunities.org/id/metropolitan-district-council/walsall ,31/03/2024,RESOURCES AND TRANSFORMATION,CHICKEN JOES LTD,01/01/2024,H59620240103UUJPDFMXB-1,97.10,CATERING - SCHOOLS-FOOD & DRINK SUPPLIES,CATERERS,GPC
WALSALL COUNCIL,http://opendatacommunities.org/id/metropolitan-district-council/walsall ,31/03/2024,RESOURCES AND TRANSFORMATION,CHICKEN JOES LTD,01/01/2024,H59620240103WHAKPSAYO-1,83.45,CATERING - SCHOOLS-FOOD & DRINK SUPPLIES,CATERERS,GPC
WALSALL COUNCIL,http://opendatacommunities.org/id/metropolitan-district-council/walsall ,31/03/2024,RESOURCES AND TRANSFORMATION,CHICKEN JOES LTD,01/01/2024,H59620240103XFFNRKBMY-1,140.53,CATERING - SCHOOLS-FOOD & DRINK SUPPLIES,CATERERS,GPC
WALSALL COUNCIL,http://opendatacommunities.org/id/metropolitan-district-council/walsall ,31/03/2024,RESOURCES AND TRANSFORMATION,CHICKEN JOES LTD,01/01/2024,H59620240103YYJQQAPXT-1,108.74,CATERING - SCHOOLS-FOOD & DRINK SUPPLIES,CATERERS,GPC
WALSALL COUNCIL,http://opendatacommunities.org/id/metropolitan-district-council/walsall ,31/03/2024,ECONOMY & ENVIRONMENT,RAJAPACK.CO.UK 00828124,01/01/2024,H59620240109RAWJSTVBF-1,111.35,TECHNICAL/ART HANDLING-MATERIALS,OFFICE AND COMMERCIAL FURNITURE,GPC
WALSALL COUNCIL,http://opendatacommunities.org/id/metropolitan-district-council/walsall ,31/03/2024,CHILDRENS SERVICES,ADOBE ACROPRO SUBS,02/01/2024,H59620240103GQJHTTYHN-1,19.97,ADMINISTRATIVE SUPPLIES-MATERIALS,COMPUTER SOFTWARE STORES,GPC
WALSALL COUNCIL,http://opendatacommunities.org/id/metropolitan-district-council/walsall ,31/03/2024,RESOURCES AND TRANSFORMATION,FOREIGN EXCHANGE FEE,02/01/2024,H59620240103RMUVHTWNF-1,3.07,RECHARGEABLE EQUIPMENT-COMPUTER EQUIPMENT,,GPC
WALSALL COUNCIL,http://opendatacommunities.org/id/metropolitan-district-council/walsall ,31/03/2024,ECONOMY & ENVIRONMENT,FOREIGN EXCHANGE FEE,02/01/2024,H59620240103YLEUKSBUP-1,0.24,NAG - ART GALLERY MARKETING-SUBSCRIPTIONS,,GPC
WALSALL COUNCIL,http://opendatacommunities.org/id/metropolitan-district-council/walsall ,31/03/2024,CHILDRENS SERVICES,TRAVELODGE GB0000,02/01/2024,H59620240104AIXYOKABR-1,311.03,BED & BREAKFAST PAYMENTS-BED & BREAKFAST PAYMENTS,TRAVELODGE,GPC
WALSALL COUNCIL,http://opendatacommunities.org/id/metropolitan-district-council/walsall ,31/03/2024,ECONOMY & ENVIRONMENT,TOOLSTATION LTD ALDRIDGE,02/01/2024,H59620240104AOTWJYKSX-1,13.96,DEPOT-MATERIALS,LUMBER & BUILDING MATERIALS STORES,GPC
WALSALL COUNCIL,http://opendatacommunities.org/id/metropolitan-district-council/walsall ,31/03/2024,RESOURCES AND TRANSFORMATION,AMZNMKTPLACE,02/01/2024,H59620240104AZUETZPOD-1,29.99,CORE SKILLS-STATIONERY & GENERAL OFFICE SU,MISCELLANEOUS AND SPECIALTY RETAIL STORES,GPC
WALSALL COUNCIL,http://opendatacommunities.org/id/metropolitan-district-council/walsall ,31/03/2024,RESOURCES AND TRANSFORMATION,ALDI 772 129,02/01/2024,H59620240104BJSXSIBZJ-1,7.98,CATERING - MANAGEMENT-FOOD & DRINK SUPPLIES,GROCERY STORES AND SUPERMARKETS,GPC
WALSALL COUNCIL,http://opendatacommunities.org/id/metropolitan-district-council/walsall ,31/03/2024,CHILDRENS SERVICES,JD SPORTS FASHION PLC,02/01/2024,H59620240104BMFKTDTAT-1,110.00,"43A HILTON ROAD, WILLENHALL-RESIDENTS PERSONAL EXPENSES-AL","SPORTS APPAREL, RIDING APPAREL STORES",GPC
WALSALL COUNCIL,http://opendatacommunities.org/id/metropolitan-district-council/walsall ,31/03/2024,CHILDRENS SERVICES,BARONS COURT HOTEL,02/01/2024,H59620240104DLOHYFIEJ-1,170.00,ROUGH SLEEPING INITIATIVE GRAN-BED & BREAKFAST PAYMENTS,"HOTELS, MOTELS, RESORTS",GPC
WALSALL COUNCIL,http://opendatacommunities.org/id/metropolitan-district-council/walsall ,31/03/2024,CHILDRENS SERVICES,HOME BARGAINS,02/01/2024,H59620240104DYAWBUGJE-1,35.28,REDRUTH ROAD-CLEANING MATERIALS,MISCELLANEOUS GENERAL MERCHANDISE,GPC
WALSALL COUNCIL,http://opendatacommunities.org/id/metropolitan-district-council/walsall ,31/03/2024,ECONOMY & ENVIRONMENT,WM MORRISONS STORE,02/01/2024,H59620240104EWKHJMENH-1,34.16,ARBORETUM-MATERIALS,GROCERY STORES AND SUPERMARKETS,GPC
WALSALL COUNCIL,http://opendatacommunities.org/id/metropolitan-district-council/walsall ,31/03/2024,ECONOMY & ENVIRONMENT,WM MORRISONS STORE,02/01/2024,H59620240104EWKHJMENH-2,21.93,ARBORETUM-MATERIALS,GROCERY STORES AND SUPERMARKETS,GPC
WALSALL COUNCIL,http://opendatacommunities.org/id/metropolitan-district-council/walsall ,31/03/2024,CHILDRENS SERVICES,POUNDLAND LTD - 1852,02/01/2024,H59620240104FGGWLFEDS-1,7.00,EDGE OF CARE TEAM-MATERIALS,DISCOUNT STORES,GPC
WALSALL COUNCIL,http://opendatacommunities.org/id/metropolitan-district-council/walsall ,31/03/2024,ECONOMY & ENVIRONMENT,SAINSBURYS S/MKTS,02/01/2024,H59620240104FIGECBHYJ-1,4.00,COMMUNITY LIAISON-FOOD & DRINK SUPPLIES,GROCERY STORES AND SUPERMARKETS,GPC
WALSALL COUNCIL,http://opendatacommunities.org/id/metropolitan-district-council/walsall ,31/03/2024,ECONOMY & ENVIRONMENT,SAINSBURYS S/MKTS,02/01/2024,H59620240104FIGECBHYJ-2,23.00,COMMUNITY LIAISON-FOOD & DRINK SUPPLIES,GROCERY STORES AND SUPERMARKETS,GPC
WALSALL COUNCIL,http://opendatacommunities.org/id/metropolitan-district-council/walsall ,31/03/2024,CHILDRENS SERVICES,AMAZON* 026-1364715-96,02/01/2024,H59620240104GJJUBZBPP-1,91.21,FAMILY SAFEGUARDING CENTRAL AN-STATIONERY & GENERAL OFFICE SU,MISCELLANEOUS GENERAL MERCHANDISE,GPC
WALSALL COUNCIL,http://opendatacommunities.org/id/metropolitan-district-council/walsall ,31/03/2024,ECONOMY & ENVIRONMENT,HIGH SPEED TRAINING,02/01/2024,H59620240104HPMOBUWGN-1,37.20,RESTART-EXAMINATIONS-SERVICES,OTHER SCHOOLS AND EDUCATIONAL SERVICES,GPC
WALSALL COUNCIL,http://opendatacommunities.org/id/metropolitan-district-council/walsall ,31/03/2024,ECONOMY & ENVIRONMENT,AMZNMKTPLACE,02/01/2024,H59620240104HRYTDQOLK-1,28.04,DARLASTON SWIMMING AND FITNESS-MATERIALS,MISCELLANEOUS AND SPECIALTY RETAIL STORES,GPC
WALSALL COUNCIL,http://opendatacommunities.org/id/metropolitan-district-council/walsall ,31/03/2024,ECONOMY & ENVIRONMENT,HIGH SPEED TRAINING,02/01/2024,H59620240104KCBDMWMZX-1,31.20,RESTART-EXAMINATIONS-SERVICES,OTHER SCHOOLS AND EDUCATIONAL SERVICES,GPC
WALSALL COUNCIL,http://opendatacommunities.org/id/metropolitan-district-council/walsall ,31/03/2024,RESOURCES AND TRANSFORMATION,ARTHUR BRETT CATER,02/01/2024,H59620240104NRGDFHCLO-1,42.03,TOWN HALL RESTAURANT BISTRO-FOOD & DRINK SUPPLIES,MISCELLANEOUS FOOD STORES & CONVENIENCE STORES,GPC
WALSALL COUNCIL,http://opendatacommunities.org/id/metropolitan-district-council/walsall ,31/03/2024,RESOURCES AND TRANSFORMATION,TESCO STORES 6161,02/01/2024,H59620240104OFRRRECXC-1,25.65,TOWN HALL RESTAURANT BISTRO-FOOD & DRINK SUPPLIES,GROCERY STORES AND SUPERMARKETS,GPC
WALSALL COUNCIL,http://opendatacommunities.org/id/metropolitan-district-council/walsall ,31/03/2024,RESOURCES AND TRANSFORMATION,123 REG LTD 013709818,02/01/2024,H59620240104OSFYHJVEF-1,28.78,ASSET MANAGEMENT-COMPUTER EQUIPMENT,COMPUTER NETWORK/INFORMATION SERVICES,GPC
WALSALL COUNCIL,http://opendatacommunities.org/id/metropolitan-district-council/walsall ,31/03/2024,RESOURCES AND TRANSFORMATION,AMZNMKTPLACE,02/01/2024,H59620240104OWPCUCSKX-1,38.45,CORE SKILLS-STATIONERY & GENERAL OFFICE SU,MISCELLANEOUS AND SPECIALTY RETAIL STORES,GPC
WALSALL COUNCIL,http://opendatacommunities.org/id/metropolitan-district-council/walsall ,31/03/2024,CHILDRENS SERVICES,WWW.ARGOS.CO.UK,02/01/2024,H59620240104POXMOVINM-1,72.50,CARE LEAVER ENTITLEMENTS-SETTING UP HOME GRANT,DEPARTMENT STORES,GPC
WALSALL COUNCIL,http://opendatacommunities.org/id/metropolitan-district-council/walsall ,31/03/2024,CHILDRENS SERVICES,BAKER ROSS,02/01/2024,H59620240104QHEYDKDTL-1,3.50,LOCALITY FAMILY SUPPORT-NORTH-MATERIALS,"ARTIST SUPPLY STORES, CRAFT SHOPS",GPC
WALSALL COUNCIL,http://opendatacommunities.org/id/metropolitan-district-council/walsall ,31/03/2024,CHILDRENS SERVICES,BAKER ROSS,02/01/2024,H59620240104QHEYDKDTL-2,175.60,LOCALITY FAMILY SUPPORT-NORTH-MATERIALS,"ARTIST SUPPLY STORES, CRAFT SHOPS",GPC
WALSALL COUNCIL,http://opendatacommunities.org/id/metropolitan-district-council/walsall ,31/03/2024,ADULT SOCIAL CARE,AMZNMKTPLACE,02/01/2024,H59620240104QLJYFKOBG-1,14.97,INTERMEDIATE CARE SERVICE-STATIONERY & GENERAL OFFICE SU,MISCELLANEOUS AND SPECIALTY RETAIL STORES,GPC
WALSALL COUNCIL,http://opendatacommunities.org/id/metropolitan-district-council/walsall ,31/03/2024,CHILDRENS SERVICES,AMAZON* 026-1364715-96,02/01/2024,H59620240104RALCDTBXS-1,91.22,FAMILY SAFEGUARDING CENTRAL AN-STATIONERY & GENERAL OFFICE SU,MISCELLANEOUS GENERAL MERCHANDISE,GPC
WALSALL COUNCIL,http://opendatacommunities.org/id/metropolitan-district-council/walsall ,31/03/2024,CHILDRENS SERVICES,NISA,02/01/2024,H59620240104RIFNVCVIS-1,9.47,PINE VIEW-FOOD & DRINK SUPPLIES,GROCERY STORES AND SUPERMARKETS,GPC
WALSALL COUNCIL,http://opendatacommunities.org/id/metropolitan-district-council/walsall ,31/03/2024,ADULT SOCIAL CARE,AMZNMKTPLACE,02/01/2024,H59620240104SCSUEOHNX-1,4.89,GOSCOTE-STATIONERY & GENERAL OFFICE SU,MISCELLANEOUS AND SPECIALTY RETAIL STORES,GPC
WALSALL COUNCIL,http://opendatacommunities.org/id/metropolitan-district-council/walsall ,31/03/2024,CHILDRENS SERVICES,AMZNMKTPLACE,02/01/2024,H59620240104SJJSQJUAG-1,24.20,REDRUTH ROAD-PURCHASE OF FURNITURE & EQUIPM,MISCELLANEOUS AND SPECIALTY RETAIL STORES,GPC
WALSALL COUNCIL,http://opendatacommunities.org/id/metropolitan-district-council/walsall ,31/03/2024,RESOURCES AND TRANSFORMATION,CHARTERED INSTITUTE OF LE,02/01/2024,H59620240104SQCBTYLSP-1,367.00,BUILT ENVIRONMENT TEAM-FEES & LICENCES,"SCHOOLS, BUSINESS AND SECRETARIAL",GPC
WALSALL COUNCIL,http://opendatacommunities.org/id/metropolitan-district-council/walsall ,31/03/2024,ECONOMY & ENVIRONMENT,A K HARDWARE,02/01/2024,H59620240104SZUEFWQHY-1,10.00,LEATHER MUSEUM-MATERIALS,HARDWARE STORES,GPC
WALSALL COUNCIL,http://opendatacommunities.org/id/metropolitan-district-council/walsall ,31/03/2024,CHILDRENS SERVICES,TRAVELODGE GB0000,02/01/2024,H59620240104TJJXBTKRF-1,58.12,FAMILY SAFEGUARDING CENTRAL AN-SECTION 1/17CHILD CARE ACT 198,TRAVELODGE,GPC
WALSALL COUNCIL,http://opendatacommunities.org/id/metropolitan-district-council/walsall ,31/03/2024,RESOURCES AND TRANSFORMATION,WWW.BANNERUK.COM,02/01/2024,H59620240104TMSSMQXOW-1,0.86,HR ADMIN HUB-STATIONERY & GENERAL OFFICE SU,"STATIONERY, OFFICE SUPPLIES AND WRITING PAPER",GPC
WALSALL COUNCIL,http://opendatacommunities.org/id/metropolitan-district-council/walsall ,31/03/2024,RESOURCES AND TRANSFORMATION,BLIZZARD SURVIVAL,02/01/2024,H59620240104UPWRWJIRP-1,103.80,CORE SKILLS-PROFESSIONAL FEES & SERVICES,"HEALTH PRACTITIONERS, MEDICAL SERVICES",GPC
WALSALL COUNCIL,http://opendatacommunities.org/id/metropolitan-district-council/walsall ,31/03/2024,ECONOMY & ENVIRONMENT,SCREWFIX DIR LTD,02/01/2024,H59620240104UUJJKCXUM-1,3.49,LEATHER MUSEUM-MATERIALS,LUMBER & BUILDING MATERIALS STORES,GPC
WALSALL COUNCIL,http://opendatacommunities.org/id/metropolitan-district-council/walsall ,31/03/2024,RESOURCES AND TRANSFORMATION,AMZNMKTPLACE,02/01/2024,H59620240104WBMVPEPDJ-1,10.75,CORE SKILLS-STATIONERY & GENERAL OFFICE SU,MISCELLANEOUS AND SPECIALTY RETAIL STORES,GPC
WALSALL COUNCIL,http://opendatacommunities.org/id/metropolitan-district-council/walsall ,31/03/2024,CHILDRENS SERVICES,BAKER ROSS,02/01/2024,H59620240104XEQHJVGPF-1,3.50,LOCALITY FAMILY SUPPORT-NORTH-MATERIALS,"ARTIST SUPPLY STORES, CRAFT SHOPS",GPC
WALSALL COUNCIL,http://opendatacommunities.org/id/metropolitan-district-council/walsall ,31/03/2024,CHILDRENS SERVICES,BAKER ROSS,02/01/2024,H59620240104XEQHJVGPF-2,27.70,LOCALITY FAMILY SUPPORT-NORTH-MATERIALS,"ARTIST SUPPLY STORES, CRAFT SHOPS",GPC
WALSALL COUNCIL,http://opendatacommunities.org/id/metropolitan-district-council/walsall ,31/03/2024,CHILDRENS SERVICES,WM MORRISONS STORE,02/01/2024,H59620240104XETRFYGOQ-1,47.80,EDGE OF CARE TEAM-FOOD & DRINK SUPPLIES,GROCERY STORES AND SUPERMARKETS,GPC
WALSALL COUNCIL,http://opendatacommunities.org/id/metropolitan-district-council/walsall ,31/03/2024,ECONOMY & ENVIRONMENT,PASSENGERLIFTSOLUTIONS,02/01/2024,H59620240104XXLEJIGGJ-1,146.23,FLEET-OTHER TRAVEL ALLOWANCES,OTHER TRANSPORTATION SERVICES,GPC
WALSALL COUNCIL,http://opendatacommunities.org/id/metropolitan-district-council/walsall ,31/03/2024,ECONOMY & ENVIRONMENT,ALDI 772 087,02/01/2024,H59620240104YWAWJBXGT-1,3.48,COMMUNITY LIAISON-FOOD & DRINK SUPPLIES,GROCERY STORES AND SUPERMARKETS,GPC
WALSALL COUNCIL,http://opendatacommunities.org/id/metropolitan-district-council/walsall ,31/03/2024,ECONOMY & ENVIRONMENT,ALDI 772 087,02/01/2024,H59620240104YWAWJBXGT-2,6.43,COMMUNITY LIAISON-FOOD & DRINK SUPPLIES,GROCERY STORES AND SUPERMARKETS,GPC
WALSALL COUNCIL,http://opendatacommunities.org/id/metropolitan-district-council/walsall ,31/03/2024,CHILDRENS SERVICES,WM MORRISONS STORE,02/01/2024,H59620240104ZJBWTKXIC-1,100.00,EDGE OF CARE TEAM-FOOD & DRINK SUPPLIES,GROCERY STORES AND SUPERMARKETS,GPC
WALSALL COUNCIL,http://opendatacommunities.org/id/metropolitan-district-council/walsall ,31/03/2024,RESOURCES AND TRANSFORMATION,123-REG,02/01/2024,H59620240105AIMWPMLHL-1,143.90,ASSET MANAGEMENT-COMPUTER EQUIPMENT,COMPUTER NETWORK/INFORMATION SERVICES,GPC
WALSALL COUNCIL,http://opendatacommunities.org/id/metropolitan-district-council/walsall ,31/03/2024,RESOURCES AND TRANSFORMATION,WWW.SCC.COM,02/01/2024,H59620240105HYAMPYDRY-1,324.86,RECHARGEABLE EQUIPMENT-COMPUTER EQUIPMENT,"COMPUTERS, COMPUTER PERIPHERAL EQUIPMENT, SOFTWARE",GPC
WALSALL COUNCIL,http://opendatacommunities.org/id/metropolitan-district-council/walsall ,31/03/2024,ADULT SOCIAL CARE,VILLAGE HOTEL WALSALL,02/01/2024,H59620240105SHPIOGEWG-1,416.00,MENTAL HEALTH TEAM-BED & BREAKFAST PAYMENTS,"HOTELS, MOTELS, RESORTS",GPC
WALSALL COUNCIL,http://opendatacommunities.org/id/metropolitan-district-council/walsall ,31/03/2024,CHILDRENS SERVICES,JD SPORTS FASHION PLC,02/01/2024,H59620240228DBUFJUFYV-1,-110.00,"43A HILTON ROAD, WILLENHALL-RESIDENTS PERSONAL EXPENSES-AL","SPORTS APPAREL, RIDING APPAREL STORES",GPC
WALSALL COUNCIL,http://opendatacommunities.org/id/metropolitan-district-council/walsall ,31/03/2024,CHILDRENS SERVICES,CO-OPERATIVE FOOD,03/01/2024,H59620240105BGHKKDFVB-1,1.95,REDRUTH ROAD-FOOD & DRINK SUPPLIES,GROCERY STORES AND SUPERMARKETS,GPC
WALSALL COUNCIL,http://opendatacommunities.org/id/metropolitan-district-council/walsall ,31/03/2024,ECONOMY & ENVIRONMENT,ALDI,03/01/2024,H59620240105BMMFPYQJR-1,12.43,ARBORETUM-FOOD & DRINK SUPPLIES,GROCERY STORES AND SUPERMARKETS,GPC
WALSALL COUNCIL,http://opendatacommunities.org/id/metropolitan-district-council/walsall ,31/03/2024,CHILDRENS SERVICES,WALSALL COUNCIL,03/01/2024,H59620240105BPWIVBWFV-1,17.00,ROUGH SLEEPING INITIATIVE GRAN-CRISIS SUPPORT PAYMENTS,GOVERNMENT SERVICES,GPC
WALSALL COUNCIL,http://opendatacommunities.org/id/metropolitan-district-council/walsall ,31/03/2024,CHILDRENS SERVICES,FARMFOODS 614,03/01/2024,H59620240105CEHJFNXPT-1,7.96,EDGE OF CARE TEAM-FOOD & DRINK SUPPLIES,GROCERY STORES AND SUPERMARKETS,GPC
WALSALL COUNCIL,http://opendatacommunities.org/id/metropolitan-district-council/walsall ,31/03/2024,ECONOMY & ENVIRONMENT,HOME BARGAINS,03/01/2024,H59620240105DYBCAXJEL-1,4.99,ALDRIDGE LIBRARY-PURCHASE OF FURNITURE & EQUIPM,MISCELLANEOUS GENERAL MERCHANDISE,GPC
WALSALL COUNCIL,http://opendatacommunities.org/id/metropolitan-district-council/walsall ,31/03/2024,CHILDRENS SERVICES,BARONS COURT HOTEL,03/01/2024,H59620240105FPJJMYKTA-1,425.00,YOUNG PERSONS HOMELESS SERVICE-BED & BREAKFAST PAYMENTS,"HOTELS, MOTELS, RESORTS",GPC
WALSALL COUNCIL,http://opendatacommunities.org/id/metropolitan-district-council/walsall ,31/03/2024,CHILDRENS SERVICES,WM MORRISONS STORE PICK,03/01/2024,H59620240105FYVXZGBLW-1,21.00,"43A HILTON ROAD, WILLENHALL-FOOD & DRINK SUPPLIES",GROCERY STORES AND SUPERMARKETS,GPC
WALSALL COUNCIL,http://opendatacommunities.org/id/metropolitan-district-council/walsall ,31/03/2024,CHILDRENS SERVICES,WM MORRISONS STORE PICK,03/01/2024,H59620240105FYVXZGBLW-2,113.54,"43A HILTON ROAD, WILLENHALL-FOOD & DRINK SUPPLIES",GROCERY STORES AND SUPERMARKETS,GPC
WALSALL COUNCIL,http://opendatacommunities.org/id/metropolitan-district-council/walsall ,31/03/2024,ECONOMY & ENVIRONMENT,THE RANGE,03/01/2024,H59620240105GSUPDJNHR-1,4.99,ARBORETUM-MATERIALS,MISCELLANEOUS HOUSE FURNISHING SPECIALTY SHOPS,GPC
WALSALL COUNCIL,http://opendatacommunities.org/id/metropolitan-district-council/walsall ,31/03/2024,CHILDRENS SERVICES,SQ *WARD?S WINDOW CLEANIN,03/01/2024,H59620240105HKYXHWVQK-1,90.00,TRANSITION AND LEAVING CARE SU-WINDOW CLEANING,"SPECIALTY CLEANING, POLISHING, AND SANITATION",GPC
WALSALL COUNCIL,http://opendatacommunities.org/id/metropolitan-district-council/walsall ,31/03/2024,ECONOMY & ENVIRONMENT,LIDL GB,03/01/2024,H59620240105HLZIREYSH-1,54.27,ARBORETUM-MATERIALS,GROCERY STORES AND SUPERMARKETS,GPC
WALSALL COUNCIL,http://opendatacommunities.org/id/metropolitan-district-council/walsall ,31/03/2024,ECONOMY & ENVIRONMENT,LIDL GB,03/01/2024,H59620240105HLZIREYSH-2,12.64,ARBORETUM-MATERIALS,GROCERY STORES AND SUPERMARKETS,GPC
WALSALL COUNCIL,http://opendatacommunities.org/id/metropolitan-district-council/walsall ,31/03/2024,ECONOMY & ENVIRONMENT,LIDL GB,03/01/2024,H59620240105HLZIREYSH-3,13.97,ARBORETUM-MATERIALS,GROCERY STORES AND SUPERMARKETS,GPC
WALSALL COUNCIL,http://opendatacommunities.org/id/metropolitan-district-council/walsall ,31/03/2024,CHILDRENS SERVICES,WWW.THEGIFTCARDCENTRE.CO.,03/01/2024,H59620240105HWNAMZDIZ-1,792.95,EARLY HELP HUB-STATIONERY & GENERAL OFFICE SU,"CARD, GIFT, NOVELTY, AND SOUVENIR SHOPS",GPC
WALSALL COUNCIL,http://opendatacommunities.org/id/metropolitan-district-council/walsall ,31/03/2024,RESOURCES AND TRANSFORMATION,CO-OPERATIVE FOOD,03/01/2024,H59620240105IMLRRVBLW-1,6.15,TOWN HALL RESTAURANT BISTRO-FOOD & DRINK SUPPLIES,GROCERY STORES AND SUPERMARKETS,GPC
WALSALL COUNCIL,http://opendatacommunities.org/id/metropolitan-district-council/walsall ,31/03/2024,CHILDRENS SERVICES,SQ *WARD?S WINDOW CLEANIN,03/01/2024,H59620240105IXGXYWVPL-1,55.00,CONTACT SESSIONAL STAFF-PAYMENT TO CONTRACTORS,"SPECIALTY CLEANING, POLISHING, AND SANITATION",GPC
WALSALL COUNCIL,http://opendatacommunities.org/id/metropolitan-district-council/walsall ,31/03/2024,CHILDRENS SERVICES,SQ *WARD?S WINDOW CLEANIN,03/01/2024,H59620240105IXGXYWVPL-2,55.00,FOSTERING SERVICE-PAYMENT TO CONTRACTORS,"SPECIALTY CLEANING, POLISHING, AND SANITATION",GPC
WALSALL COUNCIL,http://opendatacommunities.org/id/metropolitan-district-council/walsall ,31/03/2024,ECONOMY & ENVIRONMENT,TAYLOR NEWS,03/01/2024,H59620240105JCFUOUPDR-1,10.60,STREETLY LIBRARY-NEWSPAPERS/PERIODICALS/MAGAZIN,GROCERY STORES AND SUPERMARKETS,GPC
WALSALL COUNCIL,http://opendatacommunities.org/id/metropolitan-district-council/walsall ,31/03/2024,CHILDRENS SERVICES,SCHOOLHIRE* B1540063,03/01/2024,H59620240105JJLEYZKFW-1,360.00,E19-MATERIALS,COMPUTER SOFTWARE STORES,GPC
WALSALL COUNCIL,http://opendatacommunities.org/id/metropolitan-district-council/walsall ,31/03/2024,CHILDRENS SERVICES,AMZNMKTPLACE,03/01/2024,H59620240105KJXXIXPTT-1,23.50,FAMILY SAFEGUARDING EAST LOCAL-STATIONERY & GENERAL OFFICE SU,MISCELLANEOUS AND SPECIALTY RETAIL STORES,GPC
WALSALL COUNCIL,http://opendatacommunities.org/id/metropolitan-district-council/walsall ,31/03/2024,ECONOMY & ENVIRONMENT,EXPRESS & STAR,03/01/2024,H59620240105LHJJQFNQX-1,523.58,AREA PARTNERSHIPS-PUBLICITY & ADVERTISING (NON S,NEWS DEALERS AND NEWSSTANDS,GPC
WALSALL COUNCIL,http://opendatacommunities.org/id/metropolitan-district-council/walsall ,31/03/2024,ECONOMY & ENVIRONMENT,TOOLSTATION LTD ALDRIDGE,03/01/2024,H59620240105LMINWWQOA-1,56.57,GROUNDS-VEHICLE TESTING STATION MATERI,LUMBER & BUILDING MATERIALS STORES,GPC
WALSALL COUNCIL,http://opendatacommunities.org/id/metropolitan-district-council/walsall ,31/03/2024,CHILDRENS SERVICES,WEST MIDLANDS TRAV,03/01/2024,H59620240105LPIUILNGD-1,30.00,SUPPORT UNDER SECT 23 OF THE C-SUPPORT UNDER SECTION 23 OF TH,BUS LINES,GPC
WALSALL COUNCIL,http://opendatacommunities.org/id/metropolitan-district-council/walsall ,31/03/2024,CHILDRENS SERVICES,MATCO MEGA MART LTD,03/01/2024,H59620240105LTKWSSAYD-1,11.98,EDGE OF CARE TEAM-MATERIALS,GROCERY STORES AND SUPERMARKETS,GPC
WALSALL COUNCIL,http://opendatacommunities.org/id/metropolitan-district-council/walsall ,31/03/2024,CHILDRENS SERVICES,MATCO MEGA MART LTD,03/01/2024,H59620240105LTKWSSAYD-2,8.97,EDGE OF CARE TEAM-FOOD & DRINK SUPPLIES,GROCERY STORES AND SUPERMARKETS,GPC
WALSALL COUNCIL,http://opendatacommunities.org/id/metropolitan-district-council/walsall ,31/03/2024,ECONOMY & ENVIRONMENT,MIDLANDNEWS.COM,03/01/2024,H59620240105OGANRBKSW-1,436.32,DEVELOPMENT MANAGEMENT-SUBSCRIPTIONS,NEWS DEALERS AND NEWSSTANDS,GPC
WALSALL COUNCIL,http://opendatacommunities.org/id/metropolitan-district-council/walsall ,31/03/2024,CHILDRENS SERVICES,TENPIN LIMITED,03/01/2024,H59620240105OGXMFSEJG-1,22.92,CORPORATE PARENTING-SECTION 34 (CONTACT),BOWLING ALLEYS,GPC
WALSALL COUNCIL,http://opendatacommunities.org/id/metropolitan-district-council/walsall ,31/03/2024,ECONOMY & ENVIRONMENT,WWW.STA.CO.UK,03/01/2024,H59620240105OSQRBMMRD-1,280.00,OAK PARK ACTIVE LIVING CENTRE-PURCHASE OF FURNITURE & EQUIPM,OTHER RECREATION SERVICES,GPC
WALSALL COUNCIL,http://opendatacommunities.org/id/metropolitan-district-council/walsall ,31/03/2024,CHILDRENS SERVICES,PREMIER INN,03/01/2024,H59620240105PFDLONPKR-1,82.00,ROUGH SLEEPING INITIATIVE GRAN-BED & BREAKFAST PAYMENTS,PREMIER INN,GPC
WALSALL COUNCIL,http://opendatacommunities.org/id/metropolitan-district-council/walsall ,31/03/2024,RESOURCES AND TRANSFORMATION,SCREWFIX DIR LTD,03/01/2024,H59620240105RTQRRTDIL-1,5.19,CARETAKING - MANAGEMENT-MATERIALS,LUMBER & BUILDING MATERIALS STORES,GPC
WALSALL COUNCIL,http://opendatacommunities.org/id/metropolitan-district-council/walsall ,31/03/2024,CHILDRENS SERVICES,ICELAND,03/01/2024,H59620240105SBQEIFHJQ-1,23.75,EDGE OF CARE TEAM-FOOD & DRINK SUPPLIES,GROCERY STORES AND SUPERMARKETS,GPC
WALSALL COUNCIL,http://opendatacommunities.org/id/metropolitan-district-council/walsall ,31/03/2024,ECONOMY & ENVIRONMENT,WWW.MERLINLAZER.COM,03/01/2024,H59620240105SENDQYNTI-1,323.94,ENGINEERING MANAGEMENT-EXTERNAL TRAINING,ELECTRICAL PARTS AND EQUIPMENT,GPC
WALSALL COUNCIL,http://opendatacommunities.org/id/metropolitan-district-council/walsall ,31/03/2024,CHILDRENS SERVICES,TENPIN LIMITED,03/01/2024,H59620240105TAXCERMPW-1,10.95,CORPORATE PARENTING-SECTION 34 (CONTACT),BOWLING ALLEYS,GPC
WALSALL COUNCIL,http://opendatacommunities.org/id/metropolitan-district-council/walsall ,31/03/2024,ECONOMY & ENVIRONMENT,AMZNMKTPLACE,03/01/2024,H59620240105TCKRQJCSY-1,20.25,NAG - NEW ART GALLERY SHOP STO-MATERIALS,MISCELLANEOUS AND SPECIALTY RETAIL STORES,GPC
WALSALL COUNCIL,http://opendatacommunities.org/id/metropolitan-district-council/walsall ,31/03/2024,ECONOMY & ENVIRONMENT,SCREWFIX STOKE LEEK RD,03/01/2024,H59620240105TPOIZRHKF-1,14.00,ARBORETUM-MATERIALS,LUMBER & BUILDING MATERIALS STORES,GPC
WALSALL COUNCIL,http://opendatacommunities.org/id/metropolitan-district-council/walsall ,31/03/2024,ECONOMY & ENVIRONMENT,TOOLSTATION LTD ALDRIDGE,03/01/2024,H59620240105TQHISFUKJ-1,10.65,INFRASTRUCTURE MAINTENANCE-GROUNDS MAINTENANCE,LUMBER & BUILDING MATERIALS STORES,GPC
WALSALL COUNCIL,http://opendatacommunities.org/id/metropolitan-district-council/walsall ,31/03/2024,ECONOMY & ENVIRONMENT,AMZNMKTPLACE,03/01/2024,H59620240105TVGGEWMLI-1,9.44,NEW ART GALLERY - ADMIN-STATIONERY & GENERAL OFFICE SU,MISCELLANEOUS AND SPECIALTY RETAIL STORES,GPC
WALSALL COUNCIL,http://opendatacommunities.org/id/metropolitan-district-council/walsall ,31/03/2024,CHILDRENS SERVICES,SMARTY CO UK,03/01/2024,H59620240105VIRRVASGV-1,8.00,"43A HILTON ROAD, WILLENHALL-LANDLINE PHONES",TELECOMMUNICATION SERVICES,GPC
WALSALL COUNCIL,http://opendatacommunities.org/id/metropolitan-district-council/walsall ,31/03/2024,CHILDRENS SERVICES,NINJA WARRIOR UK WALSALL,03/01/2024,H59620240105VLQCXCKSD-1,-3.60,PINE VIEW-OUTINGS-EXPENSES,OTHER RECREATION SERVICES,GPC
WALSALL COUNCIL,http://opendatacommunities.org/id/metropolitan-district-council/walsall ,31/03/2024,CHILDRENS SERVICES,AMZNMKTPLACE,03/01/2024,H59620240105VXGCFEYFP-1,89.99,FAMILY HUBS-MATERIALS,MISCELLANEOUS AND SPECIALTY RETAIL STORES,GPC
WALSALL COUNCIL,http://opendatacommunities.org/id/metropolitan-district-council/walsall ,31/03/2024,CHILDRENS SERVICES,NINJA WARRIOR UK WALSALL,03/01/2024,H59620240105WPQKHMOVU-1,46.00,PINE VIEW-OUTINGS-EXPENSES,OTHER RECREATION SERVICES,GPC
WALSALL COUNCIL,http://opendatacommunities.org/id/metropolitan-district-council/walsall ,31/03/2024,RESOURCES AND TRANSFORMATION,SCREWFIX DIR LTD,03/01/2024,H59620240105WVKEIAHBB-1,16.99,CARETAKING - MANAGEMENT-MATERIALS,LUMBER & BUILDING MATERIALS STORES,GPC
WALSALL COUNCIL,http://opendatacommunities.org/id/metropolitan-district-council/walsall ,31/03/2024,ECONOMY & ENVIRONMENT,E.ON NEXT,03/01/2024,H59620240105WZZBOMGKB-1,80.00,RESTART-OTHER ENERGY COSTS,"UTILITIES - ELECTRIC, GAS, SANITARY & WATER",GPC
WALSALL COUNCIL,http://opendatacommunities.org/id/metropolitan-district-council/walsall ,31/03/2024,RESOURCES AND TRANSFORMATION,AMZNMKTPLACE,03/01/2024,H59620240105YBJIUKIDD-1,17.98,ADMIN SUPPORT-STATIONERY & GENERAL OFFICE SU,MISCELLANEOUS AND SPECIALTY RETAIL STORES,GPC
WALSALL COUNCIL,http://opendatacommunities.org/id/metropolitan-district-council/walsall ,31/03/2024,RESOURCES AND TRANSFORMATION,SCHOOL FARM SHOP,03/01/2024,H59620240105YWUYBUFCX-1,87.00,CATERING - MANAGEMENT-FOOD & DRINK SUPPLIES,MISCELLANEOUS FOOD STORES & CONVENIENCE STORES,GPC
WALSALL COUNCIL,http://opendatacommunities.org/id/metropolitan-district-council/walsall ,31/03/2024,ECONOMY & ENVIRONMENT,MIDLANDNEWS.COM,03/01/2024,H59620240105ZCVORNBHV-1,436.32,DEVELOPMENT MANAGEMENT-SUBSCRIPTIONS,NEWS DEALERS AND NEWSSTANDS,GPC
WALSALL COUNCIL,http://opendatacommunities.org/id/metropolitan-district-council/walsall ,31/03/2024,RESOURCES AND TRANSFORMATION,WWW.SCC.COM,03/01/2024,H59620240106ITDXLUQVQ-1,189.48,RECHARGEABLE EQUIPMENT-COMPUTER EQUIPMENT,"COMPUTERS, COMPUTER PERIPHERAL EQUIPMENT, SOFTWARE",GPC
WALSALL COUNCIL,http://opendatacommunities.org/id/metropolitan-district-council/walsall ,31/03/2024,ECONOMY & ENVIRONMENT,PPL PRS LTD,04/01/2024,H59620240106AFFFOZMGC-1,406.41,NEW ART GALLERY - ADMIN-FEES & LICENCES,"ORGANIZATIONS, MEMBERSHIP",GPC
WALSALL COUNCIL,http://opendatacommunities.org/id/metropolitan-district-council/walsall ,31/03/2024,CHILDRENS SERVICES,AMZNMKTPLACE,04/01/2024,H59620240106AMOBYCWOL-1,92.46,PINE VIEW-STATIONERY & GENERAL OFFICE SU,MISCELLANEOUS AND SPECIALTY RETAIL STORES,GPC
WALSALL COUNCIL,http://opendatacommunities.org/id/metropolitan-district-council/walsall ,31/03/2024,CHILDRENS SERVICES,AMZNMKTPLACE,04/01/2024,H59620240106CBQUVVXTK-1,3.75,THE CRESCENT-PURCHASE OF FURNITURE & EQUIPM,MISCELLANEOUS AND SPECIALTY RETAIL STORES,GPC
WALSALL COUNCIL,http://opendatacommunities.org/id/metropolitan-district-council/walsall ,31/03/2024,ECONOMY & ENVIRONMENT,BEANBAGBAZAAR,04/01/2024,H59620240106CCTWKGCOK-1,179.97,NAG - TEMPORARY EXHIBITIONS-PURCHASE OF FURNITURE & EQUIPM,"EQUIPMENT, FURNITURE, AND HOME FURNISHINGS STORES ",GPC
WALSALL COUNCIL,http://opendatacommunities.org/id/metropolitan-district-council/walsall ,31/03/2024,ECONOMY & ENVIRONMENT,AMZNMKTPLACE,04/01/2024,H59620240106CGPKIYWMT-1,135.94,BLOXWICH ACTIVE LIVING CENTRE-STATIONERY & GENERAL OFFICE SU,MISCELLANEOUS AND SPECIALTY RETAIL STORES,GPC
WALSALL COUNCIL,http://opendatacommunities.org/id/metropolitan-district-council/walsall ,31/03/2024,CHILDRENS SERVICES,UTILITA ENERGY LIMITED,04/01/2024,H59620240106COHIKHCFG-1,20.00,TENANCY SERVICE-OTHER ENERGY COSTS,"UTILITIES - ELECTRIC, GAS, SANITARY & WATER",GPC
WALSALL COUNCIL,http://opendatacommunities.org/id/metropolitan-district-council/walsall ,31/03/2024,ECONOMY & ENVIRONMENT,ROYAL MAIL ONLINE SHOP,04/01/2024,H59620240106DCMTXKUPK-1,62.50,AREA PARTNERSHIPS-POSTAGES & COURIER SERVICES,POSTAL SERVICES - GOVERNMENT ONLY,GPC
WALSALL COUNCIL,http://opendatacommunities.org/id/metropolitan-district-council/walsall ,31/03/2024,ECONOMY & ENVIRONMENT,ONE STOP 6322,04/01/2024,H59620240106DIJPQCDNR-1,94.60,DARLASTON LIBRARY-NEWSPAPERS/PERIODICALS/MAGAZIN,GROCERY STORES AND SUPERMARKETS,GPC
WALSALL COUNCIL,http://opendatacommunities.org/id/metropolitan-district-council/walsall ,31/03/2024,RESOURCES AND TRANSFORMATION,ALI BUTCHERS LTD.,04/01/2024,H59620240106DUPZNGRAM-1,18.00,CLEANING - MANAGEMENT-EVENTS & VISUAL ARTS,FREEZER AND LOCKER MEAT PROVISIONERS,GPC
WALSALL COUNCIL,http://opendatacommunities.org/id/metropolitan-district-council/walsall ,31/03/2024,CHILDRENS SERVICES,LEBARA MOBILE LIMITED,04/01/2024,H59620240106EVXHDIJMP-1,6.90,ADMINISTRATIVE SUPPLIES-STATIONERY & GENERAL OFFICE SU,COMPUTER NETWORK/INFORMATION SERVICES,GPC
WALSALL COUNCIL,http://opendatacommunities.org/id/metropolitan-district-council/walsall ,31/03/2024,ECONOMY & ENVIRONMENT,ONE STOP 6322,04/01/2024,H59620240106FJJSBHRXP-1,58.20,DARLASTON LIBRARY-NEWSPAPERS/PERIODICALS/MAGAZIN,GROCERY STORES AND SUPERMARKETS,GPC
WALSALL COUNCIL,http://opendatacommunities.org/id/metropolitan-district-council/walsall ,31/03/2024,CHILDRENS SERVICES,AMZNMKTPLACE,04/01/2024,H59620240106FMCGOUKFY-1,866.26,LOCALITY FAMILY SUPPORT-NORTH-MATERIALS,MISCELLANEOUS AND SPECIALTY RETAIL STORES,GPC
WALSALL COUNCIL,http://opendatacommunities.org/id/metropolitan-district-council/walsall ,31/03/2024,CHILDRENS SERVICES,B&M 419 - HS REEDSWOOD,04/01/2024,H59620240106FMUQRDOZE-1,22.95,CONTACT SESSIONAL STAFF-CLEANING MATERIALS,MISCELLANEOUS GENERAL MERCHANDISE,GPC
WALSALL COUNCIL,http://opendatacommunities.org/id/metropolitan-district-council/walsall ,31/03/2024,ADULT SOCIAL CARE,DERBYSHIRE010OFFIC,04/01/2024,H59620240106GBYEWKUXQ-1,81.00,AMPH SERVICE-EXTERNAL LEGAL FEES,FINES,GPC
WALSALL COUNCIL,http://opendatacommunities.org/id/metropolitan-district-council/walsall ,31/03/2024,ECONOMY & ENVIRONMENT,HIGH SPEED TRAINING,04/01/2024,H59620240106GHAABRIMO-1,37.20,RESTART-EXAMINATIONS-SERVICES,OTHER SCHOOLS AND EDUCATIONAL SERVICES,GPC
WALSALL COUNCIL,http://opendatacommunities.org/id/metropolitan-district-council/walsall ,31/03/2024,ECONOMY & ENVIRONMENT,TRAVIS PERKINS TRADING,04/01/2024,H59620240106HDUYFRGRE-1,224.39,DEPOT-MATERIALS,LUMBER & BUILDING MATERIALS STORES,GPC
WALSALL COUNCIL,http://opendatacommunities.org/id/metropolitan-district-council/walsall ,31/03/2024,CHILDRENS SERVICES,ASDA STORES,04/01/2024,H59620240106HNUKKVOWS-1,5.70,CORPORATE PARENTING-PARTICIPATION BUDGETS,GROCERY STORES AND SUPERMARKETS,GPC
WALSALL COUNCIL,http://opendatacommunities.org/id/metropolitan-district-council/walsall ,31/03/2024,CHILDRENS SERVICES,ASDA STORES,04/01/2024,H59620240106HNUKKVOWS-2,11.05,CORPORATE PARENTING-PARTICIPATION BUDGETS,GROCERY STORES AND SUPERMARKETS,GPC
WALSALL COUNCIL,http://opendatacommunities.org/id/metropolitan-district-council/walsall ,31/03/2024,CHILDRENS SERVICES,AMZNMKTPLACE,04/01/2024,H59620240106HUGUWNUMO-1,10.88,THE CRESCENT-PURCHASE OF FURNITURE & EQUIPM,MISCELLANEOUS AND SPECIALTY RETAIL STORES,GPC
WALSALL COUNCIL,http://opendatacommunities.org/id/metropolitan-district-council/walsall ,31/03/2024,CHILDRENS SERVICES,ASDA GROCERIES ONLINE,04/01/2024,H59620240106JXSTWBUMC-1,52.15,"HAF GRANT (HOLIDAY, ACTIVITIES-FOOD & DRINK SUPPLIES",GROCERY STORES AND SUPERMARKETS,GPC
WALSALL COUNCIL,http://opendatacommunities.org/id/metropolitan-district-council/walsall ,31/03/2024,CHILDRENS SERVICES,STORAGE KING WALSALL,04/01/2024,H59620240106JYSDXOMDJ-1,28.80,FAMILY SAFEGUARDING CENTRAL AN-SECTION 1/17CHILD CARE ACT 198,"PUBLIC WAREHOUSING, FARM, & HOUSEHOLD GOODS",GPC
WALSALL COUNCIL,http://opendatacommunities.org/id/metropolitan-district-council/walsall ,31/03/2024,CHILDRENS SERVICES,STORAGE KING WALSALL,04/01/2024,H59620240106KJKVOBSVJ-1,102.40,FAMILY SAFEGUARDING CENTRAL AN-SECTION 1/17CHILD CARE ACT 198,"PUBLIC WAREHOUSING, FARM, & HOUSEHOLD GOODS",GPC
WALSALL COUNCIL,http://opendatacommunities.org/id/metropolitan-district-council/walsall ,31/03/2024,CHILDRENS SERVICES,COSTA COFFEE 43011370,04/01/2024,H59620240106KLWKNDODH-1,4.85,EDGE OF CARE TEAM-FOOD & DRINK SUPPLIES,QUICK PAYMENT SERVICE-FAST-FOOD RESTAURANTS,GPC
WALSALL COUNCIL,http://opendatacommunities.org/id/metropolitan-district-council/walsall ,31/03/2024,CHILDRENS SERVICES,STORAGE KING WALSALL,04/01/2024,H59620240106KNRREFCNL-1,86.40,FAMILY SAFEGUARDING CENTRAL AN-SECTION 1/17CHILD CARE ACT 198,"PUBLIC WAREHOUSING, FARM, & HOUSEHOLD GOODS",GPC
WALSALL COUNCIL,http://opendatacommunities.org/id/metropolitan-district-council/walsall ,31/03/2024,CHILDRENS SERVICES,ASDA GROCERIES ONLINE,04/01/2024,H59620240106LGIDGQIGQ-1,-0.85,"HAF GRANT (HOLIDAY, ACTIVITIES-CATERING & REFRESHMENTS",GROCERY STORES AND SUPERMARKETS,GPC
WALSALL COUNCIL,http://opendatacommunities.org/id/metropolitan-district-council/walsall ,31/03/2024,CHILDRENS SERVICES,AMZNMKTPLACE,04/01/2024,H59620240106LOZACIHYA-1,17.99,FAMILY SAFEGUARDING EAST LOCAL-STATIONERY & GENERAL OFFICE SU,MISCELLANEOUS AND SPECIALTY RETAIL STORES,GPC
WALSALL COUNCIL,http://opendatacommunities.org/id/metropolitan-district-council/walsall ,31/03/2024,CHILDRENS SERVICES,BKG*HOTEL AT BOOKING.C,04/01/2024,H59620240106NEWGHEKTU-1,55.00,FAMILY SAFEGUARDING EAST LOCAL-SECTION 1/17CHILD CARE ACT 198,TRAVEL AGENCIES AND TOUR OPERATORS,GPC
WALSALL COUNCIL,http://opendatacommunities.org/id/metropolitan-district-council/walsall ,31/03/2024,CHILDRENS SERVICES,HM PASSPORT OFFICE,04/01/2024,H59620240106NTIASSNXS-1,87.50,FAMILY SAFEGUARDING NORTH LOCA-FEES & LICENCES,GOVERNMENT SERVICES,GPC
WALSALL COUNCIL,http://opendatacommunities.org/id/metropolitan-district-council/walsall ,31/03/2024,RESOURCES AND TRANSFORMATION,CO-OPERATIVE FOOD,04/01/2024,H59620240106OPUSECPUJ-1,1.60,CATERING - MANAGEMENT-FOOD & DRINK SUPPLIES,GROCERY STORES AND SUPERMARKETS,GPC
WALSALL COUNCIL,http://opendatacommunities.org/id/metropolitan-district-council/walsall ,31/03/2024,RESOURCES AND TRANSFORMATION,CO-OPERATIVE FOOD,04/01/2024,H59620240106OPUSECPUJ-2,1.65,CATERING - MANAGEMENT-FOOD & DRINK SUPPLIES,GROCERY STORES AND SUPERMARKETS,GPC
WALSALL COUNCIL,http://opendatacommunities.org/id/metropolitan-district-council/walsall ,31/03/2024,CHILDRENS SERVICES,AMZNMKTPLACE,04/01/2024,H59620240106OTDBOCMDR-1,16.99,THE CRESCENT-STATIONERY & GENERAL OFFICE SU,MISCELLANEOUS AND SPECIALTY RETAIL STORES,GPC
WALSALL COUNCIL,http://opendatacommunities.org/id/metropolitan-district-council/walsall ,31/03/2024,ECONOMY & ENVIRONMENT,AMZNMKTPLACE,04/01/2024,H59620240106QDKPLTSUQ-1,25.98,EDUCATION INFORMAL-MATERIALS,MISCELLANEOUS AND SPECIALTY RETAIL STORES,GPC
WALSALL COUNCIL,http://opendatacommunities.org/id/metropolitan-district-council/walsall ,31/03/2024,ECONOMY & ENVIRONMENT,AMZNMKTPLACE,04/01/2024,H59620240106QOWHPSPUG-1,46.80,AREA PARTNERSHIPS-STATIONERY & GENERAL OFFICE SU,MISCELLANEOUS AND SPECIALTY RETAIL STORES,GPC
WALSALL COUNCIL,http://opendatacommunities.org/id/metropolitan-district-council/walsall ,31/03/2024,RESOURCES AND TRANSFORMATION,ARTHUR BRETT CATER,04/01/2024,H59620240106QPWLGNRFO-1,265.45,CATERING - SCHOOLS-FOOD & DRINK SUPPLIES,MISCELLANEOUS FOOD STORES & CONVENIENCE STORES,GPC
WALSALL COUNCIL,http://opendatacommunities.org/id/metropolitan-district-council/walsall ,31/03/2024,RESOURCES AND TRANSFORMATION,ARTHUR BRETT CATER,04/01/2024,H59620240106QPWLGNRFO-2,229.05,CATERING - MANAGEMENT-FOOD & DRINK SUPPLIES,MISCELLANEOUS FOOD STORES & CONVENIENCE STORES,GPC
WALSALL COUNCIL,http://opendatacommunities.org/id/metropolitan-district-council/walsall ,31/03/2024,CHILDRENS SERVICES,STORAGE KING WALSALL,04/01/2024,H59620240106QTBFDWMPA-1,86.40,FAMILY SAFEGUARDING CENTRAL AN-SECTION 1/17CHILD CARE ACT 198,"PUBLIC WAREHOUSING, FARM, & HOUSEHOLD GOODS",GPC
WALSALL COUNCIL,http://opendatacommunities.org/id/metropolitan-district-council/walsall ,31/03/2024,ECONOMY & ENVIRONMENT,SAINSBURYS S/MKTS,04/01/2024,H59620240106RIUJKYIGI-1,1.30,COMMUNITY LIAISON-FOOD & DRINK SUPPLIES,GROCERY STORES AND SUPERMARKETS,GPC
WALSALL COUNCIL,http://opendatacommunities.org/id/metropolitan-district-council/walsall ,31/03/2024,ECONOMY & ENVIRONMENT,SAINSBURYS S/MKTS,04/01/2024,H59620240106RIUJKYIGI-2,6.50,COMMUNITY LIAISON-FOOD & DRINK SUPPLIES,GROCERY STORES AND SUPERMARKETS,GPC
WALSALL COUNCIL,http://opendatacommunities.org/id/metropolitan-district-council/walsall ,31/03/2024,ECONOMY & ENVIRONMENT,SCREWFIX DIR LTD,04/01/2024,H59620240106RYMDRKETX-1,76.93,INFRASTRUCTURE MAINTENANCE-GROUNDS MAINTENANCE,LUMBER & BUILDING MATERIALS STORES,GPC
WALSALL COUNCIL,http://opendatacommunities.org/id/metropolitan-district-council/walsall ,31/03/2024,ECONOMY & ENVIRONMENT,FACEBK 9BEKMYXCN2,04/01/2024,H59620240106SOPGDFFEN-1,3.21,RESOURCE MANAGEMENT-PUBLICITY & ADVERTISING (NON S,ADVERTISING SERVICES,GPC
WALSALL COUNCIL,http://opendatacommunities.org/id/metropolitan-district-council/walsall ,31/03/2024,ECONOMY & ENVIRONMENT,AMZNMKTPLACE,04/01/2024,H59620240106TIPIUIFFO-1,14.98,NAG - TEMPORARY EXHIBITIONS-MATERIALS,MISCELLANEOUS AND SPECIALTY RETAIL STORES,GPC
WALSALL COUNCIL,http://opendatacommunities.org/id/metropolitan-district-council/walsall ,31/03/2024,CHILDRENS SERVICES,STORAGE KING WALSALL,04/01/2024,H59620240106TNANSYLSG-1,102.40,FAMILY SAFEGUARDING CENTRAL AN-SECTION 1/17CHILD CARE ACT 198,"PUBLIC WAREHOUSING, FARM, & HOUSEHOLD GOODS",GPC
WALSALL COUNCIL,http://opendatacommunities.org/id/metropolitan-district-council/walsall ,31/03/2024,CHILDRENS SERVICES,ALDI 28 772,04/01/2024,H59620240106USSCNNSJW-1,11.86,REDRUTH ROAD-FOOD & DRINK SUPPLIES,GROCERY STORES AND SUPERMARKETS,GPC
WALSALL COUNCIL,http://opendatacommunities.org/id/metropolitan-district-council/walsall ,31/03/2024,CHILDRENS SERVICES,ALDI 28 772,04/01/2024,H59620240106USSCNNSJW-2,116.54,REDRUTH ROAD-FOOD & DRINK SUPPLIES,GROCERY STORES AND SUPERMARKETS,GPC
WALSALL COUNCIL,http://opendatacommunities.org/id/metropolitan-district-council/walsall ,31/03/2024,CHILDRENS SERVICES,AMZNMKTPLACE,04/01/2024,H59620240106UUCACGJUO-1,104.89,CARE LEAVER ENTITLEMENTS-SETTING UP HOME GRANT,MISCELLANEOUS AND SPECIALTY RETAIL STORES,GPC
WALSALL COUNCIL,http://opendatacommunities.org/id/metropolitan-district-council/walsall ,31/03/2024,ECONOMY & ENVIRONMENT,DISCLOSURE & BARRING,04/01/2024,H59620240106VJXGYEZVP-1,13.00,RESTART-FEES & LICENCES,GOVERNMENT SERVICES,GPC
WALSALL COUNCIL,http://opendatacommunities.org/id/metropolitan-district-council/walsall ,31/03/2024,CHILDRENS SERVICES,ALLPAY *MIDLAND HEART LTD,04/01/2024,H59620240106VNQDPWIVY-1,158.05,YOUNG PERSONS HOMELESS SERVICE-RENTS,"ORGANIZATIONS, CHARITABLE AND SOCIAL SERVICE",GPC
WALSALL COUNCIL,http://opendatacommunities.org/id/metropolitan-district-council/walsall ,31/03/2024,CHILDRENS SERVICES,FARMFOODS 607,04/01/2024,H59620240106WHKWKACSM-1,35.76,EDGE OF CARE TEAM-FOOD & DRINK SUPPLIES,GROCERY STORES AND SUPERMARKETS,GPC
WALSALL COUNCIL,http://opendatacommunities.org/id/metropolitan-district-council/walsall ,31/03/2024,CHILDRENS SERVICES,BKG*HOTEL AT BOOKING.C,04/01/2024,H59620240106WLYCXHBVJ-1,64.80,BED & BREAKFAST PAYMENTS-OTHER TRAVEL ALLOWANCES,TRAVEL AGENCIES AND TOUR OPERATORS,GPC
WALSALL COUNCIL,http://opendatacommunities.org/id/metropolitan-district-council/walsall ,31/03/2024,ECONOMY & ENVIRONMENT,AMZNMKTPLACE,04/01/2024,H59620240106XFDWQEEIM-1,23.56,NAG - TEMPORARY EXHIBITIONS-MATERIALS,MISCELLANEOUS AND SPECIALTY RETAIL STORES,GPC
WALSALL COUNCIL,http://opendatacommunities.org/id/metropolitan-district-council/walsall ,31/03/2024,ECONOMY & ENVIRONMENT,ROYAL MAIL ONLINE SHOP,04/01/2024,H59620240106YABSTGRCJ-1,177.50,NEW ART GALLERY - ADMIN-POSTAGES & COURIER SERVICES,POSTAL SERVICES - GOVERNMENT ONLY,GPC
WALSALL COUNCIL,http://opendatacommunities.org/id/metropolitan-district-council/walsall ,31/03/2024,ADULT SOCIAL CARE,BKG*HOTEL AT BOOKING.C,04/01/2024,H59620240106YJPNUJFXO-1,375.00,MENTAL HEALTH SUPPORT-BED & BREAKFAST PAYMENTS,TRAVEL AGENCIES AND TOUR OPERATORS,GPC
WALSALL COUNCIL,http://opendatacommunities.org/id/metropolitan-district-council/walsall ,31/03/2024,RESOURCES AND TRANSFORMATION,ARTHUR BRETT CATER,04/01/2024,H59620240109BEQHBFNXA-1,-4.20,CATERING - SCHOOLS-FOOD & DRINK SUPPLIES,MISCELLANEOUS FOOD STORES & CONVENIENCE STORES,GPC
WALSALL COUNCIL,http://opendatacommunities.org/id/metropolitan-district-council/walsall ,31/03/2024,ADULT SOCIAL CARE,VILLAGE HOTEL WALSALL,04/01/2024,H59620240109RXABDMOUL-1,179.00,MENTAL HEALTH TEAM-SECTION 1/17CHILD CARE ACT 198,"HOTELS, MOTELS, RESORTS",GPC
WALSALL COUNCIL,http://opendatacommunities.org/id/metropolitan-district-council/walsall ,31/03/2024,ECONOMY & ENVIRONMENT,AMZNMKTPLACE,05/01/2024,H59620240109AWIKJIITC-1,23.70,AREA PARTNERSHIPS-STATIONERY & GENERAL OFFICE SU,MISCELLANEOUS AND SPECIALTY RETAIL STORES,GPC
WALSALL COUNCIL,http://opendatacommunities.org/id/metropolitan-district-council/walsall ,31/03/2024,ECONOMY & ENVIRONMENT,AMZNMKTPLACE,05/01/2024,H59620240109AYPDNRUKB-1,36.95,NAG - TEMPORARY EXHIBITIONS-MATERIALS,MISCELLANEOUS AND SPECIALTY RETAIL STORES,GPC
WALSALL COUNCIL,http://opendatacommunities.org/id/metropolitan-district-council/walsall ,31/03/2024,CHILDRENS SERVICES,AMZNMKTPLACE,05/01/2024,H59620240109BCJQGEOWG-1,41.39,FAMILY SAFEGUARDING EAST LOCAL-SECTION 1/17CHILD CARE ACT 198,MISCELLANEOUS AND SPECIALTY RETAIL STORES,GPC
WALSALL COUNCIL,http://opendatacommunities.org/id/metropolitan-district-council/walsall ,31/03/2024,CHILDRENS SERVICES,AMAZON.CO.UK*ZJ3QE4RQ5,05/01/2024,H59620240109BIECJDQUQ-1,30.40,"43A HILTON ROAD, WILLENHALL-PURCHASE OF FURNITURE & EQUIPM",OTHER DIRECT MARKETING-OTHER DIRECT MARKETERS,GPC
WALSALL COUNCIL,http://opendatacommunities.org/id/metropolitan-district-council/walsall ,31/03/2024,CHILDRENS SERVICES,EURASIA CARPETS,05/01/2024,H59620240109CEZKCUOCD-1,146.00,CARE LEAVER ENTITLEMENTS-SETTING UP HOME GRANT,FLOOR COVERING STORES,GPC
WALSALL COUNCIL,http://opendatacommunities.org/id/metropolitan-district-council/walsall ,31/03/2024,CHILDRENS SERVICES,NIKE GBP,05/01/2024,H59620240109CIFEPPONK-1,52.49,YJS TURNAROUND PROGRAMME GRANT-CLOTHING & LAUNDRY,"SPORTS APPAREL, RIDING APPAREL STORES",GPC
WALSALL COUNCIL,http://opendatacommunities.org/id/metropolitan-district-council/walsall ,31/03/2024,ECONOMY & ENVIRONMENT,O HEAP & SON (DERBY) L,05/01/2024,H59620240109CJHPPVNOH-1,168.36,FLEET-PROFESSIONAL FEES & SERVICES,OTHER BUSINESS SERVICES,GPC
WALSALL COUNCIL,http://opendatacommunities.org/id/metropolitan-district-council/walsall ,31/03/2024,ECONOMY & ENVIRONMENT,WWW.MIRROR-BALLS.CO.UK,05/01/2024,H59620240109ENQRTELDU-1,102.95,NAG - TEMPORARY EXHIBITIONS-PURCHASE OF FURNITURE & EQUIPM,ELECTRONIC SALES,GPC
WALSALL COUNCIL,http://opendatacommunities.org/id/metropolitan-district-council/walsall ,31/03/2024,CHILDRENS SERVICES,B & Q 1276,05/01/2024,H59620240109EZZKKMKWP-1,245.00,"43A HILTON ROAD, WILLENHALL-PURCHASE OF FURNITURE & EQUIPM",HOME SUPPLY WAREHOUSE STORES,GPC
WALSALL COUNCIL,http://opendatacommunities.org/id/metropolitan-district-council/walsall ,31/03/2024,ECONOMY & ENVIRONMENT,TRAINLINE,05/01/2024,H59620240109FKTYOJFEP-1,69.10,GARMAN RYAN-OFFICERS & STAFF PUBLIC TRANSP,PASSENGER RAILWAYS,GPC
WALSALL COUNCIL,http://opendatacommunities.org/id/metropolitan-district-council/walsall ,31/03/2024,ECONOMY & ENVIRONMENT,TRAINLINE,05/01/2024,H59620240109FKTYOJFEP-2,209.79,GARMAN RYAN-VOLUNTEERS & OTHERS PUBLIC TRA,PASSENGER RAILWAYS,GPC
WALSALL COUNCIL,http://opendatacommunities.org/id/metropolitan-district-council/walsall ,31/03/2024,ECONOMY & ENVIRONMENT,TRAINLINE,05/01/2024,H59620240109FTEZOZUTR-1,38.29,GARMAN RYAN-VOLUNTEERS & OTHERS PUBLIC TRA,PASSENGER RAILWAYS,GPC
WALSALL COUNCIL,http://opendatacommunities.org/id/metropolitan-district-council/walsall ,31/03/2024,CHILDRENS SERVICES,GIFFGAFF,05/01/2024,H59620240109FWWGUFOJI-1,10.00,THE CRESCENT-LANDLINE PHONES,TELECOMMUNICATION SERVICES,GPC
WALSALL COUNCIL,http://opendatacommunities.org/id/metropolitan-district-council/walsall ,31/03/2024,ECONOMY & ENVIRONMENT,L & S ENGINEERS LTD,05/01/2024,H59620240109HKHVCZLIJ-1,11.03,RESOURCE MANAGEMENT-MATERIALS,HARDWARE STORES,GPC
WALSALL COUNCIL,http://opendatacommunities.org/id/metropolitan-district-council/walsall ,31/03/2024,CHILDRENS SERVICES,ASDA STORES,05/01/2024,H59620240109HTJVLUVKO-1,9.00,VIRTUAL SCHOOL CENTRAL PUPIL P-FOOD & DRINK SUPPLIES,GROCERY STORES AND SUPERMARKETS,GPC
WALSALL COUNCIL,http://opendatacommunities.org/id/metropolitan-district-council/walsall ,31/03/2024,CHILDRENS SERVICES,WALSALL COUNCIL,05/01/2024,H59620240109IMQREPYZH-1,17.00,FAMILY SAFEGUARDING WEST LOCAL-FEES & LICENCES,GOVERNMENT SERVICES,GPC
WALSALL COUNCIL,http://opendatacommunities.org/id/metropolitan-district-council/walsall ,31/03/2024,CHILDRENS SERVICES,POST OFFICE COUNTER,05/01/2024,H59620240109ISZHBNRIX-1,11.82,TRANSITION AND LEAVING CARE SU-POSTAGES & COURIER SERVICES,POSTAL SERVICES - GOVERNMENT ONLY,GPC
WALSALL COUNCIL,http://opendatacommunities.org/id/metropolitan-district-council/walsall ,31/03/2024,ADULT SOCIAL CARE,C2E877101792R UKVI,05/01/2024,H59620240109JIMIDNIQC-1,239.00,COMMUNICATIONS-FEES & LICENCES,GOVERNMENT SERVICES,GPC
WALSALL COUNCIL,http://opendatacommunities.org/id/metropolitan-district-council/walsall ,31/03/2024,ECONOMY & ENVIRONMENT,AMZNMKTPLACE,05/01/2024,H59620240109JRGKXBGMK-1,3.99,BLOXWICH LIBRARY-PURCHASE OF FURNITURE & EQUIPM,MISCELLANEOUS AND SPECIALTY RETAIL STORES,GPC
WALSALL COUNCIL,http://opendatacommunities.org/id/metropolitan-district-council/walsall ,31/03/2024,ECONOMY & ENVIRONMENT,AMZNMKTPLACE,05/01/2024,H59620240109JRGKXBGMK-2,4.99,BLOXWICH LIBRARY-PURCHASE OF FURNITURE & EQUIPM,MISCELLANEOUS AND SPECIALTY RETAIL STORES,GPC
WALSALL COUNCIL,http://opendatacommunities.org/id/metropolitan-district-council/walsall ,31/03/2024,CHILDRENS SERVICES,SELECT N SAVE,05/01/2024,H59620240109JUXTYOTHG-1,4.99,PINE VIEW-CLEANING MATERIALS,MISCELLANEOUS FOOD STORES & CONVENIENCE STORES,GPC
WALSALL COUNCIL,http://opendatacommunities.org/id/metropolitan-district-council/walsall ,31/03/2024,CHILDRENS SERVICES,WM MORRISONS STORE PICK,05/01/2024,H59620240109KGQKSYHXC-1,49.86,BLUEBELLS-FOOD & DRINK SUPPLIES,GROCERY STORES AND SUPERMARKETS,GPC
WALSALL COUNCIL,http://opendatacommunities.org/id/metropolitan-district-council/walsall ,31/03/2024,CHILDRENS SERVICES,WM MORRISONS STORE PICK,05/01/2024,H59620240109KGQKSYHXC-2,84.08,BLUEBELLS-FOOD & DRINK SUPPLIES,GROCERY STORES AND SUPERMARKETS,GPC
WALSALL COUNCIL,http://opendatacommunities.org/id/metropolitan-district-council/walsall ,31/03/2024,CHILDRENS SERVICES,AMAZON.CO.UK*IQ0KW5TH5,05/01/2024,H59620240109KHFRARLDG-1,20.20,HOUSEHOLD SUPPORT FUND - OCT-M-MATERIALS,OTHER DIRECT MARKETING-OTHER DIRECT MARKETERS,GPC
WALSALL COUNCIL,http://opendatacommunities.org/id/metropolitan-district-council/walsall ,31/03/2024,CHILDRENS SERVICES,AMZNMKTPLACE,05/01/2024,H59620240109KJVCWGINQ-1,32.79,FAMILY SAFEGUARDING EAST LOCAL-SECTION 1/17CHILD CARE ACT 198,MISCELLANEOUS AND SPECIALTY RETAIL STORES,GPC
WALSALL COUNCIL,http://opendatacommunities.org/id/metropolitan-district-council/walsall ,31/03/2024,CHILDRENS SERVICES,TRAVELODGE GB0000,05/01/2024,H59620240109LXWNUTEYO-1,133.58,FAMILY SAFEGUARDING CENTRAL AN-SECTION 1/17CHILD CARE ACT 198,TRAVELODGE,GPC
WALSALL COUNCIL,http://opendatacommunities.org/id/metropolitan-district-council/walsall ,31/03/2024,CHILDRENS SERVICES,THE LIGHT CINEMAS,05/01/2024,H59620240109LYLGQDMBT-1,6.50,PINE VIEW-RESIDENTS PERSONAL EXPENSES-AL,MOTION PICTURE THEATERS,GPC
WALSALL COUNCIL,http://opendatacommunities.org/id/metropolitan-district-council/walsall ,31/03/2024,CHILDRENS SERVICES,B & Q 1276,05/01/2024,H59620240109NLEDMLBQZ-1,93.00,"43A HILTON ROAD, WILLENHALL-PURCHASE OF FURNITURE & EQUIPM",HOME SUPPLY WAREHOUSE STORES,GPC
WALSALL COUNCIL,http://opendatacommunities.org/id/metropolitan-district-council/walsall ,31/03/2024,ECONOMY & ENVIRONMENT,AMZNMKTPLACE,05/01/2024,H59620240109NLOXPRXRF-1,29.99,NAG - TEMPORARY EXHIBITIONS-MATERIALS,MISCELLANEOUS AND SPECIALTY RETAIL STORES,GPC
WALSALL COUNCIL,http://opendatacommunities.org/id/metropolitan-district-council/walsall ,31/03/2024,ECONOMY & ENVIRONMENT,DISCLOSURE & BARRING,05/01/2024,H59620240109OIBOICGHR-1,13.00,RESTART-FEES & LICENCES,GOVERNMENT SERVICES,GPC
WALSALL COUNCIL,http://opendatacommunities.org/id/metropolitan-district-council/walsall ,31/03/2024,ECONOMY & ENVIRONMENT,AMAZON.CO.UK*7I5T24JO5,05/01/2024,H59620240109OTJYXMQKF-1,92.46,FLEET-MATERIALS,OTHER DIRECT MARKETING-OTHER DIRECT MARKETERS,GPC
WALSALL COUNCIL,http://opendatacommunities.org/id/metropolitan-district-council/walsall ,31/03/2024,ECONOMY & ENVIRONMENT,TRAINLINE,05/01/2024,H59620240109TJGWLVSBQ-1,176.09,GARMAN RYAN-VOLUNTEERS & OTHERS PUBLIC TRA,PASSENGER RAILWAYS,GPC
WALSALL COUNCIL,http://opendatacommunities.org/id/metropolitan-district-council/walsall ,31/03/2024,CHILDRENS SERVICES,POST OFFICE COUNTER,05/01/2024,H59620240109YROUSXAPJ-1,8.15,TRANSITION AND LEAVING CARE SU-POSTAGES & COURIER SERVICES,POSTAL SERVICES - GOVERNMENT ONLY,GPC
WALSALL COUNCIL,http://opendatacommunities.org/id/metropolitan-district-council/walsall ,31/03/2024,CHILDRENS SERVICES,GIFFGAFF,05/01/2024,H59620240109YVHDSYHYB-1,10.00,THE CRESCENT-LANDLINE PHONES,TELECOMMUNICATION SERVICES,GPC
WALSALL COUNCIL,http://opendatacommunities.org/id/metropolitan-district-council/walsall ,31/03/2024,CHILDRENS SERVICES,AMZNMKTPLACE,06/01/2024,H59620240109CBYMKGHYR-1,3.69,ENGLISH-LIBRARY BOOKS,MISCELLANEOUS AND SPECIALTY RETAIL STORES,GPC
WALSALL COUNCIL,http://opendatacommunities.org/id/metropolitan-district-council/walsall ,31/03/2024,CHILDRENS SERVICES,BIRMINGHAM REP ENTERPR,06/01/2024,H59620240109DMCKWHJNU-1,22.60,VIRTUAL SCHOOL CENTRAL PUPIL P-FOOD & DRINK SUPPLIES,"THEATRICAL PRODUCERS, TIC",GPC
WALSALL COUNCIL,http://opendatacommunities.org/id/metropolitan-district-council/walsall ,31/03/2024,CHILDRENS SERVICES,B&M 419 - HS REEDSWOOD,06/01/2024,H59620240109EFVYMFGJD-1,6.58,"43A HILTON ROAD, WILLENHALL-CLEANING MATERIALS",MISCELLANEOUS GENERAL MERCHANDISE,GPC
WALSALL COUNCIL,http://opendatacommunities.org/id/metropolitan-district-council/walsall ,31/03/2024,CHILDRENS SERVICES,B&M 419 - HS REEDSWOOD,06/01/2024,H59620240109EFVYMFGJD-2,53.00,"43A HILTON ROAD, WILLENHALL-PURCHASE OF FURNITURE & EQUIPM",MISCELLANEOUS GENERAL MERCHANDISE,GPC
WALSALL COUNCIL,http://opendatacommunities.org/id/metropolitan-district-council/walsall ,31/03/2024,CHILDRENS SERVICES,AMZNMKTPLACE,06/01/2024,H59620240109LEYBQOPHT-1,109.50,ADMINISTRATIVE SUPPLIES-MATERIALS,MISCELLANEOUS AND SPECIALTY RETAIL STORES,GPC
WALSALL COUNCIL,http://opendatacommunities.org/id/metropolitan-district-council/walsall ,31/03/2024,CHILDRENS SERVICES,AMZNMKTPLACE,06/01/2024,H59620240109QIMVHCTCJ-1,3.47,ENGLISH-LIBRARY BOOKS,MISCELLANEOUS AND SPECIALTY RETAIL STORES,GPC
WALSALL COUNCIL,http://opendatacommunities.org/id/metropolitan-district-council/walsall ,31/03/2024,CHILDRENS SERVICES,AMZNMKTPLACE,06/01/2024,H59620240109UGNJESJMZ-1,3.69,ENGLISH-LIBRARY BOOKS,MISCELLANEOUS AND SPECIALTY RETAIL STORES,GPC
WALSALL COUNCIL,http://opendatacommunities.org/id/metropolitan-district-council/walsall ,31/03/2024,ECONOMY & ENVIRONMENT,AMZNMKTPLACE,06/01/2024,H59620240109VKLSKCVTP-1,5.19,BLOXWICH LIBRARY-PURCHASE OF FURNITURE & EQUIPM,MISCELLANEOUS AND SPECIALTY RETAIL STORES,GPC
WALSALL COUNCIL,http://opendatacommunities.org/id/metropolitan-district-council/walsall ,31/03/2024,CHILDRENS SERVICES,WM MORRISONS STORE PICK,06/01/2024,H59620240109WIRQMIKBC-1,7.98,"43A HILTON ROAD, WILLENHALL-FOOD & DRINK SUPPLIES",GROCERY STORES AND SUPERMARKETS,GPC
WALSALL COUNCIL,http://opendatacommunities.org/id/metropolitan-district-council/walsall ,31/03/2024,CHILDRENS SERVICES,WM MORRISONS STORE PICK,06/01/2024,H59620240109WIRQMIKBC-2,83.63,"43A HILTON ROAD, WILLENHALL-FOOD & DRINK SUPPLIES",GROCERY STORES AND SUPERMARKETS,GPC
WALSALL COUNCIL,http://opendatacommunities.org/id/metropolitan-district-council/walsall ,31/03/2024,CHILDRENS SERVICES,AMZNMKTPLACE,07/01/2024,H59620240109AURUCGYKN-1,9.69,TRANSITION AND LEAVING CARE SU-PURCHASE OF FURNITURE & EQUIPM,MISCELLANEOUS AND SPECIALTY RETAIL STORES,GPC
WALSALL COUNCIL,http://opendatacommunities.org/id/metropolitan-district-council/walsall ,31/03/2024,ECONOMY & ENVIRONMENT,AMZNMKTPLACE,07/01/2024,H59620240109BRKZUTIXD-1,40.20,FLEET-MATERIALS,MISCELLANEOUS AND SPECIALTY RETAIL STORES,GPC
WALSALL COUNCIL,http://opendatacommunities.org/id/metropolitan-district-council/walsall ,31/03/2024,ADULT SOCIAL CARE,W M MORRISON STORE,07/01/2024,H59620240109CSNXISAIJ-1,8.47,EAST LOCALITY TEAM-FOOD & DRINK SUPPLIES,GROCERY STORES AND SUPERMARKETS,GPC
WALSALL COUNCIL,http://opendatacommunities.org/id/metropolitan-district-council/walsall ,31/03/2024,CHILDRENS SERVICES,AMZNMKTPLACE,07/01/2024,H59620240109GGRQMCGWB-1,23.96,ADMINISTRATIVE SUPPLIES-STATIONERY & GENERAL OFFICE SU,MISCELLANEOUS AND SPECIALTY RETAIL STORES,GPC
WALSALL COUNCIL,http://opendatacommunities.org/id/metropolitan-district-council/walsall ,31/03/2024,CHILDRENS SERVICES,AMZNMKTPLACE,07/01/2024,H59620240109KHKSULQRT-1,72.95,GENERAL-MATERIALS,MISCELLANEOUS AND SPECIALTY RETAIL STORES,GPC
WALSALL COUNCIL,http://opendatacommunities.org/id/metropolitan-district-council/walsall ,31/03/2024,ECONOMY & ENVIRONMENT,HTTPS://WWW.TROPICANAW,07/01/2024,H59620240109KIHRBBMMF-1,197.88,BLOXWICH ACTIVE LIVING CENTRE-FOOD & DRINK SUPPLIES,MISCELLANEOUS FOOD STORES & CONVENIENCE STORES,GPC
WALSALL COUNCIL,http://opendatacommunities.org/id/metropolitan-district-council/walsall ,31/03/2024,CHILDRENS SERVICES,AMZNMKTPLACE,07/01/2024,H59620240109KPUTVMZKC-1,20.97,ENGLISH-LIBRARY BOOKS,MISCELLANEOUS AND SPECIALTY RETAIL STORES,GPC
WALSALL COUNCIL,http://opendatacommunities.org/id/metropolitan-district-council/walsall ,31/03/2024,CHILDRENS SERVICES,TESCO STORES 6161,07/01/2024,H59620240109SDSJTAODN-1,44.61,FOOD TECHNOLOGY/HOSPITALITY-MATERIALS,GROCERY STORES AND SUPERMARKETS,GPC
WALSALL COUNCIL,http://opendatacommunities.org/id/metropolitan-district-council/walsall ,31/03/2024,ADULT SOCIAL CARE,ADOBE STOCK,07/01/2024,H59620240109UVHSLVCVL-1,57.59,COMMUNICATIONS-FEES & LICENCES,COMPUTER SOFTWARE STORES,GPC
WALSALL COUNCIL,http://opendatacommunities.org/id/metropolitan-district-council/walsall ,31/03/2024,CHILDRENS SERVICES,AMZNMKTPLACE,07/01/2024,H59620240109ZDEVJUTJJ-1,44.70,TRANSITION AND LEAVING CARE SU-PURCHASE OF FURNITURE & EQUIPM,MISCELLANEOUS AND SPECIALTY RETAIL STORES,GPC
WALSALL COUNCIL,http://opendatacommunities.org/id/metropolitan-district-council/walsall ,31/03/2024,CHILDRENS SERVICES,AMZNMKTPLACE,07/01/2024,H59620240109ZEOENYJTS-1,12.47,THE CRESCENT-STATIONERY & GENERAL OFFICE SU,MISCELLANEOUS AND SPECIALTY RETAIL STORES,GPC
WALSALL COUNCIL,http://opendatacommunities.org/id/metropolitan-district-council/walsall ,31/03/2024,CHILDRENS SERVICES,AMZNMKTPLACE,08/01/2024,H59620240110BNTEEMXIB-1,15.89,FAMILY PLACEMENTS-STATIONERY & GENERAL OFFICE SU,MISCELLANEOUS AND SPECIALTY RETAIL STORES,GPC
WALSALL COUNCIL,http://opendatacommunities.org/id/metropolitan-district-council/walsall ,31/03/2024,ECONOMY & ENVIRONMENT,AMZNMKTPLACE,08/01/2024,H59620240110BOOWYPPJJ-1,36.69,NAG - TEMPORARY EXHIBITIONS-MATERIALS,MISCELLANEOUS AND SPECIALTY RETAIL STORES,GPC
WALSALL COUNCIL,http://opendatacommunities.org/id/metropolitan-district-council/walsall ,31/03/2024,ECONOMY & ENVIRONMENT,CLEAN CAPPING REQUIREM,08/01/2024,H59620240110BTSZVWMAL-1,24.00,ENGINEERING MANAGEMENT-EXTERNAL TRAINING,"INSURANCE SALES, UNDERWRITING, AND PREMIUMS",GPC
WALSALL COUNCIL,http://opendatacommunities.org/id/metropolitan-district-council/walsall ,31/03/2024,ECONOMY & ENVIRONMENT,TAHDAH VERIFIED,08/01/2024,H59620240110CHEJTKLTA-1,54.00,OAK PARK ACTIVE LIVING CENTRE-FEES & LICENCES,COMPUTER SOFTWARE STORES,GPC
WALSALL COUNCIL,http://opendatacommunities.org/id/metropolitan-district-council/walsall ,31/03/2024,CHILDRENS SERVICES,AMZNMKTPLACE,08/01/2024,H59620240110CLOMHJZPR-1,26.48,THE CRESCENT-STATIONERY & GENERAL OFFICE SU,MISCELLANEOUS AND SPECIALTY RETAIL STORES,GPC
WALSALL COUNCIL,http://opendatacommunities.org/id/metropolitan-district-council/walsall ,31/03/2024,CHILDRENS SERVICES,WM MORRISONS STORE PICK,08/01/2024,H59620240110DAHDFGMSO-1,15.48,"43A HILTON ROAD, WILLENHALL-FOOD & DRINK SUPPLIES",GROCERY STORES AND SUPERMARKETS,GPC
WALSALL COUNCIL,http://opendatacommunities.org/id/metropolitan-district-council/walsall ,31/03/2024,CHILDRENS SERVICES,WM MORRISONS STORE PICK,08/01/2024,H59620240110DAHDFGMSO-2,126.73,"43A HILTON ROAD, WILLENHALL-FOOD & DRINK SUPPLIES",GROCERY STORES AND SUPERMARKETS,GPC
WALSALL COUNCIL,http://opendatacommunities.org/id/metropolitan-district-council/walsall ,31/03/2024,ECONOMY & ENVIRONMENT,TRAVIS PERKINS TRADING,08/01/2024,H59620240110DEURIORAP-1,109.98,GROUNDS MAINTENANCE-CEMETERIES-MATERIALS,LUMBER & BUILDING MATERIALS STORES,GPC
WALSALL COUNCIL,http://opendatacommunities.org/id/metropolitan-district-council/walsall ,31/03/2024,CHILDRENS SERVICES,AMZNMKTPLACE,08/01/2024,H59620240110DGFYPJHJC-1,8.82,PHONICS-MATERIALS,MISCELLANEOUS AND SPECIALTY RETAIL STORES,GPC
WALSALL COUNCIL,http://opendatacommunities.org/id/metropolitan-district-council/walsall ,31/03/2024,CHILDRENS SERVICES,AMZNMKTPLACE,08/01/2024,H59620240110DKWBGVBJS-1,33.98,YOUNG PERSONS HOMELESS SERVICE-MATERIALS,MISCELLANEOUS AND SPECIALTY RETAIL STORES,GPC
WALSALL COUNCIL,http://opendatacommunities.org/id/metropolitan-district-council/walsall ,31/03/2024,CHILDRENS SERVICES,AMZNMKTPLACE,08/01/2024,H59620240110DOQJHLCOX-1,34.29,SAFEGUARDING & STUDENT SUPPORT-MATERIALS,MISCELLANEOUS AND SPECIALTY RETAIL STORES,GPC
WALSALL COUNCIL,http://opendatacommunities.org/id/metropolitan-district-council/walsall ,31/03/2024,CHILDRENS SERVICES,AMZNMKTPLACE,08/01/2024,H59620240110DOWTHFCPH-1,8.00,THE CRESCENT-CLEANING MATERIALS,MISCELLANEOUS AND SPECIALTY RETAIL STORES,GPC
WALSALL COUNCIL,http://opendatacommunities.org/id/metropolitan-district-council/walsall ,31/03/2024,CHILDRENS SERVICES,WALSALL COUNCIL,08/01/2024,H59620240110EGOLCWLIZ-1,39.00,GENERAL MANAGEMENT SUPPORT (IN-FEES & LICENCES,GOVERNMENT SERVICES,GPC
WALSALL COUNCIL,http://opendatacommunities.org/id/metropolitan-district-council/walsall ,31/03/2024,CHILDRENS SERVICES,ASDA GROCERIES ONLINE,08/01/2024,H59620240110EKWKSPFWW-1,64.35,BREAKFAST CLUB-FOOD & DRINK SUPPLIES,GROCERY STORES AND SUPERMARKETS,GPC
WALSALL COUNCIL,http://opendatacommunities.org/id/metropolitan-district-council/walsall ,31/03/2024,CHILDRENS SERVICES,AMZNMKTPLACE,08/01/2024,H59620240110EMERNCEMP-1,10.95,LEIGHSWOOD PRIMARY SCHOOL-OPERATIONAL MAINTENANCE,MISCELLANEOUS AND SPECIALTY RETAIL STORES,GPC
WALSALL COUNCIL,http://opendatacommunities.org/id/metropolitan-district-council/walsall ,31/03/2024,ECONOMY & ENVIRONMENT,AMZNMKTPLACE,08/01/2024,H59620240110EWXLDEICS-1,14.00,BLOXWICH ACTIVE LIVING CENTRE-STATIONERY & GENERAL OFFICE SU,MISCELLANEOUS AND SPECIALTY RETAIL STORES,GPC
WALSALL COUNCIL,http://opendatacommunities.org/id/metropolitan-district-council/walsall ,31/03/2024,RESOURCES AND TRANSFORMATION,BLAKEMORE FOODSERVICE,08/01/2024,H59620240110FHQGRTNZO-1,753.16,TOWN HALL RESTAURANT BISTRO-FOOD & DRINK SUPPLIES,CATERERS,GPC
WALSALL COUNCIL,http://opendatacommunities.org/id/metropolitan-district-council/walsall ,31/03/2024,RESOURCES AND TRANSFORMATION,BLAKEMORE FOODSERVICE,08/01/2024,H59620240110FHQGRTNZO-2,424.39,TOWN HALL RESTAURANT BISTRO-FOOD & DRINK SUPPLIES,CATERERS,GPC
WALSALL COUNCIL,http://opendatacommunities.org/id/metropolitan-district-council/walsall ,31/03/2024,CHILDRENS SERVICES,AMZNMKTPLACE,08/01/2024,H59620240110FOMTKSOXA-1,13.49,SPECIAL NEEDS-MATERIALS,MISCELLANEOUS AND SPECIALTY RETAIL STORES,GPC
WALSALL COUNCIL,http://opendatacommunities.org/id/metropolitan-district-council/walsall ,31/03/2024,ECONOMY & ENVIRONMENT,SP RLSS UK SHOP,08/01/2024,H59620240110FREBWYDXQ-1,220.00,OAK PARK ACTIVE LIVING CENTRE-CLOTHING & LAUNDRY,MENS AND WOMENS CLOTHING STORES,GPC
WALSALL COUNCIL,http://opendatacommunities.org/id/metropolitan-district-council/walsall ,31/03/2024,CHILDRENS SERVICES,AMZNMKTPLACE,08/01/2024,H59620240110GAHORLVVH-1,40.15,CONSUMABLES-MATERIALS,MISCELLANEOUS AND SPECIALTY RETAIL STORES,GPC
WALSALL COUNCIL,http://opendatacommunities.org/id/metropolitan-district-council/walsall ,31/03/2024,ECONOMY & ENVIRONMENT,SP SAFEGUARD CLOTHIN,08/01/2024,H59620240110GFCYRQIAT-1,927.50,PHOTOGRAPHY EXHIBITION NO. 4-PURCHASE OF FURNITURE & EQUIPM,MENS AND WOMENS CLOTHING STORES,GPC
WALSALL COUNCIL,http://opendatacommunities.org/id/metropolitan-district-council/walsall ,31/03/2024,CHILDRENS SERVICES,WWW.JUMPXTREME.CO.UK,08/01/2024,H59620240110GWDFPMGGQ-1,287.50,REWARDS-MATERIALS,OTHER RECREATION SERVICES,GPC
WALSALL COUNCIL,http://opendatacommunities.org/id/metropolitan-district-council/walsall ,31/03/2024,ECONOMY & ENVIRONMENT,WWW.CIRIA.ORG,08/01/2024,H59620240110HQDLJYRRP-1,121.65,ENVIRONMENTAL PROTECTION-MATERIALS,OTHER BUSINESS SERVICES,GPC
WALSALL COUNCIL,http://opendatacommunities.org/id/metropolitan-district-council/walsall ,31/03/2024,ECONOMY & ENVIRONMENT,AMZNMKTPLACE,08/01/2024,H59620240110HYHGKODLW-1,19.98,FLEET-STATIONERY & GENERAL OFFICE SU,MISCELLANEOUS AND SPECIALTY RETAIL STORES,GPC
WALSALL COUNCIL,http://opendatacommunities.org/id/metropolitan-district-council/walsall ,31/03/2024,ECONOMY & ENVIRONMENT,AMZNMKTPLACE,08/01/2024,H59620240110IKTMIBPPB-1,43.98,EMERGENCY PLANNING-STATIONERY & GENERAL OFFICE SU,MISCELLANEOUS AND SPECIALTY RETAIL STORES,GPC
WALSALL COUNCIL,http://opendatacommunities.org/id/metropolitan-district-council/walsall ,31/03/2024,CHILDRENS SERVICES,PREMIER INN,08/01/2024,H59620240110ITQJYTLFG-1,81.00,CHILD PROTECTION & REVIEW SERV-ADVERTISING-FOSTER CARER,PREMIER INN,GPC
WALSALL COUNCIL,http://opendatacommunities.org/id/metropolitan-district-council/walsall ,31/03/2024,CHILDRENS SERVICES,FIRSTAID4LESS,08/01/2024,H59620240110IVOWQFYEH-1,101.28,PELSALL VILLAGE SCHOOL-PERSONAL REQUISITES-MATERIALS,OTHER COMMERCIAL EQUIPMENT,GPC
WALSALL COUNCIL,http://opendatacommunities.org/id/metropolitan-district-council/walsall ,31/03/2024,RESOURCES AND TRANSFORMATION,TESCO STORES 6161,08/01/2024,H59620240110IYDBFSHRF-1,30.14,TOWN HALL RESTAURANT BISTRO-FOOD & DRINK SUPPLIES,GROCERY STORES AND SUPERMARKETS,GPC
WALSALL COUNCIL,http://opendatacommunities.org/id/metropolitan-district-council/walsall ,31/03/2024,ECONOMY & ENVIRONMENT,SP RLSS UK SHOP,08/01/2024,H59620240110JLYROLDHG-1,495.00,OAK PARK ACTIVE LIVING CENTRE-MATERIALS,MENS AND WOMENS CLOTHING STORES,GPC
WALSALL COUNCIL,http://opendatacommunities.org/id/metropolitan-district-council/walsall ,31/03/2024,CHILDRENS SERVICES,WM MORRISONS STORE PICK,08/01/2024,H59620240110JZKUQUEYB-1,106.51,CONSUMABLES-MATERIALS,GROCERY STORES AND SUPERMARKETS,GPC
WALSALL COUNCIL,http://opendatacommunities.org/id/metropolitan-district-council/walsall ,31/03/2024,CHILDRENS SERVICES,WM MORRISONS STORE PICK,08/01/2024,H59620240110JZKUQUEYB-2,12.84,CONSUMABLES-MATERIALS,GROCERY STORES AND SUPERMARKETS,GPC
WALSALL COUNCIL,http://opendatacommunities.org/id/metropolitan-district-council/walsall ,31/03/2024,CHILDRENS SERVICES,PROJECTOR LAMPS,08/01/2024,H59620240110KASGGBOTG-1,67.94,PALFREY JUNIOR SCHOOL-PURCHASE OF FURNITURE & EQUIPM,CAMERA AND PHOTOGRAPHIC SUPPLY STORES,GPC
WALSALL COUNCIL,http://opendatacommunities.org/id/metropolitan-district-council/walsall ,31/03/2024,ADULT SOCIAL CARE,AMZNMKTPLACE,08/01/2024,H59620240110KCFLKKSFF-1,132.30,GOSCOTE-MATERIALS,MISCELLANEOUS AND SPECIALTY RETAIL STORES,GPC
WALSALL COUNCIL,http://opendatacommunities.org/id/metropolitan-district-council/walsall ,31/03/2024,ECONOMY & ENVIRONMENT,FINDEL EDUCATION,08/01/2024,H59620240110KHJWVGEGE-1,40.94,LEATHER MUSEUM-MATERIALS,OTHER DIRECT MARKETING-OTHER DIRECT MARKETERS,GPC
WALSALL COUNCIL,http://opendatacommunities.org/id/metropolitan-district-council/walsall ,31/03/2024,ECONOMY & ENVIRONMENT,FIRST HEALTH AND SAFETY L,08/01/2024,H59620240110LFGLRPFJC-1,17.99,RESTART-EXAMINATIONS-SERVICES,OTHER SCHOOLS AND EDUCATIONAL SERVICES,GPC
WALSALL COUNCIL,http://opendatacommunities.org/id/metropolitan-district-council/walsall ,31/03/2024,CHILDRENS SERVICES,TESCO STORES 5549,08/01/2024,H59620240110LIMMDFWIG-1,9.85,PARENTING TEAM-FOOD & DRINK SUPPLIES,GROCERY STORES AND SUPERMARKETS,GPC
WALSALL COUNCIL,http://opendatacommunities.org/id/metropolitan-district-council/walsall ,31/03/2024,ECONOMY & ENVIRONMENT,DULUX DECORATOR CENTRE,08/01/2024,H59620240110MCOSQVRGX-1,327.48,NAG - TEMPORARY EXHIBITIONS-DECORATING,"PAINTS, VARNISHES, AND SUPPLIES",GPC
WALSALL COUNCIL,http://opendatacommunities.org/id/metropolitan-district-council/walsall ,31/03/2024,CHILDRENS SERVICES,AMZNMKTPLACE,08/01/2024,H59620240110MIGJEDWXQ-1,23.79,PHONICS-MATERIALS,MISCELLANEOUS AND SPECIALTY RETAIL STORES,GPC
WALSALL COUNCIL,http://opendatacommunities.org/id/metropolitan-district-council/walsall ,31/03/2024,CHILDRENS SERVICES,ASDA GROCERIES ONLINE,08/01/2024,H59620240110MKSPXSWZR-1,10.80,FOOD TECHNOLOGY-FOOD & DRINK SUPPLIES,GROCERY STORES AND SUPERMARKETS,GPC
WALSALL COUNCIL,http://opendatacommunities.org/id/metropolitan-district-council/walsall ,31/03/2024,CHILDRENS SERVICES,ASDA GROCERIES ONLINE,08/01/2024,H59620240110MKSPXSWZR-2,39.20,FOOD TECHNOLOGY-FOOD & DRINK SUPPLIES,GROCERY STORES AND SUPERMARKETS,GPC
WALSALL COUNCIL,http://opendatacommunities.org/id/metropolitan-district-council/walsall ,31/03/2024,CHILDRENS SERVICES,SCHOOL MERIT STICKERS,08/01/2024,H59620240110NBATHJZQF-1,34.44,ADMINISTRATIVE SUPPLIES-MATERIALS,MISCELLANEOUS AND SPECIALTY RETAIL STORES,GPC
WALSALL COUNCIL,http://opendatacommunities.org/id/metropolitan-district-council/walsall ,31/03/2024,CHILDRENS SERVICES,B&M 419 - HS REEDSWOOD,08/01/2024,H59620240110NFNGOJQGJ-1,24.00,FAMILY PLACEMENTS-MATERIALS,MISCELLANEOUS GENERAL MERCHANDISE,GPC
WALSALL COUNCIL,http://opendatacommunities.org/id/metropolitan-district-council/walsall ,31/03/2024,CHILDRENS SERVICES,AMZNMKTPLACE,08/01/2024,H59620240110NSCJYTTWP-1,89.94,SPECIAL NEEDS-MATERIALS,MISCELLANEOUS AND SPECIALTY RETAIL STORES,GPC
WALSALL COUNCIL,http://opendatacommunities.org/id/metropolitan-district-council/walsall ,31/03/2024,ECONOMY & ENVIRONMENT,AMAZON.CO.UK*XO2OO6YS5,08/01/2024,H59620240110OBYLDGRPG-1,28.71,NEW ART GALLERY - ADMIN-MATERIALS,OTHER DIRECT MARKETING-OTHER DIRECT MARKETERS,GPC
WALSALL COUNCIL,http://opendatacommunities.org/id/metropolitan-district-council/walsall ,31/03/2024,CHILDRENS SERVICES,AMZNMKTPLACE,08/01/2024,H59620240110OVGJGDUNR-1,16.66,CHILD PROTECTION & REVIEW SERV-STATIONERY & GENERAL OFFICE SU,MISCELLANEOUS AND SPECIALTY RETAIL STORES,GPC
WALSALL COUNCIL,http://opendatacommunities.org/id/metropolitan-district-council/walsall ,31/03/2024,ECONOMY & ENVIRONMENT,AMZNMKTPLACE,08/01/2024,H59620240110PUGWJXKNB-1,-8.99,ARBORETUM-MATERIALS,MISCELLANEOUS AND SPECIALTY RETAIL STORES,GPC
WALSALL COUNCIL,http://opendatacommunities.org/id/metropolitan-district-council/walsall ,31/03/2024,CHILDRENS SERVICES,WM MORRISONS STORE PICK,08/01/2024,H59620240110PXZNRGCRT-1,41.38,NEW INVENTION INFANT SCHOOL-FOOD & DRINK SUPPLIES,GROCERY STORES AND SUPERMARKETS,GPC
WALSALL COUNCIL,http://opendatacommunities.org/id/metropolitan-district-council/walsall ,31/03/2024,CHILDRENS SERVICES,WM MORRISONS STORE PICK,08/01/2024,H59620240110PXZNRGCRT-2,1.40,NEW INVENTION INFANT SCHOOL-FOOD & DRINK SUPPLIES,GROCERY STORES AND SUPERMARKETS,GPC
WALSALL COUNCIL,http://opendatacommunities.org/id/metropolitan-district-council/walsall ,31/03/2024,ECONOMY & ENVIRONMENT,AMZNMKTPLACE,08/01/2024,H59620240110RFVCJIHVP-1,15.28,ARBORETUM VISITOR CENTRE-MATERIALS,MISCELLANEOUS AND SPECIALTY RETAIL STORES,GPC
WALSALL COUNCIL,http://opendatacommunities.org/id/metropolitan-district-council/walsall ,31/03/2024,CHILDRENS SERVICES,BARONS COURT HOTEL,08/01/2024,H59620240110SLJYMTRUP-1,340.00,YOUNG PERSONS HOMELESS SERVICE-BED & BREAKFAST PAYMENTS,"HOTELS, MOTELS, RESORTS",GPC
WALSALL COUNCIL,http://opendatacommunities.org/id/metropolitan-district-council/walsall ,31/03/2024,RESOURCES AND TRANSFORMATION,BLAKEMORE FOODSERVICE,08/01/2024,H59620240110SPFCEROBQ-1,36.70,CATERING - SCHOOLS-FOOD & DRINK SUPPLIES,CATERERS,GPC
WALSALL COUNCIL,http://opendatacommunities.org/id/metropolitan-district-council/walsall ,31/03/2024,RESOURCES AND TRANSFORMATION,BLAKEMORE FOODSERVICE,08/01/2024,H59620240110SPFCEROBQ-2,659.23,CATERING - SCHOOLS-FOOD & DRINK SUPPLIES,CATERERS,GPC
WALSALL COUNCIL,http://opendatacommunities.org/id/metropolitan-district-council/walsall ,31/03/2024,CHILDRENS SERVICES,AMZNMKTPLACE,08/01/2024,H59620240110VBROCDCSU-1,35.45,PHONICS-MATERIALS,MISCELLANEOUS AND SPECIALTY RETAIL STORES,GPC
WALSALL COUNCIL,http://opendatacommunities.org/id/metropolitan-district-council/walsall ,31/03/2024,CHILDRENS SERVICES,AMZNMKTPLACE,08/01/2024,H59620240110VIBYRZFXM-1,7.45,ICT LEARNING RESOURCES-MATERIALS,MISCELLANEOUS AND SPECIALTY RETAIL STORES,GPC
WALSALL COUNCIL,http://opendatacommunities.org/id/metropolitan-district-council/walsall ,31/03/2024,RESOURCES AND TRANSFORMATION,BLAKEMORE FOODSERVICE,08/01/2024,H59620240110VVHEKRMME-1,172.22,CATERING - SCHOOLS-FOOD & DRINK SUPPLIES,CATERERS,GPC
WALSALL COUNCIL,http://opendatacommunities.org/id/metropolitan-district-council/walsall ,31/03/2024,ECONOMY & ENVIRONMENT,AMZNMKTPLACE,08/01/2024,H59620240110XJKQVDPTB-1,21.97,LEATHER MUSEUM-MATERIALS,MISCELLANEOUS AND SPECIALTY RETAIL STORES,GPC
WALSALL COUNCIL,http://opendatacommunities.org/id/metropolitan-district-council/walsall ,31/03/2024,CHILDRENS SERVICES,AMZNMKTPLACE,08/01/2024,H59620240110XORGHSRHL-1,28.95,THE CRESCENT-PURCHASE OF FURNITURE & EQUIPM,MISCELLANEOUS AND SPECIALTY RETAIL STORES,GPC
WALSALL COUNCIL,http://opendatacommunities.org/id/metropolitan-district-council/walsall ,31/03/2024,ECONOMY & ENVIRONMENT,PAY.AMAZON.COM,08/01/2024,H59620240110YIZEVKHHC-1,-132.00,STREETLY CREMATORIUM-CLOTHING & LAUNDRY,MISCELLANEOUS ACCESSORY AND APPAREL STORES,GPC
WALSALL COUNCIL,http://opendatacommunities.org/id/metropolitan-district-council/walsall ,31/03/2024,RESOURCES AND TRANSFORMATION,ALDI 772 129,08/01/2024,H59620240110YLAXPTZNI-1,2.14,CATERING - MANAGEMENT-FOOD & DRINK SUPPLIES,GROCERY STORES AND SUPERMARKETS,GPC
WALSALL COUNCIL,http://opendatacommunities.org/id/metropolitan-district-council/walsall ,31/03/2024,RESOURCES AND TRANSFORMATION,ALDI 772 129,08/01/2024,H59620240110YLAXPTZNI-2,46.13,CATERING - MANAGEMENT-FOOD & DRINK SUPPLIES,GROCERY STORES AND SUPERMARKETS,GPC
WALSALL COUNCIL,http://opendatacommunities.org/id/metropolitan-district-council/walsall ,31/03/2024,CHILDRENS SERVICES,AMZNMKTPLACE,08/01/2024,H59620240110YLOYBHLKQ-1,22.89,THE CRESCENT-STATIONERY & GENERAL OFFICE SU,MISCELLANEOUS AND SPECIALTY RETAIL STORES,GPC
WALSALL COUNCIL,http://opendatacommunities.org/id/metropolitan-district-council/walsall ,31/03/2024,CHILDRENS SERVICES,WWW.BRIGADE.UK.COM,08/01/2024,H59620240110ZFJBOJKIN-1,194.87,E19-MATERIALS,"SPORTS APPAREL, RIDING APPAREL STORES",GPC
WALSALL COUNCIL,http://opendatacommunities.org/id/metropolitan-district-council/walsall ,31/03/2024,CHILDRENS SERVICES,TES RESOURCES,08/01/2024,H59620240110ZNOVWBOZI-1,48.99,LITERACY-MATERIALS,OTHER SCHOOLS AND EDUCATIONAL SERVICES,GPC
WALSALL COUNCIL,http://opendatacommunities.org/id/metropolitan-district-council/walsall ,31/03/2024,CHILDRENS SERVICES,PRIMARK 690,08/01/2024,H59620240111EQXJRBBAU-1,26.30,CARE LEAVER ENTITLEMENTS-CARE LEAVERS MISC EXPENSES,CLOTHING STORES,GPC
WALSALL COUNCIL,http://opendatacommunities.org/id/metropolitan-district-council/walsall ,31/03/2024,ECONOMY & ENVIRONMENT,A LEWIS & SONS (WILLENHAL,08/01/2024,H59620240111IYSIXJWRL-1,86.40,DEPOT-MATERIALS,HARDWARE EQUIPMENT AND SUPPLIES,GPC
WALSALL COUNCIL,http://opendatacommunities.org/id/metropolitan-district-council/walsall ,31/03/2024,RESOURCES AND TRANSFORMATION,WWW.SCC.COM,08/01/2024,H59620240111LFPGAYUML-1,1814.40,RECHARGEABLE EQUIPMENT-COMPUTER EQUIPMENT,"COMPUTERS, COMPUTER PERIPHERAL EQUIPMENT, SOFTWARE",GPC
WALSALL COUNCIL,http://opendatacommunities.org/id/metropolitan-district-council/walsall ,31/03/2024,CHILDRENS SERVICES,PAYPAL *LAMETALSLTD,08/01/2024,H59620240112FCIVSKSZW-1,42.23,DT-MATERIALS,METAL SERVICE CENTERS AND OFFICES,GPC
WALSALL COUNCIL,http://opendatacommunities.org/id/metropolitan-district-council/walsall ,31/03/2024,CHILDRENS SERVICES,AMZNMKTPLACE,09/01/2024,H59620240110PPWDXLHTG-1,15.98,PHONICS-MATERIALS,MISCELLANEOUS AND SPECIALTY RETAIL STORES,GPC
WALSALL COUNCIL,http://opendatacommunities.org/id/metropolitan-district-council/walsall ,31/03/2024,CHILDRENS SERVICES,AMZNMKTPLACE,09/01/2024,H59620240111AVWKGYFHF-1,30.08,ADMINISTRATIVE SUPPLIES-STATIONERY & GENERAL OFFICE SU,MISCELLANEOUS AND SPECIALTY RETAIL STORES,GPC
WALSALL COUNCIL,http://opendatacommunities.org/id/metropolitan-district-council/walsall ,31/03/2024,RESOURCES AND TRANSFORMATION,ARTHUR BRETT CATER,09/01/2024,H59620240111BBVONGJMO-1,101.80,CATERING - SCHOOLS-FOOD & DRINK SUPPLIES,MISCELLANEOUS FOOD STORES & CONVENIENCE STORES,GPC
WALSALL COUNCIL,http://opendatacommunities.org/id/metropolitan-district-council/walsall ,31/03/2024,CHILDRENS SERVICES,POST OFFICE COUNTER,09/01/2024,H59620240111BCIHAPKGY-1,7.35,CORPORATE PARENTING-POSTAGES & COURIER SERVICES,POSTAL SERVICES - GOVERNMENT ONLY,GPC
WALSALL COUNCIL,http://opendatacommunities.org/id/metropolitan-district-council/walsall ,31/03/2024,ECONOMY & ENVIRONMENT,AMZNMKTPLACE,09/01/2024,H59620240111BOSDDCFFW-1,28.98,FLEET-STATIONERY & GENERAL OFFICE SU,MISCELLANEOUS AND SPECIALTY RETAIL STORES,GPC
WALSALL COUNCIL,http://opendatacommunities.org/id/metropolitan-district-council/walsall ,31/03/2024,CHILDRENS SERVICES,AMZNMKTPLACE,09/01/2024,H59620240111BTSRTXNYJ-1,29.76,ADMINISTRATIVE SUPPLIES-MATERIALS,MISCELLANEOUS AND SPECIALTY RETAIL STORES,GPC
WALSALL COUNCIL,http://opendatacommunities.org/id/metropolitan-district-council/walsall ,31/03/2024,CHILDRENS SERVICES,AMZNMKTPLACE,09/01/2024,H59620240111BTTPISOKU-1,11.98,YEAR ONE-MATERIALS,MISCELLANEOUS AND SPECIALTY RETAIL STORES,GPC
WALSALL COUNCIL,http://opendatacommunities.org/id/metropolitan-district-council/walsall ,31/03/2024,CHILDRENS SERVICES,TESCO STORES 6161,09/01/2024,H59620240111CEBVDNLLA-1,28.84,FOOD TECHNOLOGY/HOSPITALITY-MATERIALS,GROCERY STORES AND SUPERMARKETS,GPC
WALSALL COUNCIL,http://opendatacommunities.org/id/metropolitan-district-council/walsall ,31/03/2024,CHILDRENS SERVICES,ELSA NETWORK,09/01/2024,H59620240111CKUDZPUHE-1,50.00,EDUCATIONAL PSYCHOLOGISTS-SUBSCRIPTIONS,"ASSOCIATIONS-CIVIC, SOCIAL, AND FRATERNAL",GPC
WALSALL COUNCIL,http://opendatacommunities.org/id/metropolitan-district-council/walsall ,31/03/2024,CHILDRENS SERVICES,AMAZON.CO.UK*FJ23K4AG5,09/01/2024,H59620240111CLSFCNVOG-1,30.48,FAMILY SAFEGUARDING EAST LOCAL-CLEANING MATERIALS,OTHER DIRECT MARKETING-OTHER DIRECT MARKETERS,GPC
WALSALL COUNCIL,http://opendatacommunities.org/id/metropolitan-district-council/walsall ,31/03/2024,CHILDRENS SERVICES,ASDA GROCERIES ONLINE,09/01/2024,H59620240111CRIOJEMKX-1,-0.10,SANDBANK NURSERY SCHOOL-FOOD & DRINK SUPPLIES,GROCERY STORES AND SUPERMARKETS,GPC
WALSALL COUNCIL,http://opendatacommunities.org/id/metropolitan-district-council/walsall ,31/03/2024,ECONOMY & ENVIRONMENT,SCREWFIX DIR LTD,09/01/2024,H59620240111DCTPDDDWD-1,77.94,INFRASTRUCTURE MAINTENANCE-GROUNDS MAINTENANCE,LUMBER & BUILDING MATERIALS STORES,GPC
WALSALL COUNCIL,http://opendatacommunities.org/id/metropolitan-district-council/walsall ,31/03/2024,RESOURCES AND TRANSFORMATION,ARTHUR BRETT CATER,09/01/2024,H59620240111DJNXNWDRB-1,29.82,CATERING - SCHOOLS-FOOD & DRINK SUPPLIES,MISCELLANEOUS FOOD STORES & CONVENIENCE STORES,GPC
WALSALL COUNCIL,http://opendatacommunities.org/id/metropolitan-district-council/walsall ,31/03/2024,RESOURCES AND TRANSFORMATION,ARTHUR BRETT CATER,09/01/2024,H59620240111DJOZJUWJP-1,128.17,CATERING - SCHOOLS-FOOD & DRINK SUPPLIES,MISCELLANEOUS FOOD STORES & CONVENIENCE STORES,GPC
WALSALL COUNCIL,http://opendatacommunities.org/id/metropolitan-district-council/walsall ,31/03/2024,ECONOMY & ENVIRONMENT,TRAINLINE,09/01/2024,H59620240111DNOFZKQUM-1,9.49,GARMAN RYAN-VOLUNTEERS & OTHERS PUBLIC TRA,PASSENGER RAILWAYS,GPC
WALSALL COUNCIL,http://opendatacommunities.org/id/metropolitan-district-council/walsall ,31/03/2024,CHILDRENS SERVICES,ASDA GROCERIES ONLINE,09/01/2024,H59620240111DTSZCDVSF-1,26.74,SANDBANK NURSERY SCHOOL-FOOD & DRINK SUPPLIES,GROCERY STORES AND SUPERMARKETS,GPC
WALSALL COUNCIL,http://opendatacommunities.org/id/metropolitan-district-council/walsall ,31/03/2024,CHILDRENS SERVICES,ASDA GROCERIES ONLINE,09/01/2024,H59620240111DTSZCDVSF-2,80.40,SANDBANK NURSERY SCHOOL-FOOD & DRINK SUPPLIES,GROCERY STORES AND SUPERMARKETS,GPC
WALSALL COUNCIL,http://opendatacommunities.org/id/metropolitan-district-council/walsall ,31/03/2024,ECONOMY & ENVIRONMENT,WALSALL COUNCIL,09/01/2024,H59620240111DVPVSJTWY-1,11.00,EH DIV GENERAL COSTS-FEES & LICENCES,GOVERNMENT SERVICES,GPC
WALSALL COUNCIL,http://opendatacommunities.org/id/metropolitan-district-council/walsall ,31/03/2024,CHILDRENS SERVICES,AMAZON.CO.UK*158714EO5,09/01/2024,H59620240111DWNQBORIX-1,30.47,FAMILY SAFEGUARDING EAST LOCAL-CLEANING MATERIALS,OTHER DIRECT MARKETING-OTHER DIRECT MARKETERS,GPC
WALSALL COUNCIL,http://opendatacommunities.org/id/metropolitan-district-council/walsall ,31/03/2024,ECONOMY & ENVIRONMENT,SQ *J P LENNARD LTD,09/01/2024,H59620240111EPLZBJGGG-1,186.24,BLOXWICH ACTIVE LIVING CENTRE-PURCHASE OF FURNITURE & EQUIPM,PROFESSIONAL SERVICES,GPC
WALSALL COUNCIL,http://opendatacommunities.org/id/metropolitan-district-council/walsall ,31/03/2024,CHILDRENS SERVICES,AMZNMKTPLACE,09/01/2024,H59620240111EVXUAGKXJ-1,23.98,ADMINISTRATIVE SUPPLIES-STATIONERY & GENERAL OFFICE SU,MISCELLANEOUS AND SPECIALTY RETAIL STORES,GPC
WALSALL COUNCIL,http://opendatacommunities.org/id/metropolitan-district-council/walsall ,31/03/2024,ECONOMY & ENVIRONMENT,POST OFFICE COUNTER,09/01/2024,H59620240111FIEIDDMBH-1,30.00,WALSALL ARENA AND ARTS CENTRE-POSTAGES & COURIER SERVICES,POSTAL SERVICES - GOVERNMENT ONLY,GPC
WALSALL COUNCIL,http://opendatacommunities.org/id/metropolitan-district-council/walsall ,31/03/2024,CHILDRENS SERVICES,AMZNMKTPLACE,09/01/2024,H59620240111FJOILIFXO-1,18.99,YOUTH JUSTICE SERVICE-STATIONERY & GENERAL OFFICE SU,MISCELLANEOUS AND SPECIALTY RETAIL STORES,GPC
WALSALL COUNCIL,http://opendatacommunities.org/id/metropolitan-district-council/walsall ,31/03/2024,RESOURCES AND TRANSFORMATION,WM MORRISONS STORE,09/01/2024,H59620240111FKJULQRLY-1,0.89,CATERING - MANAGEMENT-FOOD & DRINK SUPPLIES,GROCERY STORES AND SUPERMARKETS,GPC
WALSALL COUNCIL,http://opendatacommunities.org/id/metropolitan-district-council/walsall ,31/03/2024,RESOURCES AND TRANSFORMATION,WM MORRISONS STORE,09/01/2024,H59620240111FKJULQRLY-2,1.25,CATERING - MANAGEMENT-FOOD & DRINK SUPPLIES,GROCERY STORES AND SUPERMARKETS,GPC
WALSALL COUNCIL,http://opendatacommunities.org/id/metropolitan-district-council/walsall ,31/03/2024,CHILDRENS SERVICES,SP JENNYCHEM,09/01/2024,H59620240111FLRCUBJOC-1,39.50,FOOD TECHNOLOGY/HOSPITALITY-MATERIALS,COMPUTER SOFTWARE STORES,GPC
WALSALL COUNCIL,http://opendatacommunities.org/id/metropolitan-district-council/walsall ,31/03/2024,CHILDRENS SERVICES,FARMFOODS 606,09/01/2024,H59620240111FMBQOMUEN-1,15.98,FAMILY SAFEGUARDING EAST LOCAL-FOOD & DRINK SUPPLIES,GROCERY STORES AND SUPERMARKETS,GPC
WALSALL COUNCIL,http://opendatacommunities.org/id/metropolitan-district-council/walsall ,31/03/2024,RESOURCES AND TRANSFORMATION,ARTHUR BRETT CATER,09/01/2024,H59620240111FOSSTWXPM-1,69.63,CATERING - SCHOOLS-FOOD & DRINK SUPPLIES,MISCELLANEOUS FOOD STORES & CONVENIENCE STORES,GPC
WALSALL COUNCIL,http://opendatacommunities.org/id/metropolitan-district-council/walsall ,31/03/2024,CHILDRENS SERVICES,AMAZON.CO.UK*NB5XW0AG5,09/01/2024,H59620240111FUKCNLSSY-1,4.89,ELMWOOD SCHOOL-OPERATIONAL MAINTENANCE,OTHER DIRECT MARKETING-OTHER DIRECT MARKETERS,GPC
WALSALL COUNCIL,http://opendatacommunities.org/id/metropolitan-district-council/walsall ,31/03/2024,CHILDRENS SERVICES,MCDONALDS 1667,09/01/2024,H59620240111FXRQQJKNV-1,5.79,EDGE OF CARE TEAM-FOOD & DRINK SUPPLIES,QUICK PAYMENT SERVICE-FAST-FOOD RESTAURANTS,GPC
WALSALL COUNCIL,http://opendatacommunities.org/id/metropolitan-district-council/walsall ,31/03/2024,ECONOMY & ENVIRONMENT,AMZNMKTPLACE,09/01/2024,H59620240111GSCHECAJG-1,14.99,ARBORETUM-CLOTHING & LAUNDRY,MISCELLANEOUS AND SPECIALTY RETAIL STORES,GPC
WALSALL COUNCIL,http://opendatacommunities.org/id/metropolitan-district-council/walsall ,31/03/2024,CHILDRENS SERVICES,WM MORRISONS STORE PICK,09/01/2024,H59620240111IEMCFIQJD-1,33.12,PELSALL VILLAGE SCHOOL-FOOD & DRINK SUPPLIES,GROCERY STORES AND SUPERMARKETS,GPC
WALSALL COUNCIL,http://opendatacommunities.org/id/metropolitan-district-council/walsall ,31/03/2024,CHILDRENS SERVICES,WM MORRISONS STORE PICK,09/01/2024,H59620240111IEMCFIQJD-2,104.41,PELSALL VILLAGE SCHOOL-FOOD & DRINK SUPPLIES,GROCERY STORES AND SUPERMARKETS,GPC
WALSALL COUNCIL,http://opendatacommunities.org/id/metropolitan-district-council/walsall ,31/03/2024,CHILDRENS SERVICES,WWW.CONNEVANS.COM,09/01/2024,H59620240111INHGYIKWU-1,1530.00,SEN ASSESSMENT-STATIONERY & GENERAL OFFICE SU,MISCELLANEOUS AND SPECIALTY RETAIL STORES,GPC
WALSALL COUNCIL,http://opendatacommunities.org/id/metropolitan-district-council/walsall ,31/03/2024,RESOURCES AND TRANSFORMATION,ARTHUR BRETT CATER,09/01/2024,H59620240111ITVLDUAIC-1,35.81,CATERING - SCHOOLS-FOOD & DRINK SUPPLIES,MISCELLANEOUS FOOD STORES & CONVENIENCE STORES,GPC
WALSALL COUNCIL,http://opendatacommunities.org/id/metropolitan-district-council/walsall ,31/03/2024,RESOURCES AND TRANSFORMATION,ARTHUR BRETT CATER,09/01/2024,H59620240111JDNEWJSON-1,38.09,CATERING - SCHOOLS-FOOD & DRINK SUPPLIES,MISCELLANEOUS FOOD STORES & CONVENIENCE STORES,GPC
WALSALL COUNCIL,http://opendatacommunities.org/id/metropolitan-district-council/walsall ,31/03/2024,CHILDRENS SERVICES,BRITISH GAS ONLINE,09/01/2024,H59620240111JEYNYWZDO-1,20.00,YOUNG PERSONS HOMELESS SERVICE-OTHER ENERGY COSTS,"UTILITIES - ELECTRIC, GAS, SANITARY & WATER",GPC
WALSALL COUNCIL,http://opendatacommunities.org/id/metropolitan-district-council/walsall ,31/03/2024,CHILDRENS SERVICES,ASDA SUPERSTORE,09/01/2024,H59620240111JKCMYJFHC-1,10.00,FAMILY PLACEMENTS-MATERIALS,GROCERY STORES AND SUPERMARKETS,GPC
WALSALL COUNCIL,http://opendatacommunities.org/id/metropolitan-district-council/walsall ,31/03/2024,CHILDRENS SERVICES,TESCO PFS 4188,09/01/2024,H59620240111JVGLLJEXQ-1,96.21,E19-MATERIALS,SERVICE STATIONS,GPC
WALSALL COUNCIL,http://opendatacommunities.org/id/metropolitan-district-council/walsall ,31/03/2024,CHILDRENS SERVICES,AMZNMKTPLACE,09/01/2024,H59620240111JYOWEXQKN-1,9.49,D T-MATERIALS,MISCELLANEOUS AND SPECIALTY RETAIL STORES,GPC
WALSALL COUNCIL,http://opendatacommunities.org/id/metropolitan-district-council/walsall ,31/03/2024,CHILDRENS SERVICES,WALSALL COUNCIL,09/01/2024,H59620240111KGWAWSLVT-1,76.00,FAMILY SAFEGUARDING WEST LOCAL-FEES & LICENCES,GOVERNMENT SERVICES,GPC
WALSALL COUNCIL,http://opendatacommunities.org/id/metropolitan-district-council/walsall ,31/03/2024,CHILDRENS SERVICES,WM MORRISONS STORE PICK,09/01/2024,H59620240111KICXXWRKF-1,41.95,SHORT HEATH FEDERATION-FOOD & DRINK SUPPLIES,GROCERY STORES AND SUPERMARKETS,GPC
WALSALL COUNCIL,http://opendatacommunities.org/id/metropolitan-district-council/walsall ,31/03/2024,ECONOMY & ENVIRONMENT,AMZNMKTPLACE,09/01/2024,H59620240111KYBWNIZRI-1,-19.96,OAK PARK ACTIVE LIVING CENTRE-STATIONERY & GENERAL OFFICE SU,MISCELLANEOUS AND SPECIALTY RETAIL STORES,GPC
WALSALL COUNCIL,http://opendatacommunities.org/id/metropolitan-district-council/walsall ,31/03/2024,RESOURCES AND TRANSFORMATION,ARTHUR BRETT CATER,09/01/2024,H59620240111LQZCLYWFV-1,16.96,CATERING - SCHOOLS-FOOD & DRINK SUPPLIES,MISCELLANEOUS FOOD STORES & CONVENIENCE STORES,GPC
WALSALL COUNCIL,http://opendatacommunities.org/id/metropolitan-district-council/walsall ,31/03/2024,ECONOMY & ENVIRONMENT,AMZNMKTPLACE,09/01/2024,H59620240111MFSDDEAVN-1,60.97,OAK PARK ACTIVE LIVING CENTRE-STATIONERY & GENERAL OFFICE SU,MISCELLANEOUS AND SPECIALTY RETAIL STORES,GPC
WALSALL COUNCIL,http://opendatacommunities.org/id/metropolitan-district-council/walsall ,31/03/2024,RESOURCES AND TRANSFORMATION,ARTHUR BRETT CATER,09/01/2024,H59620240111MIUFYFOPD-1,72.09,CATERING - SCHOOLS-FOOD & DRINK SUPPLIES,MISCELLANEOUS FOOD STORES & CONVENIENCE STORES,GPC
WALSALL COUNCIL,http://opendatacommunities.org/id/metropolitan-district-council/walsall ,31/03/2024,ECONOMY & ENVIRONMENT,AMZNMKTPLACE,09/01/2024,H59620240111MJHKPKJFO-1,34.55,OAK PARK ACTIVE LIVING CENTRE-STATIONERY & GENERAL OFFICE SU,MISCELLANEOUS AND SPECIALTY RETAIL STORES,GPC
WALSALL COUNCIL,http://opendatacommunities.org/id/metropolitan-district-council/walsall ,31/03/2024,ECONOMY & ENVIRONMENT,CP PLUS LTD,09/01/2024,H59620240111MKPHHLHFV-1,61.50,FLEET-PROFESSIONAL SERVICES-PRIV CON,AUTOMOBILE PARKING LOTS AND GARAGES,GPC
WALSALL COUNCIL,http://opendatacommunities.org/id/metropolitan-district-council/walsall ,31/03/2024,CHILDRENS SERVICES,PAYPAL *UKPOINTSALE,09/01/2024,H59620240111MSAUACLVA-1,29.78,WHOLE SCHOOL (CLASSCHARTS)-MATERIALS,"OFFICE, SCHOOL SUPPLY, AND STATIONERY STORES",GPC
WALSALL COUNCIL,http://opendatacommunities.org/id/metropolitan-district-council/walsall ,31/03/2024,RESOURCES AND TRANSFORMATION,ARTHUR BRETT CATER,09/01/2024,H59620240111NFWQDMORK-1,77.21,CATERING - SCHOOLS-FOOD & DRINK SUPPLIES,MISCELLANEOUS FOOD STORES & CONVENIENCE STORES,GPC
WALSALL COUNCIL,http://opendatacommunities.org/id/metropolitan-district-council/walsall ,31/03/2024,ECONOMY & ENVIRONMENT,AMZNMKTPLACE,09/01/2024,H59620240111NRSTTRXUG-1,24.95,OAK PARK ACTIVE LIVING CENTRE-STATIONERY & GENERAL OFFICE SU,MISCELLANEOUS AND SPECIALTY RETAIL STORES,GPC
WALSALL COUNCIL,http://opendatacommunities.org/id/metropolitan-district-council/walsall ,31/03/2024,RESOURCES AND TRANSFORMATION,ARTHUR BRETT CATER,09/01/2024,H59620240111NXAFOYQCO-1,14.20,CATERING - SCHOOLS-FOOD & DRINK SUPPLIES,MISCELLANEOUS FOOD STORES & CONVENIENCE STORES,GPC
WALSALL COUNCIL,http://opendatacommunities.org/id/metropolitan-district-council/walsall ,31/03/2024,CHILDRENS SERVICES,VERY,09/01/2024,H59620240111OMCGXBUER-1,224.10,PINE VIEW-PURCHASE OF FURNITURE & EQUIPM,DIRECT MARKETING CATALOG MERCHANTS,GPC
WALSALL COUNCIL,http://opendatacommunities.org/id/metropolitan-district-council/walsall ,31/03/2024,CHILDRENS SERVICES,VERY,09/01/2024,H59620240111OMCGXBUER-2,3.99,PINE VIEW-STATIONERY & GENERAL OFFICE SU,DIRECT MARKETING CATALOG MERCHANTS,GPC
WALSALL COUNCIL,http://opendatacommunities.org/id/metropolitan-district-council/walsall ,31/03/2024,CHILDRENS SERVICES,AMZNMKTPLACE,09/01/2024,H59620240111OMSRSJKIG-1,16.17,SEN-MATERIALS,MISCELLANEOUS AND SPECIALTY RETAIL STORES,GPC
WALSALL COUNCIL,http://opendatacommunities.org/id/metropolitan-district-council/walsall ,31/03/2024,RESOURCES AND TRANSFORMATION,ARTHUR BRETT CATER,09/01/2024,H59620240111PBLIOFJFK-1,124.90,CATERING - SCHOOLS-FOOD & DRINK SUPPLIES,MISCELLANEOUS FOOD STORES & CONVENIENCE STORES,GPC
WALSALL COUNCIL,http://opendatacommunities.org/id/metropolitan-district-council/walsall ,31/03/2024,RESOURCES AND TRANSFORMATION,ARTHUR BRETT CATER,09/01/2024,H59620240111PKRRFPPMB-1,64.39,CATERING - SCHOOLS-FOOD & DRINK SUPPLIES,MISCELLANEOUS FOOD STORES & CONVENIENCE STORES,GPC
WALSALL COUNCIL,http://opendatacommunities.org/id/metropolitan-district-council/walsall ,31/03/2024,CHILDRENS SERVICES,AMZNMKTPLACE,09/01/2024,H59620240111POXQEJFNT-1,4.89,YEAR ONE-MATERIALS,MISCELLANEOUS AND SPECIALTY RETAIL STORES,GPC
WALSALL COUNCIL,http://opendatacommunities.org/id/metropolitan-district-council/walsall ,31/03/2024,ECONOMY & ENVIRONMENT,BEACONS AND LIGHTBARS,09/01/2024,H59620240111PSEYRJNPT-1,167.99,FLEET-MATERIALS,HARDWARE STORES,GPC
WALSALL COUNCIL,http://opendatacommunities.org/id/metropolitan-district-council/walsall ,31/03/2024,RESOURCES AND TRANSFORMATION,ARTHUR BRETT CATER,09/01/2024,H59620240111QLQSXSGKG-1,24.14,CATERING - SCHOOLS-FOOD & DRINK SUPPLIES,MISCELLANEOUS FOOD STORES & CONVENIENCE STORES,GPC
WALSALL COUNCIL,http://opendatacommunities.org/id/metropolitan-district-council/walsall ,31/03/2024,ECONOMY & ENVIRONMENT,AMAZON.CO.UK*LE7NZ5085,09/01/2024,H59620240111QTTUSPSTI-1,58.72,WALSALL ARENA AND ARTS CENTRE-MATERIALS,OTHER DIRECT MARKETING-OTHER DIRECT MARKETERS,GPC
WALSALL COUNCIL,http://opendatacommunities.org/id/metropolitan-district-council/walsall ,31/03/2024,CHILDRENS SERVICES,LETTER-JOIN SUBS,09/01/2024,H59620240111QYCHNLMXQ-1,292.80,ENGLISH-SUBSCRIPTIONS,OTHER SCHOOLS AND EDUCATIONAL SERVICES,GPC
WALSALL COUNCIL,http://opendatacommunities.org/id/metropolitan-district-council/walsall ,31/03/2024,CHILDRENS SERVICES,ASDA GROCERIES ONLINE,09/01/2024,H59620240111RKIRUHZWY-1,8.50,SANDBANK NURSERY SCHOOL-FOOD & DRINK SUPPLIES,GROCERY STORES AND SUPERMARKETS,GPC
WALSALL COUNCIL,http://opendatacommunities.org/id/metropolitan-district-council/walsall ,31/03/2024,CHILDRENS SERVICES,ASDA GROCERIES ONLINE,09/01/2024,H59620240111RKIRUHZWY-2,72.25,SANDBANK NURSERY SCHOOL-FOOD & DRINK SUPPLIES,GROCERY STORES AND SUPERMARKETS,GPC
WALSALL COUNCIL,http://opendatacommunities.org/id/metropolitan-district-council/walsall ,31/03/2024,CHILDRENS SERVICES,AMZNMKTPLACE,09/01/2024,H59620240111ROGFOSOOL-1,24.33,CHILD PROTECTION & REVIEW SERV-STATIONERY & GENERAL OFFICE SU,MISCELLANEOUS AND SPECIALTY RETAIL STORES,GPC
WALSALL COUNCIL,http://opendatacommunities.org/id/metropolitan-district-council/walsall ,31/03/2024,ECONOMY & ENVIRONMENT,HOBBYCRAFT,09/01/2024,H59620240111RORGYRVXH-1,18.00,LEATHER MUSEUM-MATERIALS,"ARTIST SUPPLY STORES, CRAFT SHOPS",GPC
WALSALL COUNCIL,http://opendatacommunities.org/id/metropolitan-district-council/walsall ,31/03/2024,CHILDRENS SERVICES,AMZNMKTPLACE,09/01/2024,H59620240111RQVBHCQQB-1,15.24,E19-MATERIALS,MISCELLANEOUS AND SPECIALTY RETAIL STORES,GPC
WALSALL COUNCIL,http://opendatacommunities.org/id/metropolitan-district-council/walsall ,31/03/2024,ECONOMY & ENVIRONMENT,TOOLSTATION LTD,09/01/2024,H59620240111RUDOJVOHA-1,28.65,INFRASTRUCTURE MAINTENANCE-MATERIALS,LUMBER & BUILDING MATERIALS STORES,GPC
WALSALL COUNCIL,http://opendatacommunities.org/id/metropolitan-district-council/walsall ,31/03/2024,CHILDRENS SERVICES,AMZNMKTPLACE,09/01/2024,H59620240111RYJHXPRFU-1,29.98,LEIGHSWOOD PRIMARY SCHOOL-OPERATIONAL MAINTENANCE,MISCELLANEOUS AND SPECIALTY RETAIL STORES,GPC
WALSALL COUNCIL,http://opendatacommunities.org/id/metropolitan-district-council/walsall ,31/03/2024,ECONOMY & ENVIRONMENT,B & Q 1276,09/01/2024,H59620240111SBGOOJJCK-1,47.40,BLOXWICH ACTIVE LIVING CENTRE-PURCHASE OF FURNITURE & EQUIPM,HOME SUPPLY WAREHOUSE STORES,GPC
WALSALL COUNCIL,http://opendatacommunities.org/id/metropolitan-district-council/walsall ,31/03/2024,RESOURCES AND TRANSFORMATION,ARTHUR BRETT CATER,09/01/2024,H59620240111SGYGBRXPJ-1,47.99,CATERING - SCHOOLS-FOOD & DRINK SUPPLIES,MISCELLANEOUS FOOD STORES & CONVENIENCE STORES,GPC
WALSALL COUNCIL,http://opendatacommunities.org/id/metropolitan-district-council/walsall ,31/03/2024,RESOURCES AND TRANSFORMATION,WWW.BANNERUK.COM,09/01/2024,H59620240111SIUSGMWHP-1,203.27,HR ADMIN HUB-STATIONERY & GENERAL OFFICE SU,"STATIONERY, OFFICE SUPPLIES AND WRITING PAPER",GPC
WALSALL COUNCIL,http://opendatacommunities.org/id/metropolitan-district-council/walsall ,31/03/2024,CHILDRENS SERVICES,AMZNMKTPLACE,09/01/2024,H59620240111SJQMWJVLV-1,15.98,CHUCKERY PRIMARY SCHOOL-OPERATIONAL MAINTENANCE,MISCELLANEOUS AND SPECIALTY RETAIL STORES,GPC
WALSALL COUNCIL,http://opendatacommunities.org/id/metropolitan-district-council/walsall ,31/03/2024,CHILDRENS SERVICES,STRATFORD - UPON - AVON B,09/01/2024,H59620240111SLWWTKJJS-1,3.93,"43A HILTON ROAD, WILLENHALL-RESIDENTS PERSONAL EXPENSES-AL","AQUARIUMS, DOLPHINARIUMS, AND SEAQUARIUMS",GPC
WALSALL COUNCIL,http://opendatacommunities.org/id/metropolitan-district-council/walsall ,31/03/2024,CHILDRENS SERVICES,STRATFORD - UPON - AVON B,09/01/2024,H59620240111SLWWTKJJS-2,16.92,"43A HILTON ROAD, WILLENHALL-RESIDENTS PERSONAL EXPENSES-AL","AQUARIUMS, DOLPHINARIUMS, AND SEAQUARIUMS",GPC
WALSALL COUNCIL,http://opendatacommunities.org/id/metropolitan-district-council/walsall ,31/03/2024,RESOURCES AND TRANSFORMATION,ARTHUR BRETT CATER,09/01/2024,H59620240111SOWGRMXGG-1,47.97,CATERING - SCHOOLS-FOOD & DRINK SUPPLIES,MISCELLANEOUS FOOD STORES & CONVENIENCE STORES,GPC
WALSALL COUNCIL,http://opendatacommunities.org/id/metropolitan-district-council/walsall ,31/03/2024,ECONOMY & ENVIRONMENT,EXERCISEANYWHERELTD,09/01/2024,H59620240111SQTSPVPHL-1,34.80,COMMUNITY LIAISON-LANDLINE PHONES,OTHER SCHOOLS AND EDUCATIONAL SERVICES,GPC
WALSALL COUNCIL,http://opendatacommunities.org/id/metropolitan-district-council/walsall ,31/03/2024,CHILDRENS SERVICES,NINJA WARRIOR UK WALSALL,09/01/2024,H59620240111SXHWNEUNO-1,145.00,REWARDS-MATERIALS,OTHER RECREATION SERVICES,GPC
WALSALL COUNCIL,http://opendatacommunities.org/id/metropolitan-district-council/walsall ,31/03/2024,ECONOMY & ENVIRONMENT,AMZNMKTPLACE,09/01/2024,H59620240111TBEKSOAHQ-1,9.88,LEATHER MUSEUM-PURCHASE OF FURNITURE & EQUIPM,MISCELLANEOUS AND SPECIALTY RETAIL STORES,GPC
WALSALL COUNCIL,http://opendatacommunities.org/id/metropolitan-district-council/walsall ,31/03/2024,RESOURCES AND TRANSFORMATION,WWW.BANNERUK.COM,09/01/2024,H59620240111TCQIAHBDU-1,198.98,HR ADMIN HUB-STATIONERY & GENERAL OFFICE SU,"STATIONERY, OFFICE SUPPLIES AND WRITING PAPER",GPC
WALSALL COUNCIL,http://opendatacommunities.org/id/metropolitan-district-council/walsall ,31/03/2024,CHILDRENS SERVICES,AMZNMKTPLACE,09/01/2024,H59620240111TDGSOETPS-1,10.16,ADMINISTRATIVE SUPPLIES-MATERIALS,MISCELLANEOUS AND SPECIALTY RETAIL STORES,GPC
WALSALL COUNCIL,http://opendatacommunities.org/id/metropolitan-district-council/walsall ,31/03/2024,CHILDRENS SERVICES,AMZNMKTPLACE,09/01/2024,H59620240111THKSLUSSJ-1,39.70,CURRICULUM STOCK-MATERIALS,MISCELLANEOUS AND SPECIALTY RETAIL STORES,GPC
WALSALL COUNCIL,http://opendatacommunities.org/id/metropolitan-district-council/walsall ,31/03/2024,RESOURCES AND TRANSFORMATION,ASDA SUPERSTORE,09/01/2024,H59620240111TJNVMHOBH-1,10.40,CLEANING - MANAGEMENT-FOOD & DRINK SUPPLIES,GROCERY STORES AND SUPERMARKETS,GPC
WALSALL COUNCIL,http://opendatacommunities.org/id/metropolitan-district-council/walsall ,31/03/2024,CHILDRENS SERVICES,AMAZON.CO.UK*D10P782E5,09/01/2024,H59620240111TVCKCXAPE-1,7.35,ENGLISH-LIBRARY BOOKS,OTHER DIRECT MARKETING-OTHER DIRECT MARKETERS,GPC
WALSALL COUNCIL,http://opendatacommunities.org/id/metropolitan-district-council/walsall ,31/03/2024,CHILDRENS SERVICES,AMAZON.CO.UK*RD7HX33T5,09/01/2024,H59620240111ULDTQLJZE-1,11.15,LITERACY-MATERIALS,OTHER DIRECT MARKETING-OTHER DIRECT MARKETERS,GPC
WALSALL COUNCIL,http://opendatacommunities.org/id/metropolitan-district-council/walsall ,31/03/2024,CHILDRENS SERVICES,TESCO STORES 6161,09/01/2024,H59620240111UMJJLBRYM-1,5.25,ELMWOOD SCHOOL-CATERING & REFRESHMENTS,GROCERY STORES AND SUPERMARKETS,GPC
WALSALL COUNCIL,http://opendatacommunities.org/id/metropolitan-district-council/walsall ,31/03/2024,RESOURCES AND TRANSFORMATION,ARTHUR BRETT CATER,09/01/2024,H59620240111UMQNMMBXM-1,4.76,CATERING - SCHOOLS-FOOD & DRINK SUPPLIES,MISCELLANEOUS FOOD STORES & CONVENIENCE STORES,GPC
WALSALL COUNCIL,http://opendatacommunities.org/id/metropolitan-district-council/walsall ,31/03/2024,RESOURCES AND TRANSFORMATION,AMZNMKTPLACE,09/01/2024,H59620240111UNKPHOWJQ-1,49.25,RECHARGEABLE EQUIPMENT-COMPUTER EQUIPMENT,MISCELLANEOUS AND SPECIALTY RETAIL STORES,GPC
WALSALL COUNCIL,http://opendatacommunities.org/id/metropolitan-district-council/walsall ,31/03/2024,RESOURCES AND TRANSFORMATION,ARTHUR BRETT CATER,09/01/2024,H59620240111UOHFXUCHC-1,85.84,CATERING - SCHOOLS-FOOD & DRINK SUPPLIES,MISCELLANEOUS FOOD STORES & CONVENIENCE STORES,GPC
WALSALL COUNCIL,http://opendatacommunities.org/id/metropolitan-district-council/walsall ,31/03/2024,RESOURCES AND TRANSFORMATION,ARTHUR BRETT CATER,09/01/2024,H59620240111VHXGUYMGG-1,60.18,CATERING - SCHOOLS-FOOD & DRINK SUPPLIES,MISCELLANEOUS FOOD STORES & CONVENIENCE STORES,GPC
WALSALL COUNCIL,http://opendatacommunities.org/id/metropolitan-district-council/walsall ,31/03/2024,CHILDRENS SERVICES,WM MORRISONS STORE PICK,09/01/2024,H59620240111VKHWXLDGN-1,27.94,EARLY YEARS-MATERIALS,GROCERY STORES AND SUPERMARKETS,GPC
WALSALL COUNCIL,http://opendatacommunities.org/id/metropolitan-district-council/walsall ,31/03/2024,RESOURCES AND TRANSFORMATION,ARTHUR BRETT CATER,09/01/2024,H59620240111VUPIMVQPU-1,186.20,CATERING - SCHOOLS-FOOD & DRINK SUPPLIES,MISCELLANEOUS FOOD STORES & CONVENIENCE STORES,GPC
WALSALL COUNCIL,http://opendatacommunities.org/id/metropolitan-district-council/walsall ,31/03/2024,RESOURCES AND TRANSFORMATION,ARTHUR BRETT CATER,09/01/2024,H59620240111VUPIMVQPU-2,115.20,CATERING - MANAGEMENT-FOOD & DRINK SUPPLIES,MISCELLANEOUS FOOD STORES & CONVENIENCE STORES,GPC
WALSALL COUNCIL,http://opendatacommunities.org/id/metropolitan-district-council/walsall ,31/03/2024,ECONOMY & ENVIRONMENT,AMAZON.CO.UK*I40ZE0E05,09/01/2024,H59620240111WEEICONMC-1,9.72,OAK PARK ACTIVE LIVING CENTRE-PURCHASE OF FURNITURE & EQUIPM,OTHER DIRECT MARKETING-OTHER DIRECT MARKETERS,GPC
WALSALL COUNCIL,http://opendatacommunities.org/id/metropolitan-district-council/walsall ,31/03/2024,CHILDRENS SERVICES,SUTTON PRODUCTS,09/01/2024,H59620240111WGQNNPGKK-1,5.26,PELSALL VILLAGE SCHOOL-OPERATIONAL MAINTENANCE,HARDWARE STORES,GPC
WALSALL COUNCIL,http://opendatacommunities.org/id/metropolitan-district-council/walsall ,31/03/2024,RESOURCES AND TRANSFORMATION,AMZNMKTPLACE,09/01/2024,H59620240111WQBPKOLYF-1,38.22,RECHARGEABLE EQUIPMENT-COMPUTER EQUIPMENT,MISCELLANEOUS AND SPECIALTY RETAIL STORES,GPC
WALSALL COUNCIL,http://opendatacommunities.org/id/metropolitan-district-council/walsall ,31/03/2024,RESOURCES AND TRANSFORMATION,ARTHUR BRETT CATER,09/01/2024,H59620240111WVKPWFHWG-1,24.07,CATERING - SCHOOLS-FOOD & DRINK SUPPLIES,MISCELLANEOUS FOOD STORES & CONVENIENCE STORES,GPC
WALSALL COUNCIL,http://opendatacommunities.org/id/metropolitan-district-council/walsall ,31/03/2024,CHILDRENS SERVICES,AMZNMKTPLACE,09/01/2024,H59620240111WVPXBCZEC-1,4.98,FAMILY SAFEGUARDING EAST LOCAL-CLEANING MATERIALS,MISCELLANEOUS AND SPECIALTY RETAIL STORES,GPC
WALSALL COUNCIL,http://opendatacommunities.org/id/metropolitan-district-council/walsall ,31/03/2024,ECONOMY & ENVIRONMENT,TAYLOR NEWS,09/01/2024,H59620240111WYSDMOILB-1,18.40,STREETLY LIBRARY-NEWSPAPERS/PERIODICALS/MAGAZIN,GROCERY STORES AND SUPERMARKETS,GPC
WALSALL COUNCIL,http://opendatacommunities.org/id/metropolitan-district-council/walsall ,31/03/2024,CHILDRENS SERVICES,BARONS COURT HOTEL,09/01/2024,H59620240111XEKYTIBRQ-1,170.00,ROUGH SLEEPING INITIATIVE GRAN-CRISIS SUPPORT PAYMENTS,"HOTELS, MOTELS, RESORTS",GPC
WALSALL COUNCIL,http://opendatacommunities.org/id/metropolitan-district-council/walsall ,31/03/2024,CHILDRENS SERVICES,AMAZON.CO.UK*L59UQ9D85,09/01/2024,H59620240111XGDUUJMJO-1,14.98,ADMINISTRATIVE SUPPLIES-STATIONERY & GENERAL OFFICE SU,OTHER DIRECT MARKETING-OTHER DIRECT MARKETERS,GPC
WALSALL COUNCIL,http://opendatacommunities.org/id/metropolitan-district-council/walsall ,31/03/2024,CHILDRENS SERVICES,FINDEL EDUCATION,09/01/2024,H59620240111XGWJRCQVH-1,226.00,CURRICULUM STOCK-MATERIALS,OTHER DIRECT MARKETING-OTHER DIRECT MARKETERS,GPC
WALSALL COUNCIL,http://opendatacommunities.org/id/metropolitan-district-council/walsall ,31/03/2024,ECONOMY & ENVIRONMENT,TOOLSTATION LTD,09/01/2024,H59620240111XHGPQXDXM-1,79.38,DEPOT-MATERIALS,LUMBER & BUILDING MATERIALS STORES,GPC
WALSALL COUNCIL,http://opendatacommunities.org/id/metropolitan-district-council/walsall ,31/03/2024,ECONOMY & ENVIRONMENT,TOOLSTATION LTD,09/01/2024,H59620240111XPPRMJEWM-1,71.28,INFRASTRUCTURE MAINTENANCE-GROUNDS MAINTENANCE,LUMBER & BUILDING MATERIALS STORES,GPC
WALSALL COUNCIL,http://opendatacommunities.org/id/metropolitan-district-council/walsall ,31/03/2024,CHILDRENS SERVICES,ASDA,09/01/2024,H59620240111XTEYSJPPP-1,21.00,ROUGH SLEEPING INITIATIVE GRAN-FOOD & DRINK SUPPLIES,GROCERY STORES AND SUPERMARKETS,GPC
WALSALL COUNCIL,http://opendatacommunities.org/id/metropolitan-district-council/walsall ,31/03/2024,CHILDRENS SERVICES,TENPIN LIMITED,09/01/2024,H59620240111YFXCDPUGX-1,259.00,REWARDS-MATERIALS,BOWLING ALLEYS,GPC
WALSALL COUNCIL,http://opendatacommunities.org/id/metropolitan-district-council/walsall ,31/03/2024,CHILDRENS SERVICES,AMZNMKTPLACE,09/01/2024,H59620240111ZGKRPWAID-1,81.98,WHOLE SCHOOL (CLASSCHARTS)-MATERIALS,MISCELLANEOUS AND SPECIALTY RETAIL STORES,GPC
WALSALL COUNCIL,http://opendatacommunities.org/id/metropolitan-district-council/walsall ,31/03/2024,CHILDRENS SERVICES,HOME BARGAINS,09/01/2024,H59620240111ZLQHGRRRH-1,24.73,REDRUTH ROAD-CLEANING MATERIALS,MISCELLANEOUS GENERAL MERCHANDISE,GPC
WALSALL COUNCIL,http://opendatacommunities.org/id/metropolitan-district-council/walsall ,31/03/2024,RESOURCES AND TRANSFORMATION,WWW.SCC.COM,09/01/2024,H59620240112OAJCUFYWN-1,3367.28,RECHARGEABLE EQUIPMENT-COMPUTER EQUIPMENT,"COMPUTERS, COMPUTER PERIPHERAL EQUIPMENT, SOFTWARE",GPC
WALSALL COUNCIL,http://opendatacommunities.org/id/metropolitan-district-council/walsall ,31/03/2024,CHILDRENS SERVICES,PAYPAL *TRAINLINE,09/01/2024,H59620240113AYIPULBLM-1,47.49,ST FRANCIS OF ASSISI CATHOLIC -EXTERNAL TRAINING,PASSENGER RAILWAYS,GPC
WALSALL COUNCIL,http://opendatacommunities.org/id/metropolitan-district-council/walsall ,31/03/2024,CHILDRENS SERVICES,AMZNMKTPLACE,10/01/2024,H59620240111GIDPLRMIP-1,16.38,YEAR ONE-MATERIALS,MISCELLANEOUS AND SPECIALTY RETAIL STORES,GPC
WALSALL COUNCIL,http://opendatacommunities.org/id/metropolitan-district-council/walsall ,31/03/2024,ECONOMY & ENVIRONMENT,AMZNMKTPLACE,10/01/2024,H59620240111GMORKLSSG-1,20.98,AREA PARTNERSHIPS-STATIONERY & GENERAL OFFICE SU,MISCELLANEOUS AND SPECIALTY RETAIL STORES,GPC
WALSALL COUNCIL,http://opendatacommunities.org/id/metropolitan-district-council/walsall ,31/03/2024,ECONOMY & ENVIRONMENT,ADOBE CREATIVE CLOUD,10/01/2024,H59620240111HPHJGMBEV-1,74.39,NAG - ART GALLERY MARKETING-SUBSCRIPTIONS,COMPUTER SOFTWARE STORES,GPC
WALSALL COUNCIL,http://opendatacommunities.org/id/metropolitan-district-council/walsall ,31/03/2024,CHILDRENS SERVICES,AMZNMKTPLACE,10/01/2024,H59620240111SYUPNSXUI-1,79.35,YOUTH JUSTICE SERVICE-STATIONERY & GENERAL OFFICE SU,MISCELLANEOUS AND SPECIALTY RETAIL STORES,GPC
WALSALL COUNCIL,http://opendatacommunities.org/id/metropolitan-district-council/walsall ,31/03/2024,CHILDRENS SERVICES,AMZNMKTPLACE,10/01/2024,H59620240111TXFYDFTHU-1,134.00,"HAF GRANT (HOLIDAY, ACTIVITIES-STATIONERY & GENERAL OFFICE SU",MISCELLANEOUS AND SPECIALTY RETAIL STORES,GPC
WALSALL COUNCIL,http://opendatacommunities.org/id/metropolitan-district-council/walsall ,31/03/2024,CHILDRENS SERVICES,AMZNMKTPLACE,10/01/2024,H59620240112ADREKTEJW-1,29.99,D T-MATERIALS,MISCELLANEOUS AND SPECIALTY RETAIL STORES,GPC
WALSALL COUNCIL,http://opendatacommunities.org/id/metropolitan-district-council/walsall ,31/03/2024,RESOURCES AND TRANSFORMATION,ASDA SUPERSTORE,10/01/2024,H59620240112ALPMHNZCL-1,28.25,CATERING - SCHOOLS-FOOD & DRINK SUPPLIES,GROCERY STORES AND SUPERMARKETS,GPC
WALSALL COUNCIL,http://opendatacommunities.org/id/metropolitan-district-council/walsall ,31/03/2024,RESOURCES AND TRANSFORMATION,ASDA SUPERSTORE,10/01/2024,H59620240112ALPMHNZCL-2,20.00,CATERING - SCHOOLS-FOOD & DRINK SUPPLIES,GROCERY STORES AND SUPERMARKETS,GPC
WALSALL COUNCIL,http://opendatacommunities.org/id/metropolitan-district-council/walsall ,31/03/2024,CHILDRENS CAPITAL,WH SMITH WALSALL,10/01/2024,H59620240112BKCTBNPAG-1,8.99,CFR 1359 DISABLED FACILITIES G-OTHER SUPPORT COSTS,NEWS DEALERS AND NEWSSTANDS,GPC
WALSALL COUNCIL,http://opendatacommunities.org/id/metropolitan-district-council/walsall ,31/03/2024,RESOURCES AND TRANSFORMATION,ARTHUR BRETT CATER,10/01/2024,H59620240112BKKKWGNHN-1,63.41,CATERING - SCHOOLS-FOOD & DRINK SUPPLIES,MISCELLANEOUS FOOD STORES & CONVENIENCE STORES,GPC
WALSALL COUNCIL,http://opendatacommunities.org/id/metropolitan-district-council/walsall ,31/03/2024,CHILDRENS SERVICES,AMZNMKTPLACE,10/01/2024,H59620240112BKORDQFQQ-1,42.38,ADMINISTRATIVE SUPPLIES-STATIONERY & GENERAL OFFICE SU,MISCELLANEOUS AND SPECIALTY RETAIL STORES,GPC
WALSALL COUNCIL,http://opendatacommunities.org/id/metropolitan-district-council/walsall ,31/03/2024,RESOURCES AND TRANSFORMATION,BLAKEMORE FOODSERVICE,10/01/2024,H59620240112BLEWRGLYF-1,31.08,CATERING - SCHOOLS-FOOD & DRINK SUPPLIES,CATERERS,GPC
WALSALL COUNCIL,http://opendatacommunities.org/id/metropolitan-district-council/walsall ,31/03/2024,RESOURCES AND TRANSFORMATION,BLAKEMORE FOODSERVICE,10/01/2024,H59620240112BLEWRGLYF-2,360.85,CATERING - SCHOOLS-FOOD & DRINK SUPPLIES,CATERERS,GPC
WALSALL COUNCIL,http://opendatacommunities.org/id/metropolitan-district-council/walsall ,31/03/2024,RESOURCES AND TRANSFORMATION,JOHAL DAIRIES LTD,10/01/2024,H59620240112BSEIAMOAE-1,41.04,TOWN HALL RESTAURANT BISTRO-FOOD & DRINK SUPPLIES,OTHER NONDURABLE GOODS,GPC
WALSALL COUNCIL,http://opendatacommunities.org/id/metropolitan-district-council/walsall ,31/03/2024,RESOURCES AND TRANSFORMATION,ARTHUR BRETT CATER,10/01/2024,H59620240112BUCWBLJWQ-1,91.76,CATERING - SCHOOLS-FOOD & DRINK SUPPLIES,MISCELLANEOUS FOOD STORES & CONVENIENCE STORES,GPC
WALSALL COUNCIL,http://opendatacommunities.org/id/metropolitan-district-council/walsall ,31/03/2024,ECONOMY & ENVIRONMENT,AMZNMKTPLACE,10/01/2024,H59620240112BZVYWYIKI-1,18.41,OAK PARK ACTIVE LIVING CENTRE-STATIONERY & GENERAL OFFICE SU,MISCELLANEOUS AND SPECIALTY RETAIL STORES,GPC
WALSALL COUNCIL,http://opendatacommunities.org/id/metropolitan-district-council/walsall ,31/03/2024,RESOURCES AND TRANSFORMATION,ARTHUR BRETT CATER,10/01/2024,H59620240112CDHNFCNKM-1,40.06,CATERING - SCHOOLS-FOOD & DRINK SUPPLIES,MISCELLANEOUS FOOD STORES & CONVENIENCE STORES,GPC
WALSALL COUNCIL,http://opendatacommunities.org/id/metropolitan-district-council/walsall ,31/03/2024,CHILDRENS SERVICES,AMZNMKTPLACE,10/01/2024,H59620240112CTGHQFEYJ-1,26.96,D T-MATERIALS,MISCELLANEOUS AND SPECIALTY RETAIL STORES,GPC
WALSALL COUNCIL,http://opendatacommunities.org/id/metropolitan-district-council/walsall ,31/03/2024,CHILDRENS SERVICES,AMZNMKTPLACE,10/01/2024,H59620240112CXHKISVXT-1,50.30,ADMINISTRATIVE SUPPLIES-MATERIALS,MISCELLANEOUS AND SPECIALTY RETAIL STORES,GPC
WALSALL COUNCIL,http://opendatacommunities.org/id/metropolitan-district-council/walsall ,31/03/2024,CHILDRENS SERVICES,BARONS COURT HOTEL,10/01/2024,H59620240112DMJIGIQVO-1,780.00,ROUGH SLEEPING INITIATIVE GRAN-BED & BREAKFAST PAYMENTS,"HOTELS, MOTELS, RESORTS",GPC
WALSALL COUNCIL,http://opendatacommunities.org/id/metropolitan-district-council/walsall ,31/03/2024,RESOURCES AND TRANSFORMATION,NOBISCO LIMITED,10/01/2024,H59620240112DSKQYRJHU-1,119.04,CATERING - SCHOOLS-FOOD & DRINK SUPPLIES,OTHER INDUSTRIAL SUPPLIES,GPC
WALSALL COUNCIL,http://opendatacommunities.org/id/metropolitan-district-council/walsall ,31/03/2024,CHILDRENS SERVICES,AMZNMKTPLACE,10/01/2024,H59620240112EARMDISJB-1,32.92,D T-MATERIALS,MISCELLANEOUS AND SPECIALTY RETAIL STORES,GPC
WALSALL COUNCIL,http://opendatacommunities.org/id/metropolitan-district-council/walsall ,31/03/2024,RESOURCES AND TRANSFORMATION,NOBISCO LIMITED,10/01/2024,H59620240112EFDOLVWQI-1,9.72,CATERING - SCHOOLS-FOOD & DRINK SUPPLIES,OTHER INDUSTRIAL SUPPLIES,GPC
WALSALL COUNCIL,http://opendatacommunities.org/id/metropolitan-district-council/walsall ,31/03/2024,RESOURCES AND TRANSFORMATION,BLAKEMORE FOODSERVICE,10/01/2024,H59620240112EKVVQTWRI-1,228.74,CATERING - SCHOOLS-FOOD & DRINK SUPPLIES,CATERERS,GPC
WALSALL COUNCIL,http://opendatacommunities.org/id/metropolitan-district-council/walsall ,31/03/2024,CHILDRENS SERVICES,TRAVELODGE GB0000,10/01/2024,H59620240112ERQUOQIEB-1,469.07,BED & BREAKFAST PAYMENTS-BED & BREAKFAST PAYMENTS,TRAVELODGE,GPC
WALSALL COUNCIL,http://opendatacommunities.org/id/metropolitan-district-council/walsall ,31/03/2024,CHILDRENS SERVICES,ASDA GROCERIES ONLINE,10/01/2024,H59620240112ESJKTLPKR-1,59.65,BREAKFAST CLUB-FOOD & DRINK SUPPLIES,GROCERY STORES AND SUPERMARKETS,GPC
WALSALL COUNCIL,http://opendatacommunities.org/id/metropolitan-district-council/walsall ,31/03/2024,CHILDRENS SERVICES,EB *OFSTED UPDATE-VIRT,10/01/2024,H59620240112ETKKLWUDK-1,99.00,OLD HALL SCHOOL-EXTERNAL TRAINING,OTHER BUSINESS SERVICES,GPC
WALSALL COUNCIL,http://opendatacommunities.org/id/metropolitan-district-council/walsall ,31/03/2024,CHILDRENS SERVICES,ALDI 772 129,10/01/2024,H59620240112ETLCYMCCN-1,11.21,EARLY YEARS DEPARTMENT-MATERIALS,GROCERY STORES AND SUPERMARKETS,GPC
WALSALL COUNCIL,http://opendatacommunities.org/id/metropolitan-district-council/walsall ,31/03/2024,RESOURCES AND TRANSFORMATION,BLAKEMORE FOODSERVICE,10/01/2024,H59620240112EURMVFWTH-1,84.33,CATERING - SCHOOLS-FOOD & DRINK SUPPLIES,CATERERS,GPC
WALSALL COUNCIL,http://opendatacommunities.org/id/metropolitan-district-council/walsall ,31/03/2024,CHILDRENS SERVICES,TENPIN.CO.UK,10/01/2024,H59620240112FQPBRBUOU-1,35.50,REDRUTH ROAD-RESIDENTS PERSONAL EXPENSES-AL,BOWLING ALLEYS,GPC
WALSALL COUNCIL,http://opendatacommunities.org/id/metropolitan-district-council/walsall ,31/03/2024,CHILDRENS SERVICES,AMZNMKTPLACE,10/01/2024,H59620240112FTDYOBIMI-1,72.12,D T-MATERIALS,MISCELLANEOUS AND SPECIALTY RETAIL STORES,GPC
WALSALL COUNCIL,http://opendatacommunities.org/id/metropolitan-district-council/walsall ,31/03/2024,CHILDRENS SERVICES,AMZNMKTPLACE,10/01/2024,H59620240112FTROVLPXW-1,26.08,E19-MATERIALS,MISCELLANEOUS AND SPECIALTY RETAIL STORES,GPC
WALSALL COUNCIL,http://opendatacommunities.org/id/metropolitan-district-council/walsall ,31/03/2024,CHILDRENS SERVICES,CAN I GO AND PLAY NOW,10/01/2024,H59620240112FWGBMRQRE-1,37.50,MILLFIELD PRIMARY SCHOOL-EXTERNAL TRAINING,"THEATRICAL PRODUCERS, TIC",GPC
WALSALL COUNCIL,http://opendatacommunities.org/id/metropolitan-district-council/walsall ,31/03/2024,CHILDRENS SERVICES,B&M 419 - HS REEDSWOOD,10/01/2024,H59620240112FYAKPGVTY-1,70.10,PINE VIEW-CLEANING MATERIALS,MISCELLANEOUS GENERAL MERCHANDISE,GPC
WALSALL COUNCIL,http://opendatacommunities.org/id/metropolitan-district-council/walsall ,31/03/2024,RESOURCES AND TRANSFORMATION,BLAKEMORE FOODSERVICE,10/01/2024,H59620240112FYAWVYUQH-1,20.84,CATERING - SCHOOLS-FOOD & DRINK SUPPLIES,CATERERS,GPC
WALSALL COUNCIL,http://opendatacommunities.org/id/metropolitan-district-council/walsall ,31/03/2024,RESOURCES AND TRANSFORMATION,BLAKEMORE FOODSERVICE,10/01/2024,H59620240112FYAWVYUQH-2,540.85,CATERING - SCHOOLS-FOOD & DRINK SUPPLIES,CATERERS,GPC
WALSALL COUNCIL,http://opendatacommunities.org/id/metropolitan-district-council/walsall ,31/03/2024,CHILDRENS SERVICES,NANDOS WALSALL,10/01/2024,H59620240112GAVAUYBMD-1,17.25,CORPORATE PARENTING-PARTICIPATION BUDGETS,"EATING PLACES, RESTAURANTS",GPC
WALSALL COUNCIL,http://opendatacommunities.org/id/metropolitan-district-council/walsall ,31/03/2024,RESOURCES AND TRANSFORMATION,BLAKEMORE FOODSERVICE,10/01/2024,H59620240112GGCOHPOUW-1,59.56,CATERING - SCHOOLS-FOOD & DRINK SUPPLIES,CATERERS,GPC
WALSALL COUNCIL,http://opendatacommunities.org/id/metropolitan-district-council/walsall ,31/03/2024,RESOURCES AND TRANSFORMATION,BLAKEMORE FOODSERVICE,10/01/2024,H59620240112GGCOHPOUW-2,947.07,CATERING - SCHOOLS-FOOD & DRINK SUPPLIES,CATERERS,GPC
WALSALL COUNCIL,http://opendatacommunities.org/id/metropolitan-district-council/walsall ,31/03/2024,RESOURCES AND TRANSFORMATION,BLAKEMORE FOODSERVICE,10/01/2024,H59620240112GTICXKEVW-1,38.71,CATERING - SCHOOLS-FOOD & DRINK SUPPLIES,CATERERS,GPC
WALSALL COUNCIL,http://opendatacommunities.org/id/metropolitan-district-council/walsall ,31/03/2024,RESOURCES AND TRANSFORMATION,BLAKEMORE FOODSERVICE,10/01/2024,H59620240112GTICXKEVW-2,690.28,CATERING - SCHOOLS-FOOD & DRINK SUPPLIES,CATERERS,GPC
WALSALL COUNCIL,http://opendatacommunities.org/id/metropolitan-district-council/walsall ,31/03/2024,CHILDRENS SERVICES,AMZNMKTPLACE,10/01/2024,H59620240112HBTLWDYQJ-1,74.67,D T-MATERIALS,MISCELLANEOUS AND SPECIALTY RETAIL STORES,GPC
WALSALL COUNCIL,http://opendatacommunities.org/id/metropolitan-district-council/walsall ,31/03/2024,CHILDRENS SERVICES,ALDI 772 129,10/01/2024,H59620240112HBXOBNDTG-1,0.39,EARLY YEARS DEPARTMENT-MATERIALS,GROCERY STORES AND SUPERMARKETS,GPC
WALSALL COUNCIL,http://opendatacommunities.org/id/metropolitan-district-council/walsall ,31/03/2024,RESOURCES AND TRANSFORMATION,NOBISCO LIMITED,10/01/2024,H59620240112IGFESUZOQ-1,114.78,CATERING - SCHOOLS-FOOD & DRINK SUPPLIES,OTHER INDUSTRIAL SUPPLIES,GPC
WALSALL COUNCIL,http://opendatacommunities.org/id/metropolitan-district-council/walsall ,31/03/2024,CHILDRENS SERVICES,AMZNMKTPLACE,10/01/2024,H59620240112IJQGFDKSW-1,4.55,REDRUTH ROAD-STATIONERY & GENERAL OFFICE SU,MISCELLANEOUS AND SPECIALTY RETAIL STORES,GPC
WALSALL COUNCIL,http://opendatacommunities.org/id/metropolitan-district-council/walsall ,31/03/2024,CHILDRENS SERVICES,AMAZON.CO.UK*805VF94U5,10/01/2024,H59620240112IMVGIGEYH-1,99.99,EH - OPCC GRANT (VIA WSP)-FOOD & DRINK SUPPLIES,OTHER DIRECT MARKETING-OTHER DIRECT MARKETERS,GPC
WALSALL COUNCIL,http://opendatacommunities.org/id/metropolitan-district-council/walsall ,31/03/2024,CHILDRENS SERVICES,REEDSWOOD,10/01/2024,H59620240112ITDDTOOWP-1,10.00,PINE VIEW-CLEANING MATERIALS,DISCOUNT STORES,GPC
WALSALL COUNCIL,http://opendatacommunities.org/id/metropolitan-district-council/walsall ,31/03/2024,CHILDRENS SERVICES,AMZNMKTPLACE,10/01/2024,H59620240112ITRQYWXOH-1,13.31,D T-MATERIALS,MISCELLANEOUS AND SPECIALTY RETAIL STORES,GPC
WALSALL COUNCIL,http://opendatacommunities.org/id/metropolitan-district-council/walsall ,31/03/2024,CHILDRENS SERVICES,FLIP OUT TELFORD,10/01/2024,H59620240112IUFUWZRJJ-1,170.00,REWARDS-MATERIALS,OTHER RECREATION SERVICES,GPC
WALSALL COUNCIL,http://opendatacommunities.org/id/metropolitan-district-council/walsall ,31/03/2024,CHILDRENS SERVICES,ASDA GROCERIES ONLINE,10/01/2024,H59620240112JHOJKWVGW-1,3.00,BREAKFAST CLUB-FOOD & DRINK SUPPLIES,GROCERY STORES AND SUPERMARKETS,GPC
WALSALL COUNCIL,http://opendatacommunities.org/id/metropolitan-district-council/walsall ,31/03/2024,CHILDRENS SERVICES,LIDL GB WALSALL,10/01/2024,H59620240112JMIWVGHSO-1,14.62,THE CRESCENT-FOOD & DRINK SUPPLIES,GROCERY STORES AND SUPERMARKETS,GPC
WALSALL COUNCIL,http://opendatacommunities.org/id/metropolitan-district-council/walsall ,31/03/2024,RESOURCES AND TRANSFORMATION,BLAKEMORE FOODSERVICE,10/01/2024,H59620240112JMKNZOSVR-1,367.99,CATERING - SCHOOLS-FOOD & DRINK SUPPLIES,CATERERS,GPC
WALSALL COUNCIL,http://opendatacommunities.org/id/metropolitan-district-council/walsall ,31/03/2024,CHILDRENS SERVICES,FIRSTAID4LESS,10/01/2024,H59620240112JRFRNRXPJ-1,21.30,PELSALL VILLAGE SCHOOL-PERSONAL REQUISITES-MATERIALS,OTHER COMMERCIAL EQUIPMENT,GPC
WALSALL COUNCIL,http://opendatacommunities.org/id/metropolitan-district-council/walsall ,31/03/2024,CHILDRENS SERVICES,NANDOS WALSALL,10/01/2024,H59620240112KFNLBPDOH-1,80.75,CORPORATE PARENTING-PARTICIPATION BUDGETS,"EATING PLACES, RESTAURANTS",GPC
WALSALL COUNCIL,http://opendatacommunities.org/id/metropolitan-district-council/walsall ,31/03/2024,CHILDRENS SERVICES,AMZNMKTPLACE,10/01/2024,H59620240112KISVMCTJM-1,43.90,E19-MATERIALS,MISCELLANEOUS AND SPECIALTY RETAIL STORES,GPC
WALSALL COUNCIL,http://opendatacommunities.org/id/metropolitan-district-council/walsall ,31/03/2024,CHILDRENS SERVICES,AMZNMKTPLACE,10/01/2024,H59620240112KQBCTERTP-1,38.97,BLUEBELLS-STATIONERY & GENERAL OFFICE SU,MISCELLANEOUS AND SPECIALTY RETAIL STORES,GPC
WALSALL COUNCIL,http://opendatacommunities.org/id/metropolitan-district-council/walsall ,31/03/2024,RESOURCES AND TRANSFORMATION,BLAKEMORE FOODSERVICE,10/01/2024,H59620240112LEUVEIMTN-1,38.71,CATERING - SCHOOLS-FOOD & DRINK SUPPLIES,CATERERS,GPC
WALSALL COUNCIL,http://opendatacommunities.org/id/metropolitan-district-council/walsall ,31/03/2024,RESOURCES AND TRANSFORMATION,BLAKEMORE FOODSERVICE,10/01/2024,H59620240112LEUVEIMTN-2,713.62,CATERING - SCHOOLS-FOOD & DRINK SUPPLIES,CATERERS,GPC
WALSALL COUNCIL,http://opendatacommunities.org/id/metropolitan-district-council/walsall ,31/03/2024,RESOURCES AND TRANSFORMATION,ARTHUR BRETT CATER,10/01/2024,H59620240112LHDXIGQVX-1,142.29,CATERING - SCHOOLS-FOOD & DRINK SUPPLIES,MISCELLANEOUS FOOD STORES & CONVENIENCE STORES,GPC
WALSALL COUNCIL,http://opendatacommunities.org/id/metropolitan-district-council/walsall ,31/03/2024,RESOURCES AND TRANSFORMATION,NOBISCO LIMITED,10/01/2024,H59620240112MBLTARMXY-1,74.27,CATERING - SCHOOLS-FOOD & DRINK SUPPLIES,OTHER INDUSTRIAL SUPPLIES,GPC
WALSALL COUNCIL,http://opendatacommunities.org/id/metropolitan-district-council/walsall ,31/03/2024,ECONOMY & ENVIRONMENT,AMZNMKTPLACE,10/01/2024,H59620240112MGPOFYUNU-1,51.44,WALSALL ARENA AND ARTS CENTRE-MATERIALS,MISCELLANEOUS AND SPECIALTY RETAIL STORES,GPC
WALSALL COUNCIL,http://opendatacommunities.org/id/metropolitan-district-council/walsall ,31/03/2024,RESOURCES AND TRANSFORMATION,NOBISCO LIMITED,10/01/2024,H59620240112MMSDIWJJE-1,114.59,CATERING - SCHOOLS-FOOD & DRINK SUPPLIES,OTHER INDUSTRIAL SUPPLIES,GPC
WALSALL COUNCIL,http://opendatacommunities.org/id/metropolitan-district-council/walsall ,31/03/2024,RESOURCES AND TRANSFORMATION,ARTHUR BRETT CATER,10/01/2024,H59620240112MOKXHCJKY-1,87.90,CATERING - SCHOOLS-FOOD & DRINK SUPPLIES,MISCELLANEOUS FOOD STORES & CONVENIENCE STORES,GPC
WALSALL COUNCIL,http://opendatacommunities.org/id/metropolitan-district-council/walsall ,31/03/2024,CHILDRENS SERVICES,AMZNMKTPLACE,10/01/2024,H59620240112MOLQSAHDX-1,35.98,E19-MATERIALS,MISCELLANEOUS AND SPECIALTY RETAIL STORES,GPC
WALSALL COUNCIL,http://opendatacommunities.org/id/metropolitan-district-council/walsall ,31/03/2024,RESOURCES AND TRANSFORMATION,WWW.BANNERUK.COM,10/01/2024,H59620240112MPULXGWWB-1,19.56,HR ADMIN HUB-STATIONERY & GENERAL OFFICE SU,"STATIONERY, OFFICE SUPPLIES AND WRITING PAPER",GPC
WALSALL COUNCIL,http://opendatacommunities.org/id/metropolitan-district-council/walsall ,31/03/2024,CHILDRENS SERVICES,AMAZON.CO.UK*N34Y58YJ5,10/01/2024,H59620240112MPXKEMLUL-1,15.00,HOUSEHOLD SUPPORT FUND - OCT-M-MATERIALS,OTHER DIRECT MARKETING-OTHER DIRECT MARKETERS,GPC
WALSALL COUNCIL,http://opendatacommunities.org/id/metropolitan-district-council/walsall ,31/03/2024,RESOURCES AND TRANSFORMATION,BLAKEMORE FOODSERVICE,10/01/2024,H59620240112MXCDOHLKF-1,482.84,CATERING - SCHOOLS-FOOD & DRINK SUPPLIES,CATERERS,GPC
WALSALL COUNCIL,http://opendatacommunities.org/id/metropolitan-district-council/walsall ,31/03/2024,RESOURCES AND TRANSFORMATION,BLAKEMORE FOODSERVICE,10/01/2024,H59620240112MXCDOHLKF-2,643.90,CATERING - MANAGEMENT-FOOD & DRINK SUPPLIES,CATERERS,GPC
WALSALL COUNCIL,http://opendatacommunities.org/id/metropolitan-district-council/walsall ,31/03/2024,ECONOMY & ENVIRONMENT,TOOLSTATION LTD,10/01/2024,H59620240112NADGUPIWK-1,21.96,INFRASTRUCTURE MAINTENANCE-GROUNDS MAINTENANCE,LUMBER & BUILDING MATERIALS STORES,GPC
WALSALL COUNCIL,http://opendatacommunities.org/id/metropolitan-district-council/walsall ,31/03/2024,CHILDRENS SERVICES,AMZNMKTPLACE,10/01/2024,H59620240112NGOMJEYCU-1,45.54,ADMINISTRATIVE SUPPLIES-MATERIALS,MISCELLANEOUS AND SPECIALTY RETAIL STORES,GPC
WALSALL COUNCIL,http://opendatacommunities.org/id/metropolitan-district-council/walsall ,31/03/2024,CHILDRENS SERVICES,WP*JO JOOF DESIGNS,10/01/2024,H59620240112NIIJYKFTH-1,43.99,ENGLISH/READING-MATERIALS,BOOK STORES,GPC
WALSALL COUNCIL,http://opendatacommunities.org/id/metropolitan-district-council/walsall ,31/03/2024,CHILDRENS SERVICES,AMZNMKTPLACE,10/01/2024,H59620240112NLSMDRQPU-1,8.49,BLUEBELLS-STATIONERY & GENERAL OFFICE SU,MISCELLANEOUS AND SPECIALTY RETAIL STORES,GPC
WALSALL COUNCIL,http://opendatacommunities.org/id/metropolitan-district-council/walsall ,31/03/2024,CHILDRENS SERVICES,ASDA GROCERIES ONLINE,10/01/2024,H59620240112NNTITYGUE-1,-0.50,DT-MATERIALS,GROCERY STORES AND SUPERMARKETS,GPC
WALSALL COUNCIL,http://opendatacommunities.org/id/metropolitan-district-council/walsall ,31/03/2024,CHILDRENS SERVICES,WP-DOUBLESTRUCK LT,10/01/2024,H59620240112NOAIJPSVH-1,354.00,LEAMORE PRIMARY SCHOOL-MATERIALS,"COMPUTER PROGRAM, SYSTEM DESIGN",GPC
WALSALL COUNCIL,http://opendatacommunities.org/id/metropolitan-district-council/walsall ,31/03/2024,ECONOMY & ENVIRONMENT,LINWOOD TRADE SUPPLIES,10/01/2024,H59620240112NOWNLDWAQ-1,38.00,WALSALL ARENA AND ARTS CENTRE-PURCHASE OF FURNITURE & EQUIPM,HOME SUPPLY WAREHOUSE STORES,GPC
WALSALL COUNCIL,http://opendatacommunities.org/id/metropolitan-district-council/walsall ,31/03/2024,RESOURCES AND TRANSFORMATION,ARTHUR BRETT CATER,10/01/2024,H59620240112NSNNVWFQO-1,32.78,CATERING - SCHOOLS-FOOD & DRINK SUPPLIES,MISCELLANEOUS FOOD STORES & CONVENIENCE STORES,GPC
WALSALL COUNCIL,http://opendatacommunities.org/id/metropolitan-district-council/walsall ,31/03/2024,CHILDRENS SERVICES,AMZNMKTPLACE,10/01/2024,H59620240112NWOBJHZFV-1,9.35,E19-MATERIALS,MISCELLANEOUS AND SPECIALTY RETAIL STORES,GPC
WALSALL COUNCIL,http://opendatacommunities.org/id/metropolitan-district-council/walsall ,31/03/2024,RESOURCES AND TRANSFORMATION,ARTHUR BRETT CATER,10/01/2024,H59620240112OTZUIXGUU-1,120.38,CATERING - SCHOOLS-FOOD & DRINK SUPPLIES,MISCELLANEOUS FOOD STORES & CONVENIENCE STORES,GPC
WALSALL COUNCIL,http://opendatacommunities.org/id/metropolitan-district-council/walsall ,31/03/2024,CHILDRENS SERVICES,TESCO STORES 6161,10/01/2024,H59620240112OUZCSCSJH-1,10.00,ROUGH SLEEPING INITIATIVE GRAN-FOOD & DRINK SUPPLIES,GROCERY STORES AND SUPERMARKETS,GPC
WALSALL COUNCIL,http://opendatacommunities.org/id/metropolitan-district-council/walsall ,31/03/2024,CHILDRENS SERVICES,TESCO STORES 6161,10/01/2024,H59620240112OUZCSCSJH-2,18.99,ROUGH SLEEPING INITIATIVE GRAN-FOOD & DRINK SUPPLIES,GROCERY STORES AND SUPERMARKETS,GPC
WALSALL COUNCIL,http://opendatacommunities.org/id/metropolitan-district-council/walsall ,31/03/2024,CHILDRENS SERVICES,WM MORRISONS STORE PICK,10/01/2024,H59620240112OYHWPKPPD-1,99.98,SPECIAL FACILITIES - BEFORE/AF-FOOD & DRINK SUPPLIES,GROCERY STORES AND SUPERMARKETS,GPC
WALSALL COUNCIL,http://opendatacommunities.org/id/metropolitan-district-council/walsall ,31/03/2024,CHILDRENS SERVICES,WWW.SANDWELL.GOV.UK,10/01/2024,H59620240112PCPWREEUF-1,11.00,ROUGH SLEEPING INITIATIVE GRAN-FEES & LICENCES,GOVERNMENT SERVICES,GPC
WALSALL COUNCIL,http://opendatacommunities.org/id/metropolitan-district-council/walsall ,31/03/2024,CHILDRENS SERVICES,AMZNMKTPLACE,10/01/2024,H59620240112PINIYPJHD-1,40.99,ADMINISTRATIVE SUPPLIES-MATERIALS,MISCELLANEOUS AND SPECIALTY RETAIL STORES,GPC
WALSALL COUNCIL,http://opendatacommunities.org/id/metropolitan-district-council/walsall ,31/03/2024,CHILDRENS SERVICES,AMZNMKTPLACE,10/01/2024,H59620240112PKHXQTNYV-1,49.99,EH - OPCC GRANT (VIA WSP)-STATIONERY & GENERAL OFFICE SU,MISCELLANEOUS AND SPECIALTY RETAIL STORES,GPC
WALSALL COUNCIL,http://opendatacommunities.org/id/metropolitan-district-council/walsall ,31/03/2024,RESOURCES AND TRANSFORMATION,ARTHUR BRETT CATER,10/01/2024,H59620240112PQDIXMHWH-1,24.03,CATERING - SCHOOLS-FOOD & DRINK SUPPLIES,MISCELLANEOUS FOOD STORES & CONVENIENCE STORES,GPC
WALSALL COUNCIL,http://opendatacommunities.org/id/metropolitan-district-council/walsall ,31/03/2024,CHILDRENS SERVICES,AMZNMKTPLACE,10/01/2024,H59620240112PWDOSFDIM-1,5.05,ADMINISTRATIVE SUPPLIES-MATERIALS,MISCELLANEOUS AND SPECIALTY RETAIL STORES,GPC
WALSALL COUNCIL,http://opendatacommunities.org/id/metropolitan-district-council/walsall ,31/03/2024,RESOURCES AND TRANSFORMATION,BLAKEMORE FOODSERVICE,10/01/2024,H59620240112PWRJPTAPE-1,38.71,CATERING - SCHOOLS-FOOD & DRINK SUPPLIES,CATERERS,GPC
WALSALL COUNCIL,http://opendatacommunities.org/id/metropolitan-district-council/walsall ,31/03/2024,RESOURCES AND TRANSFORMATION,BLAKEMORE FOODSERVICE,10/01/2024,H59620240112PWRJPTAPE-2,501.13,CATERING - SCHOOLS-FOOD & DRINK SUPPLIES,CATERERS,GPC
WALSALL COUNCIL,http://opendatacommunities.org/id/metropolitan-district-council/walsall ,31/03/2024,RESOURCES AND TRANSFORMATION,BLAKEMORE FOODSERVICE,10/01/2024,H59620240112PYUSXXFKH-1,297.78,CATERING - SCHOOLS-FOOD & DRINK SUPPLIES,CATERERS,GPC
WALSALL COUNCIL,http://opendatacommunities.org/id/metropolitan-district-council/walsall ,31/03/2024,RESOURCES AND TRANSFORMATION,BLAKEMORE FOODSERVICE,10/01/2024,H59620240112PYUSXXFKH-2,1423.26,CATERING - SCHOOLS-FOOD & DRINK SUPPLIES,CATERERS,GPC
WALSALL COUNCIL,http://opendatacommunities.org/id/metropolitan-district-council/walsall ,31/03/2024,ECONOMY & ENVIRONMENT,AMZNMKTPLACE,10/01/2024,H59620240112QDCVUFKJB-1,15.49,WALSALL GALA SWIMMING AND FITN-STATIONERY & GENERAL OFFICE SU,MISCELLANEOUS AND SPECIALTY RETAIL STORES,GPC
WALSALL COUNCIL,http://opendatacommunities.org/id/metropolitan-district-council/walsall ,31/03/2024,ECONOMY & ENVIRONMENT,AMZNMKTPLACE,10/01/2024,H59620240112QDCVUFKJB-2,22.49,WALSALL GALA SWIMMING AND FITN-STATIONERY & GENERAL OFFICE SU,MISCELLANEOUS AND SPECIALTY RETAIL STORES,GPC
WALSALL COUNCIL,http://opendatacommunities.org/id/metropolitan-district-council/walsall ,31/03/2024,CHILDRENS SERVICES,WM MORRISONS STORE PICK,10/01/2024,H59620240112QHBMOKTKC-1,47.68,E19-MATERIALS,GROCERY STORES AND SUPERMARKETS,GPC
WALSALL COUNCIL,http://opendatacommunities.org/id/metropolitan-district-council/walsall ,31/03/2024,RESOURCES AND TRANSFORMATION,ARTHUR BRETT CATER,10/01/2024,H59620240112QVROLSZJP-1,71.04,CATERING - SCHOOLS-FOOD & DRINK SUPPLIES,MISCELLANEOUS FOOD STORES & CONVENIENCE STORES,GPC
WALSALL COUNCIL,http://opendatacommunities.org/id/metropolitan-district-council/walsall ,31/03/2024,CHILDRENS SERVICES,EG LEAMORE ASDA SERVICE S,10/01/2024,H59620240112RCYUWHTSP-1,75.00,SANDBANK NURSERY SCHOOL-FUEL FOR VEHICLES,SERVICE STATIONS,GPC
WALSALL COUNCIL,http://opendatacommunities.org/id/metropolitan-district-council/walsall ,31/03/2024,RESOURCES AND TRANSFORMATION,ARTHUR BRETT CATER,10/01/2024,H59620240112SALKPKBPI-1,60.38,CATERING - SCHOOLS-FOOD & DRINK SUPPLIES,MISCELLANEOUS FOOD STORES & CONVENIENCE STORES,GPC
WALSALL COUNCIL,http://opendatacommunities.org/id/metropolitan-district-council/walsall ,31/03/2024,CHILDRENS SERVICES,ACTIVEWEARG,10/01/2024,H59620240112SMPBJOCBW-1,49.94,RUSHALL PRIMARY SCHOOL-OTHER EXPENSES,"MEN'S, WOMEN'S, AND CHILDREN'S UNIFORMS",GPC
WALSALL COUNCIL,http://opendatacommunities.org/id/metropolitan-district-council/walsall ,31/03/2024,CHILDRENS SERVICES,ASDA,10/01/2024,H59620240112TNPAHTSUJ-1,15.20,LOCALITY FAMILY SUPPORT-NORTH-FOOD & DRINK SUPPLIES,GROCERY STORES AND SUPERMARKETS,GPC
WALSALL COUNCIL,http://opendatacommunities.org/id/metropolitan-district-council/walsall ,31/03/2024,CHILDRENS SERVICES,ASDA,10/01/2024,H59620240112TNPAHTSUJ-2,20.50,LOCALITY FAMILY SUPPORT-NORTH-FOOD & DRINK SUPPLIES,GROCERY STORES AND SUPERMARKETS,GPC
WALSALL COUNCIL,http://opendatacommunities.org/id/metropolitan-district-council/walsall ,31/03/2024,RESOURCES AND TRANSFORMATION,BLAKEMORE FOODSERVICE,10/01/2024,H59620240112TQTTGWBMK-1,79.32,CATERING - SCHOOLS-FOOD & DRINK SUPPLIES,CATERERS,GPC
WALSALL COUNCIL,http://opendatacommunities.org/id/metropolitan-district-council/walsall ,31/03/2024,CHILDRENS SERVICES,MATALAN,10/01/2024,H59620240112TQVYLTQSR-1,41.50,"43A HILTON ROAD, WILLENHALL-CLOTHING & LAUNDRY",MENS AND WOMENS CLOTHING STORES,GPC
WALSALL COUNCIL,http://opendatacommunities.org/id/metropolitan-district-council/walsall ,31/03/2024,CHILDRENS SERVICES,AMAZON.CO.UK*3N4XD7XO5,10/01/2024,H59620240112TVIIBVWHD-1,8.00,ELMWOOD SCHOOL-OPERATIONAL MAINTENANCE,OTHER DIRECT MARKETING-OTHER DIRECT MARKETERS,GPC
WALSALL COUNCIL,http://opendatacommunities.org/id/metropolitan-district-council/walsall ,31/03/2024,RESOURCES AND TRANSFORMATION,ARTHUR BRETT CATER,10/01/2024,H59620240112TXPJGBYKB-1,122.26,CATERING - SCHOOLS-FOOD & DRINK SUPPLIES,MISCELLANEOUS FOOD STORES & CONVENIENCE STORES,GPC
WALSALL COUNCIL,http://opendatacommunities.org/id/metropolitan-district-council/walsall ,31/03/2024,RESOURCES AND TRANSFORMATION,ARTHUR BRETT CATER,10/01/2024,H59620240112TYOZHRLFN-1,175.64,CATERING - SCHOOLS-FOOD & DRINK SUPPLIES,MISCELLANEOUS FOOD STORES & CONVENIENCE STORES,GPC
WALSALL COUNCIL,http://opendatacommunities.org/id/metropolitan-district-council/walsall ,31/03/2024,CHILDRENS SERVICES,WP*JO JOOF DESIGNS,10/01/2024,H59620240112UBGGMEEGM-1,84.00,OLD HALL SCHOOL-MATERIALS,BOOK STORES,GPC
WALSALL COUNCIL,http://opendatacommunities.org/id/metropolitan-district-council/walsall ,31/03/2024,RESOURCES AND TRANSFORMATION,ARTHUR BRETT CATER,10/01/2024,H59620240112UGYUHTDJX-1,54.90,CATERING - SCHOOLS-FOOD & DRINK SUPPLIES,MISCELLANEOUS FOOD STORES & CONVENIENCE STORES,GPC
WALSALL COUNCIL,http://opendatacommunities.org/id/metropolitan-district-council/walsall ,31/03/2024,RESOURCES AND TRANSFORMATION,ARTHUR BRETT CATER,10/01/2024,H59620240112UHJOIEMJV-1,38.74,CATERING - SCHOOLS-FOOD & DRINK SUPPLIES,MISCELLANEOUS FOOD STORES & CONVENIENCE STORES,GPC
WALSALL COUNCIL,http://opendatacommunities.org/id/metropolitan-district-council/walsall ,31/03/2024,ADULT SOCIAL CARE,EB *BSPHN 2024 CONFERE,10/01/2024,H59620240112UKGBJBLNP-1,360.00,POLICY & STRATEGY-CONFERENCE EXPENSES,OTHER BUSINESS SERVICES,GPC
WALSALL COUNCIL,http://opendatacommunities.org/id/metropolitan-district-council/walsall ,31/03/2024,CHILDRENS SERVICES,ASDA GROCERIES ONLINE,10/01/2024,H59620240112UTJPDTEQC-1,8.20,DT-MATERIALS,GROCERY STORES AND SUPERMARKETS,GPC
WALSALL COUNCIL,http://opendatacommunities.org/id/metropolitan-district-council/walsall ,31/03/2024,CHILDRENS SERVICES,ASDA GROCERIES ONLINE,10/01/2024,H59620240112UTJPDTEQC-2,53.44,DT-MATERIALS,GROCERY STORES AND SUPERMARKETS,GPC
WALSALL COUNCIL,http://opendatacommunities.org/id/metropolitan-district-council/walsall ,31/03/2024,CHILDRENS SERVICES,AMZNMKTPLACE,10/01/2024,H59620240112UUJRQRNSC-1,24.98,GENERAL SUPPLIES SH-STATIONERY & GENERAL OFFICE SU,MISCELLANEOUS AND SPECIALTY RETAIL STORES,GPC
WALSALL COUNCIL,http://opendatacommunities.org/id/metropolitan-district-council/walsall ,31/03/2024,CHILDRENS SERVICES,BARONS COURT HOTEL,10/01/2024,H59620240112UXFPMQULO-1,170.00,ROUGH SLEEPING INITIATIVE GRAN-BED & BREAKFAST PAYMENTS,"HOTELS, MOTELS, RESORTS",GPC
WALSALL COUNCIL,http://opendatacommunities.org/id/metropolitan-district-council/walsall ,31/03/2024,RESOURCES AND TRANSFORMATION,BLAKEMORE FOODSERVICE,10/01/2024,H59620240112VCZNSJDVI-1,105.84,CATERING - SCHOOLS-FOOD & DRINK SUPPLIES,CATERERS,GPC
WALSALL COUNCIL,http://opendatacommunities.org/id/metropolitan-district-council/walsall ,31/03/2024,RESOURCES AND TRANSFORMATION,BLAKEMORE FOODSERVICE,10/01/2024,H59620240112VCZNSJDVI-2,1185.68,CATERING - SCHOOLS-FOOD & DRINK SUPPLIES,CATERERS,GPC
WALSALL COUNCIL,http://opendatacommunities.org/id/metropolitan-district-council/walsall ,31/03/2024,RESOURCES AND TRANSFORMATION,BLAKEMORE FOODSERVICE,10/01/2024,H59620240112VEEWRHQGA-1,-31.12,CATERING - SCHOOLS-FOOD & DRINK SUPPLIES,CATERERS,GPC
WALSALL COUNCIL,http://opendatacommunities.org/id/metropolitan-district-council/walsall ,31/03/2024,RESOURCES AND TRANSFORMATION,BLAKEMORE FOODSERVICE,10/01/2024,H59620240112VJEPEXQCN-1,40.54,CATERING - SCHOOLS-FOOD & DRINK SUPPLIES,CATERERS,GPC
WALSALL COUNCIL,http://opendatacommunities.org/id/metropolitan-district-council/walsall ,31/03/2024,RESOURCES AND TRANSFORMATION,NOBISCO LIMITED,10/01/2024,H59620240112VOKMSRKUW-1,89.09,CATERING - SCHOOLS-FOOD & DRINK SUPPLIES,OTHER INDUSTRIAL SUPPLIES,GPC
WALSALL COUNCIL,http://opendatacommunities.org/id/metropolitan-district-council/walsall ,31/03/2024,RESOURCES AND TRANSFORMATION,ARTHUR BRETT CATER,10/01/2024,H59620240112VORDMHDYT-1,122.39,CATERING - SCHOOLS-FOOD & DRINK SUPPLIES,MISCELLANEOUS FOOD STORES & CONVENIENCE STORES,GPC
WALSALL COUNCIL,http://opendatacommunities.org/id/metropolitan-district-council/walsall ,31/03/2024,CHILDRENS SERVICES,WWW.AVPARTMASTER.NET,10/01/2024,H59620240112VUUFFOLMX-1,90.00,ICT LEARNING RESOURCES-MATERIALS,ELECTRONIC REPAIR SHOPS,GPC
WALSALL COUNCIL,http://opendatacommunities.org/id/metropolitan-district-council/walsall ,31/03/2024,RESOURCES AND TRANSFORMATION,BLAKEMORE FOODSERVICE,10/01/2024,H59620240112WPDDCYBOZ-1,40.73,CATERING - SCHOOLS-FOOD & DRINK SUPPLIES,CATERERS,GPC
WALSALL COUNCIL,http://opendatacommunities.org/id/metropolitan-district-council/walsall ,31/03/2024,RESOURCES AND TRANSFORMATION,BLAKEMORE FOODSERVICE,10/01/2024,H59620240112WPDDCYBOZ-2,1123.77,CATERING - SCHOOLS-FOOD & DRINK SUPPLIES,CATERERS,GPC
WALSALL COUNCIL,http://opendatacommunities.org/id/metropolitan-district-council/walsall ,31/03/2024,RESOURCES AND TRANSFORMATION,BLAKEMORE FOODSERVICE,10/01/2024,H59620240112XHVISCMDO-1,-29.41,CATERING - SCHOOLS-FOOD & DRINK SUPPLIES,CATERERS,GPC
WALSALL COUNCIL,http://opendatacommunities.org/id/metropolitan-district-council/walsall ,31/03/2024,ECONOMY & ENVIRONMENT,TESCO STORES 6161,10/01/2024,H59620240112XIIZCOPDA-1,1.45,LEATHER MUSEUM-FOOD & DRINK SUPPLIES,GROCERY STORES AND SUPERMARKETS,GPC
WALSALL COUNCIL,http://opendatacommunities.org/id/metropolitan-district-council/walsall ,31/03/2024,ECONOMY & ENVIRONMENT,TESCO STORES 6161,10/01/2024,H59620240112XIIZCOPDA-2,1.70,LEATHER MUSEUM-FOOD & DRINK SUPPLIES,GROCERY STORES AND SUPERMARKETS,GPC
WALSALL COUNCIL,http://opendatacommunities.org/id/metropolitan-district-council/walsall ,31/03/2024,CHILDRENS SERVICES,AMZNMKTPLACE,10/01/2024,H59620240112XOSYSJDKP-1,34.99,SANDBANK NURSERY SCHOOL-STATIONERY & GENERAL OFFICE SU,MISCELLANEOUS AND SPECIALTY RETAIL STORES,GPC
WALSALL COUNCIL,http://opendatacommunities.org/id/metropolitan-district-council/walsall ,31/03/2024,ECONOMY & ENVIRONMENT,TESCO STORES 6161,10/01/2024,H59620240112XRGXKLRXM-1,118.00,RESTART-FOOD & DRINK SUPPLIES,GROCERY STORES AND SUPERMARKETS,GPC
WALSALL COUNCIL,http://opendatacommunities.org/id/metropolitan-district-council/walsall ,31/03/2024,ECONOMY & ENVIRONMENT,AMZNMKTPLACE,10/01/2024,H59620240112XYYUBFMXX-1,9.24,OAK PARK ACTIVE LIVING CENTRE-REPAIR & MAINTENANCE OF FURNIT,MISCELLANEOUS AND SPECIALTY RETAIL STORES,GPC
WALSALL COUNCIL,http://opendatacommunities.org/id/metropolitan-district-council/walsall ,31/03/2024,CHILDRENS SERVICES,ASDA GROCERIES ONLINE,10/01/2024,H59620240112YDCHTWHWP-1,-5.75,DT-MATERIALS,GROCERY STORES AND SUPERMARKETS,GPC
WALSALL COUNCIL,http://opendatacommunities.org/id/metropolitan-district-council/walsall ,31/03/2024,CHILDRENS SERVICES,GEOGRAPHICAL ASSOC,10/01/2024,H59620240112YDXUDKLNE-1,54.00,GEOGRAPHY AND HISTORY-SUBSCRIPTIONS,"ORGANIZATIONS, CHARITABLE AND SOCIAL SERVICE",GPC
WALSALL COUNCIL,http://opendatacommunities.org/id/metropolitan-district-council/walsall ,31/03/2024,RESOURCES AND TRANSFORMATION,ARTHUR BRETT CATER,10/01/2024,H59620240112YMKMQUXTB-1,77.60,CATERING - SCHOOLS-FOOD & DRINK SUPPLIES,MISCELLANEOUS FOOD STORES & CONVENIENCE STORES,GPC
WALSALL COUNCIL,http://opendatacommunities.org/id/metropolitan-district-council/walsall ,31/03/2024,ECONOMY & ENVIRONMENT,ASDA STORES,10/01/2024,H59620240112YNFONUOCX-1,11.35,ALDRIDGE LIBRARY-PURCHASE OF FURNITURE & EQUIPM,GROCERY STORES AND SUPERMARKETS,GPC
WALSALL COUNCIL,http://opendatacommunities.org/id/metropolitan-district-council/walsall ,31/03/2024,RESOURCES AND TRANSFORMATION,BLAKEMORE FOODSERVICE,10/01/2024,H59620240112YRJHWXPOL-1,160.01,CATERING - SCHOOLS-FOOD & DRINK SUPPLIES,CATERERS,GPC
WALSALL COUNCIL,http://opendatacommunities.org/id/metropolitan-district-council/walsall ,31/03/2024,CHILDRENS SERVICES,AMZNMKTPLACE,10/01/2024,H59620240112YXUSOBFGT-1,17.07,BLUEBELLS-STATIONERY & GENERAL OFFICE SU,MISCELLANEOUS AND SPECIALTY RETAIL STORES,GPC
WALSALL COUNCIL,http://opendatacommunities.org/id/metropolitan-district-council/walsall ,31/03/2024,RESOURCES AND TRANSFORMATION,BLAKEMORE FOODSERVICE,10/01/2024,H59620240112YYOSSCRUM-1,-69.77,CATERING - SCHOOLS-FOOD & DRINK SUPPLIES,CATERERS,GPC
WALSALL COUNCIL,http://opendatacommunities.org/id/metropolitan-district-council/walsall ,31/03/2024,CHILDRENS SERVICES,AMZNMKTPLACE,10/01/2024,H59620240112ZDWTXUUCO-1,19.98,THE CRESCENT-STATIONERY & GENERAL OFFICE SU,MISCELLANEOUS AND SPECIALTY RETAIL STORES,GPC
WALSALL COUNCIL,http://opendatacommunities.org/id/metropolitan-district-council/walsall ,31/03/2024,CHILDRENS SERVICES,AMZNMKTPLACE,10/01/2024,H59620240112ZVUNOHIJQ-1,12.60,D T-MATERIALS,MISCELLANEOUS AND SPECIALTY RETAIL STORES,GPC
WALSALL COUNCIL,http://opendatacommunities.org/id/metropolitan-district-council/walsall ,31/03/2024,RESOURCES AND TRANSFORMATION,ARTHUR BRETT CATER,10/01/2024,H59620240113DGHLZCDCX-1,-1.78,CATERING - SCHOOLS-FOOD & DRINK SUPPLIES,MISCELLANEOUS FOOD STORES & CONVENIENCE STORES,GPC
WALSALL COUNCIL,http://opendatacommunities.org/id/metropolitan-district-council/walsall ,31/03/2024,CHILDRENS SERVICES,TVLICENSING.CO.UK,10/01/2024,H59620240113GRBTWMWVC-1,159.00,COMMUNITY FOCUSED EXTENDED SCH-MATERIALS,"CONSULTING, MANAGEMENT, AND PR SERVICES",GPC
WALSALL COUNCIL,http://opendatacommunities.org/id/metropolitan-district-council/walsall ,31/03/2024,CHILDRENS SERVICES,PAYPAL *JOTFORM JOTFOR,10/01/2024,H59620240116RJRDFKWRK-1,41.57,ICT LEARNING RESOURCES-MATERIALS,COMPUTER NETWORK/INFORMATION SERVICES,GPC
WALSALL COUNCIL,http://opendatacommunities.org/id/metropolitan-district-council/walsall ,31/03/2024,RESOURCES AND TRANSFORMATION,ARTHUR BRETT CATER,10/01/2024,H59620240123YTFUJDCPV-1,-13.95,CATERING - SCHOOLS-FOOD & DRINK SUPPLIES,MISCELLANEOUS FOOD STORES & CONVENIENCE STORES,GPC
WALSALL COUNCIL,http://opendatacommunities.org/id/metropolitan-district-council/walsall ,31/03/2024,CHILDRENS SERVICES,AMZNMKTPLACE,11/01/2024,H59620240113AEJLRWYPE-1,39.81,GENERAL SUPPLIES SH-HEALTH & SAFETY PERSONAL PROTE,MISCELLANEOUS AND SPECIALTY RETAIL STORES,GPC
WALSALL COUNCIL,http://opendatacommunities.org/id/metropolitan-district-council/walsall ,31/03/2024,ECONOMY & ENVIRONMENT,TESCO STORES 6161,11/01/2024,H59620240113AVOQTPCFI-1,79.99,RESTART-MOBILE PHONES,GROCERY STORES AND SUPERMARKETS,GPC
WALSALL COUNCIL,http://opendatacommunities.org/id/metropolitan-district-council/walsall ,31/03/2024,CHILDRENS SERVICES,BKG*HOTEL AT BOOKING.C,11/01/2024,H59620240113BBKWVETSU-1,340.00,FAMILY SAFEGUARDING EAST LOCAL-SECTION 1/17CHILD CARE ACT 198,TRAVEL AGENCIES AND TOUR OPERATORS,GPC
WALSALL COUNCIL,http://opendatacommunities.org/id/metropolitan-district-council/walsall ,31/03/2024,ECONOMY & ENVIRONMENT,INSPIRE2COACH LTD,11/01/2024,H59620240113BHMJDCLVM-1,50.00,COMMUNITY LIAISON-EXTERNAL TRAINING,"CONSULTING, MANAGEMENT, AND PR SERVICES",GPC
WALSALL COUNCIL,http://opendatacommunities.org/id/metropolitan-district-council/walsall ,31/03/2024,RESOURCES AND TRANSFORMATION,AMZNMKTPLACE,11/01/2024,H59620240113BNMMILNKM-1,-4.97,ADMIN SUPPORT-STATIONERY & GENERAL OFFICE SU,MISCELLANEOUS AND SPECIALTY RETAIL STORES,GPC
WALSALL COUNCIL,http://opendatacommunities.org/id/metropolitan-district-council/walsall ,31/03/2024,ECONOMY & ENVIRONMENT,TESCO STORES 6161,11/01/2024,H59620240113BVHNOLFVJ-1,16.99,RESTART-FOOD & DRINK SUPPLIES,GROCERY STORES AND SUPERMARKETS,GPC
WALSALL COUNCIL,http://opendatacommunities.org/id/metropolitan-district-council/walsall ,31/03/2024,CHILDRENS SERVICES,192.COM,11/01/2024,H59620240113BWEGYFRVY-1,65.94,FOSTERING SERVICE-COMPUTER EQUIPMENT,"COMPUTERS, COMPUTER PERIPHERAL EQUIPMENT, SOFTWARE",GPC
WALSALL COUNCIL,http://opendatacommunities.org/id/metropolitan-district-council/walsall ,31/03/2024,CHILDRENS SERVICES,DUNELM SOFTFURNISHINGS,11/01/2024,H59620240113CHTDSYMKY-1,43.95,CARE LEAVER ENTITLEMENTS-SETTING UP HOME GRANT,"EQUIPMENT, FURNITURE, AND HOME FURNISHINGS STORES ",GPC
WALSALL COUNCIL,http://opendatacommunities.org/id/metropolitan-district-council/walsall ,31/03/2024,CHILDRENS SERVICES,12STAY LIMITED,11/01/2024,H59620240113DGAIHDNCW-1,200.00,SUPPORT UNDER SECT 23 OF THE C-SUPPORT UNDER SECTION 23 OF TH,"HOTELS, MOTELS, RESORTS",GPC
WALSALL COUNCIL,http://opendatacommunities.org/id/metropolitan-district-council/walsall ,31/03/2024,CHILDRENS SERVICES,AMZNMKTPLACE,11/01/2024,H59620240113DYVXJETNJ-1,14.98,FOOD TECHNOLOGY-MATERIALS,MISCELLANEOUS AND SPECIALTY RETAIL STORES,GPC
WALSALL COUNCIL,http://opendatacommunities.org/id/metropolitan-district-council/walsall ,31/03/2024,CHILDRENS SERVICES,HM PASSPORT OFFICE,11/01/2024,H59620240113EHSAPQPLI-1,93.00,CORPORATE PARENTING-FEES & LICENCES,GOVERNMENT SERVICES,GPC
WALSALL COUNCIL,http://opendatacommunities.org/id/metropolitan-district-council/walsall ,31/03/2024,RESOURCES AND TRANSFORMATION,W M MORRISON STORE,11/01/2024,H59620240113ELWOONTIE-1,3.20,CATERING - SCHOOLS-FOOD & DRINK SUPPLIES,GROCERY STORES AND SUPERMARKETS,GPC
WALSALL COUNCIL,http://opendatacommunities.org/id/metropolitan-district-council/walsall ,31/03/2024,RESOURCES AND TRANSFORMATION,E.ON NEXT,11/01/2024,H59620240113FIHREPITL-1,91.60,SHOPS & COMMERCIAL PREMISES-ELECTRICITY,"UTILITIES - ELECTRIC, GAS, SANITARY & WATER",GPC
WALSALL COUNCIL,http://opendatacommunities.org/id/metropolitan-district-council/walsall ,31/03/2024,ECONOMY & ENVIRONMENT,WELLCOME COLLECTION CA,11/01/2024,H59620240113FLCURRIOD-1,58.65,GARMAN RYAN-CATERING & REFRESHMENTS,CATERERS,GPC
WALSALL COUNCIL,http://opendatacommunities.org/id/metropolitan-district-council/walsall ,31/03/2024,CHILDRENS SERVICES,AMZN MKTP US,11/01/2024,H59620240113FMQFWCJYX-1,-242.72,EARLY YEARS-MATERIALS,BOOK STORES,GPC
WALSALL COUNCIL,http://opendatacommunities.org/id/metropolitan-district-council/walsall ,31/03/2024,CHILDRENS SERVICES,AMZNMKTPLACE,11/01/2024,H59620240113FMRQLGOWP-1,44.78,NEW LEAF PUPIL REFERAL UNIT-OPERATIONAL MAINTENANCE,MISCELLANEOUS AND SPECIALTY RETAIL STORES,GPC
WALSALL COUNCIL,http://opendatacommunities.org/id/metropolitan-district-council/walsall ,31/03/2024,CHILDRENS SERVICES,AMZNMKTPLACE,11/01/2024,H59620240113FNPDILQIN-1,13.63,NEW LEAF PUPIL REFERAL UNIT-OPERATIONAL MAINTENANCE,MISCELLANEOUS AND SPECIALTY RETAIL STORES,GPC
WALSALL COUNCIL,http://opendatacommunities.org/id/metropolitan-district-council/walsall ,31/03/2024,ECONOMY & ENVIRONMENT,AMZNMKTPLACE,11/01/2024,H59620240113GLJYOANJD-1,3.95,GROUNDS MAINTENANCE-CEMETERIES-PURCHASE OF FURNITURE & EQUIPM,MISCELLANEOUS AND SPECIALTY RETAIL STORES,GPC
WALSALL COUNCIL,http://opendatacommunities.org/id/metropolitan-district-council/walsall ,31/03/2024,CHILDRENS SERVICES,MCDONALDS,11/01/2024,H59620240113GSOUIKQMX-1,2.49,FAMILY PLACEMENTS-FOOD & DRINK SUPPLIES,"EATING PLACES, RESTAURANTS",GPC
WALSALL COUNCIL,http://opendatacommunities.org/id/metropolitan-district-council/walsall ,31/03/2024,CHILDRENS SERVICES,MCDONALDS,11/01/2024,H59620240113GSOUIKQMX-2,9.87,FAMILY PLACEMENTS-FOOD & DRINK SUPPLIES,"EATING PLACES, RESTAURANTS",GPC
WALSALL COUNCIL,http://opendatacommunities.org/id/metropolitan-district-council/walsall ,31/03/2024,CHILDRENS SERVICES,COSTA COFFEE,11/01/2024,H59620240113HDISPZIMG-1,6.80,EDGE OF CARE TEAM-FOOD & DRINK SUPPLIES,QUICK PAYMENT SERVICE-FAST-FOOD RESTAURANTS,GPC
WALSALL COUNCIL,http://opendatacommunities.org/id/metropolitan-district-council/walsall ,31/03/2024,CHILDRENS SERVICES,AMZNMKTPLACE,11/01/2024,H59620240113HIFIXJGGC-1,-89.99,FAMILY HUBS-MATERIALS,MISCELLANEOUS AND SPECIALTY RETAIL STORES,GPC
WALSALL COUNCIL,http://opendatacommunities.org/id/metropolitan-district-council/walsall ,31/03/2024,ECONOMY & ENVIRONMENT,AMZNMKTPLACE,11/01/2024,H59620240113HTKVSDHJN-1,117.00,GROUNDS MAINTENANCE-CEMETERIES-PURCHASE OF FURNITURE & EQUIPM,MISCELLANEOUS AND SPECIALTY RETAIL STORES,GPC
WALSALL COUNCIL,http://opendatacommunities.org/id/metropolitan-district-council/walsall ,31/03/2024,RESOURCES AND TRANSFORMATION,AMZNMKTPLACE,11/01/2024,H59620240113IERQBULIV-1,18.99,CENTRAL OFFICE ACCOMMODATION-OPERATIONAL MAINTENANCE,MISCELLANEOUS AND SPECIALTY RETAIL STORES,GPC
WALSALL COUNCIL,http://opendatacommunities.org/id/metropolitan-district-council/walsall ,31/03/2024,RESOURCES AND TRANSFORMATION,AMZNMKTPLACE,11/01/2024,H59620240113IGAHDYLUI-1,27.55,CENTRAL OFFICE ACCOMMODATION-OPERATIONAL MAINTENANCE,MISCELLANEOUS AND SPECIALTY RETAIL STORES,GPC
WALSALL COUNCIL,http://opendatacommunities.org/id/metropolitan-district-council/walsall ,31/03/2024,CHILDRENS SERVICES,AMZNMKTPLACE,11/01/2024,H59620240113IIUWBWZNJ-1,14.27,ADMINISTRATIVE SUPPLIES-MATERIALS,MISCELLANEOUS AND SPECIALTY RETAIL STORES,GPC
WALSALL COUNCIL,http://opendatacommunities.org/id/metropolitan-district-council/walsall ,31/03/2024,ECONOMY & ENVIRONMENT,FBX*S4K FRANCHISING,11/01/2024,H59620240113IMVYLTROO-1,8.50,RESTART-CRECHE FACILITIES,CHILD CARE SERVICES ,GPC
WALSALL COUNCIL,http://opendatacommunities.org/id/metropolitan-district-council/walsall ,31/03/2024,CHILDRENS SERVICES,J D SPORTS 595,11/01/2024,H59620240113IXJBOLFWG-1,110.00,"43A HILTON ROAD, WILLENHALL-RESIDENTS PERSONAL EXPENSES-AL",SPORTING GOODS STORES,GPC
WALSALL COUNCIL,http://opendatacommunities.org/id/metropolitan-district-council/walsall ,31/03/2024,CHILDRENS SERVICES,GREAT STORES LTD,11/01/2024,H59620240113JDPLJPIAY-1,45.00,CREATIVE CURRICULUM-MATERIALS,PHOTOGRAPHIC STUDIOS,GPC
WALSALL COUNCIL,http://opendatacommunities.org/id/metropolitan-district-council/walsall ,31/03/2024,CHILDRENS SERVICES,AMAZON.CO.UK*5H3N410G5,11/01/2024,H59620240113JNWDQNLVK-1,25.99,CHILD PROTECTION & REVIEW SERV-STATIONERY & GENERAL OFFICE SU,OTHER DIRECT MARKETING-OTHER DIRECT MARKETERS,GPC
WALSALL COUNCIL,http://opendatacommunities.org/id/metropolitan-district-council/walsall ,31/03/2024,ECONOMY & ENVIRONMENT,AMZNMKTPLACE,11/01/2024,H59620240113JYYXRMCVT-1,10.98,WALSALL ARENA AND ARTS CENTRE-MATERIALS,MISCELLANEOUS AND SPECIALTY RETAIL STORES,GPC
WALSALL COUNCIL,http://opendatacommunities.org/id/metropolitan-district-council/walsall ,31/03/2024,ECONOMY & ENVIRONMENT,DECATHLON WEDNESBURY,11/01/2024,H59620240113KSBJCMIVW-1,38.97,COMMUNITY LIAISON-MATERIALS,SPORTING GOODS STORES,GPC
WALSALL COUNCIL,http://opendatacommunities.org/id/metropolitan-district-council/walsall ,31/03/2024,CHILDRENS SERVICES,WOB.COM,11/01/2024,H59620240113KXQENNJMR-1,11.10,SANDBANK NURSERY SCHOOL-MATERIALS,"BOOKS, PERIODICALS AND NEWSPAPERS",GPC
WALSALL COUNCIL,http://opendatacommunities.org/id/metropolitan-district-council/walsall ,31/03/2024,CHILDRENS SERVICES,TENPIN.CO.UK,11/01/2024,H59620240113LACQEJJEI-1,26.63,THE CRESCENT-PURCHASE OF FURNITURE & EQUIPM,BOWLING ALLEYS,GPC
WALSALL COUNCIL,http://opendatacommunities.org/id/metropolitan-district-council/walsall ,31/03/2024,CHILDRENS SERVICES,WEST MIDLANDS TRAV,11/01/2024,H59620240113LBIUTPTWS-1,201.35,WHITEHALL JUNIOR SCHOOL-MATERIALS,BUS LINES,GPC
WALSALL COUNCIL,http://opendatacommunities.org/id/metropolitan-district-council/walsall ,31/03/2024,ECONOMY & ENVIRONMENT,ZETTLE_*WASH-VAC ELECTRIC,11/01/2024,H59620240113LIAMSQARR-1,3.00,COMMUNITY LIAISON-MATERIALS,MISCELLANEOUS AND SPECIALTY RETAIL STORES,GPC
WALSALL COUNCIL,http://opendatacommunities.org/id/metropolitan-district-council/walsall ,31/03/2024,ECONOMY & ENVIRONMENT,HACHETTE UK DISTRIBUTI,11/01/2024,H59620240113LJJZSSTWT-1,38.40,NAG - NEW ART GALLERY SHOP STO-MATERIALS TO STORES,"BOOKS, PERIODICALS AND NEWSPAPERS",GPC
WALSALL COUNCIL,http://opendatacommunities.org/id/metropolitan-district-council/walsall ,31/03/2024,ECONOMY & ENVIRONMENT,SCREWFIX DIR LTD,11/01/2024,H59620240113LNELAFUFN-1,17.85,INFRASTRUCTURE MAINTENANCE-GROUNDS MAINTENANCE,LUMBER & BUILDING MATERIALS STORES,GPC
WALSALL COUNCIL,http://opendatacommunities.org/id/metropolitan-district-council/walsall ,31/03/2024,CHILDRENS SERVICES,AMAZON.CO.UK*Q35578KP5,11/01/2024,H59620240113LZTBVCPLX-1,6.49,E19-MATERIALS,OTHER DIRECT MARKETING-OTHER DIRECT MARKETERS,GPC
WALSALL COUNCIL,http://opendatacommunities.org/id/metropolitan-district-council/walsall ,31/03/2024,CHILDRENS SERVICES,AMAZON.CO.UK*Q35578KP5,11/01/2024,H59620240113LZTBVCPLX-2,46.54,E19-MATERIALS,OTHER DIRECT MARKETING-OTHER DIRECT MARKETERS,GPC
WALSALL COUNCIL,http://opendatacommunities.org/id/metropolitan-district-council/walsall ,31/03/2024,CHILDRENS SERVICES,METRO INN,11/01/2024,H59620240113MCGHFYIQV-1,45.00,HOMELESSNESS PREVENTION STRATE-BED & BREAKFAST PAYMENTS,"HOTELS, MOTELS, RESORTS",GPC
WALSALL COUNCIL,http://opendatacommunities.org/id/metropolitan-district-council/walsall ,31/03/2024,ECONOMY & ENVIRONMENT,HIGH SPEED TRAINING,11/01/2024,H59620240113MOCQPRYGH-1,30.00,RESTART-EXAMINATIONS-SERVICES,OTHER SCHOOLS AND EDUCATIONAL SERVICES,GPC
WALSALL COUNCIL,http://opendatacommunities.org/id/metropolitan-district-council/walsall ,31/03/2024,CHILDRENS SERVICES,AMZNMKTPLACE,11/01/2024,H59620240113MVQCKUSSL-1,26.27,NEW LEAF PUPIL REFERAL UNIT-OPERATIONAL MAINTENANCE,MISCELLANEOUS AND SPECIALTY RETAIL STORES,GPC
WALSALL COUNCIL,http://opendatacommunities.org/id/metropolitan-district-council/walsall ,31/03/2024,CHILDRENS SERVICES,FLIP OUT TELFORD,11/01/2024,H59620240113NLDCRGGRJ-1,21.00,REWARDS-MATERIALS,OTHER RECREATION SERVICES,GPC
WALSALL COUNCIL,http://opendatacommunities.org/id/metropolitan-district-council/walsall ,31/03/2024,CHILDRENS SERVICES,ASDA SUPERSTORE,11/01/2024,H59620240113OBQKPIAWQ-1,0.99,EDGE OF CARE TEAM-FOOD & DRINK SUPPLIES,GROCERY STORES AND SUPERMARKETS,GPC
WALSALL COUNCIL,http://opendatacommunities.org/id/metropolitan-district-council/walsall ,31/03/2024,CHILDRENS SERVICES,ASDA SUPERSTORE,11/01/2024,H59620240113OBQKPIAWQ-2,15.73,EDGE OF CARE TEAM-FOOD & DRINK SUPPLIES,GROCERY STORES AND SUPERMARKETS,GPC
WALSALL COUNCIL,http://opendatacommunities.org/id/metropolitan-district-council/walsall ,31/03/2024,CHILDRENS SERVICES,AMZNMKTPLACE,11/01/2024,H59620240113OCPKSUBUG-1,7.77,ADMINISTRATIVE SUPPLIES-LIBRARY BOOKS,MISCELLANEOUS AND SPECIALTY RETAIL STORES,GPC
WALSALL COUNCIL,http://opendatacommunities.org/id/metropolitan-district-council/walsall ,31/03/2024,CHILDRENS SERVICES,ASDA GROCERIES ONLINE,11/01/2024,H59620240113OHHHIOMCO-1,22.99,CONTINGENCY-MATERIALS,GROCERY STORES AND SUPERMARKETS,GPC
WALSALL COUNCIL,http://opendatacommunities.org/id/metropolitan-district-council/walsall ,31/03/2024,RESOURCES AND TRANSFORMATION,TESCO STORES 6161,11/01/2024,H59620240113OMSBQRXIW-1,38.87,TOWN HALL RESTAURANT BISTRO-FOOD & DRINK SUPPLIES,GROCERY STORES AND SUPERMARKETS,GPC
WALSALL COUNCIL,http://opendatacommunities.org/id/metropolitan-district-council/walsall ,31/03/2024,ECONOMY & ENVIRONMENT,AMZNMKTPLACE,11/01/2024,H59620240113OOTHPCGPP-1,7.99,GROUNDS MAINTENANCE-CEMETERIES-CLEANING MATERIALS,MISCELLANEOUS AND SPECIALTY RETAIL STORES,GPC
WALSALL COUNCIL,http://opendatacommunities.org/id/metropolitan-district-council/walsall ,31/03/2024,CHILDRENS SERVICES,AMZNMKTPLACE,11/01/2024,H59620240113ORCCCTVUY-1,29.09,NEW LEAF PUPIL REFERAL UNIT-OPERATIONAL MAINTENANCE,MISCELLANEOUS AND SPECIALTY RETAIL STORES,GPC
WALSALL COUNCIL,http://opendatacommunities.org/id/metropolitan-district-council/walsall ,31/03/2024,CHILDRENS SERVICES,THE LIGHT CINEMAS,11/01/2024,H59620240113PGWKXTHTM-1,17.45,REDRUTH ROAD-RESIDENTS PERSONAL EXPENSES-AL,MOTION PICTURE THEATERS,GPC
WALSALL COUNCIL,http://opendatacommunities.org/id/metropolitan-district-council/walsall ,31/03/2024,ECONOMY & ENVIRONMENT,HIGH SPEED TRAINING,11/01/2024,H59620240113PIHKDMNMC-1,30.00,RESTART-EXAMINATIONS-SERVICES,OTHER SCHOOLS AND EDUCATIONAL SERVICES,GPC
WALSALL COUNCIL,http://opendatacommunities.org/id/metropolitan-district-council/walsall ,31/03/2024,ECONOMY & ENVIRONMENT,AMZNMKTPLACE,11/01/2024,H59620240113PKGTBVXFR-1,79.99,GROUNDS MAINTENANCE-CEMETERIES-PURCHASE OF FURNITURE & EQUIPM,MISCELLANEOUS AND SPECIALTY RETAIL STORES,GPC
WALSALL COUNCIL,http://opendatacommunities.org/id/metropolitan-district-council/walsall ,31/03/2024,CHILDRENS SERVICES,WWW.BANNERUK.COM,11/01/2024,H59620240113QBBUQFGVR-1,39.12,"43A HILTON ROAD, WILLENHALL-STATIONERY & GENERAL OFFICE SU","STATIONERY, OFFICE SUPPLIES AND WRITING PAPER",GPC
WALSALL COUNCIL,http://opendatacommunities.org/id/metropolitan-district-council/walsall ,31/03/2024,ECONOMY & ENVIRONMENT,AMZNMKTPLACE,11/01/2024,H59620240113QDKZPWXOO-1,62.99,GROUNDS MAINTENANCE-CEMETERIES-PURCHASE OF FURNITURE & EQUIPM,MISCELLANEOUS AND SPECIALTY RETAIL STORES,GPC
WALSALL COUNCIL,http://opendatacommunities.org/id/metropolitan-district-council/walsall ,31/03/2024,CHILDRENS SERVICES,ALDI 28 772,11/01/2024,H59620240113QFPWTHRKK-1,9.84,REDRUTH ROAD-FOOD & DRINK SUPPLIES,GROCERY STORES AND SUPERMARKETS,GPC
WALSALL COUNCIL,http://opendatacommunities.org/id/metropolitan-district-council/walsall ,31/03/2024,CHILDRENS SERVICES,ALDI 28 772,11/01/2024,H59620240113QFPWTHRKK-2,107.66,REDRUTH ROAD-FOOD & DRINK SUPPLIES,GROCERY STORES AND SUPERMARKETS,GPC
WALSALL COUNCIL,http://opendatacommunities.org/id/metropolitan-district-council/walsall ,31/03/2024,CHILDRENS SERVICES,CURRYS ONLINE,11/01/2024,H59620240113QNPOPLSZE-1,37.98,ADMINISTRATIVE SUPPLIES-STATIONERY & GENERAL OFFICE SU,ELECTRONIC SALES,GPC
WALSALL COUNCIL,http://opendatacommunities.org/id/metropolitan-district-council/walsall ,31/03/2024,CHILDRENS SERVICES,AMZNMKTPLACE,11/01/2024,H59620240113QPWKWGMCM-1,60.95,D T-MATERIALS,MISCELLANEOUS AND SPECIALTY RETAIL STORES,GPC
WALSALL COUNCIL,http://opendatacommunities.org/id/metropolitan-district-council/walsall ,31/03/2024,CHILDRENS SERVICES,AMZNMKTPLACE,11/01/2024,H59620240113QYDTOUERG-1,82.41,D T-MATERIALS,MISCELLANEOUS AND SPECIALTY RETAIL STORES,GPC
WALSALL COUNCIL,http://opendatacommunities.org/id/metropolitan-district-council/walsall ,31/03/2024,CHILDRENS SERVICES,AMZNMKTPLACE,11/01/2024,H59620240113QYDTOUERG-2,64.45,D T-MATERIALS,MISCELLANEOUS AND SPECIALTY RETAIL STORES,GPC
WALSALL COUNCIL,http://opendatacommunities.org/id/metropolitan-district-council/walsall ,31/03/2024,ECONOMY & ENVIRONMENT,MIDLANDNEWS.COM,11/01/2024,H59620240113RBNGIQRJY-1,-436.32,DEVELOPMENT MANAGEMENT-SUBSCRIPTIONS,NEWS DEALERS AND NEWSSTANDS,GPC
WALSALL COUNCIL,http://opendatacommunities.org/id/metropolitan-district-council/walsall ,31/03/2024,RESOURCES AND TRANSFORMATION,CHARTERED INSTITUTE OF LE,11/01/2024,H59620240113RDBTFFIUX-1,367.00,LAW LIBRARY-SUBSCRIPTIONS,"SCHOOLS, BUSINESS AND SECRETARIAL",GPC
WALSALL COUNCIL,http://opendatacommunities.org/id/metropolitan-district-council/walsall ,31/03/2024,CHILDRENS SERVICES,DRB BRIEFINGS,11/01/2024,H59620240113RHVYHPFBM-1,168.00,MILLFIELD PRIMARY SCHOOL-EXTERNAL TRAINING,OTHER SCHOOLS AND EDUCATIONAL SERVICES,GPC
WALSALL COUNCIL,http://opendatacommunities.org/id/metropolitan-district-council/walsall ,31/03/2024,CHILDRENS SERVICES,AMAZON.CO.UK*DD6FY4NQ5,11/01/2024,H59620240113RIXWYDSWO-1,10.12,BUTTS PRIMARY SCHOOL-OPERATIONAL MAINTENANCE,OTHER DIRECT MARKETING-OTHER DIRECT MARKETERS,GPC
WALSALL COUNCIL,http://opendatacommunities.org/id/metropolitan-district-council/walsall ,31/03/2024,CHILDRENS SERVICES,JEWSON LTD,11/01/2024,H59620240113ROZUHHJHF-1,127.00,LEIGHSWOOD PRIMARY SCHOOL-OPERATIONAL MAINTENANCE,LUMBER & BUILDING MATERIALS STORES,GPC
WALSALL COUNCIL,http://opendatacommunities.org/id/metropolitan-district-council/walsall ,31/03/2024,CHILDRENS SERVICES,BARONS COURT HOTEL,11/01/2024,H59620240113RSUGSNYMU-1,85.00,ROUGH SLEEPING INITIATIVE GRAN-BED & BREAKFAST PAYMENTS,"HOTELS, MOTELS, RESORTS",GPC
WALSALL COUNCIL,http://opendatacommunities.org/id/metropolitan-district-council/walsall ,31/03/2024,CHILDRENS SERVICES,AMZNMKTPLACE,11/01/2024,H59620240113RUBQMAWWH-1,17.98,PE-MATERIALS,MISCELLANEOUS AND SPECIALTY RETAIL STORES,GPC
WALSALL COUNCIL,http://opendatacommunities.org/id/metropolitan-district-council/walsall ,31/03/2024,CHILDRENS SERVICES,WALSALL STN T/O,11/01/2024,H59620240113SEJZQLEAK-1,101.40,ROUGH SLEEPING INITIATIVE GRAN-OFFICERS & STAFF PUBLIC TRANSP,PASSENGER RAILWAYS,GPC
WALSALL COUNCIL,http://opendatacommunities.org/id/metropolitan-district-council/walsall ,31/03/2024,CHILDRENS SERVICES,AMZN MKTP US*RT0NT52T0,11/01/2024,H59620240113SGTKVORWJ-1,42.06,PHONICS-MATERIALS,MISCELLANEOUS AND SPECIALTY RETAIL STORES,GPC
WALSALL COUNCIL,http://opendatacommunities.org/id/metropolitan-district-council/walsall ,31/03/2024,CHILDRENS SERVICES,NPOWER LIMITED,11/01/2024,H59620240113SRCMNZHLM-1,264.00,CHUCKERY PRIMARY SCHOOL-ELECTRICITY,"UTILITIES - ELECTRIC, GAS, SANITARY & WATER",GPC
WALSALL COUNCIL,http://opendatacommunities.org/id/metropolitan-district-council/walsall ,31/03/2024,CHILDRENS SERVICES,AMZNMKTPLACE,11/01/2024,H59620240113SUIRNRRIH-1,16.98,NEW LEAF PUPIL REFERAL UNIT-OPERATIONAL MAINTENANCE,MISCELLANEOUS AND SPECIALTY RETAIL STORES,GPC
WALSALL COUNCIL,http://opendatacommunities.org/id/metropolitan-district-council/walsall ,31/03/2024,CHILDRENS SERVICES,AMZNMKTPLACE,11/01/2024,H59620240113SVQDYPOPG-1,399.99,PSE-PURCHASE OF FURNITURE & EQUIPM,MISCELLANEOUS AND SPECIALTY RETAIL STORES,GPC
WALSALL COUNCIL,http://opendatacommunities.org/id/metropolitan-district-council/walsall ,31/03/2024,CHILDRENS SERVICES,AMZNMKTPLACE,11/01/2024,H59620240113TCGDFVQYP-1,46.78,ST FRANCIS OF ASSISI CATHOLIC -OPERATIONAL MAINTENANCE,MISCELLANEOUS AND SPECIALTY RETAIL STORES,GPC
WALSALL COUNCIL,http://opendatacommunities.org/id/metropolitan-district-council/walsall ,31/03/2024,CHILDRENS SERVICES,B&M 419 - HS REEDSWOOD,11/01/2024,H59620240113TRAFVMDIM-1,24.45,OLD HALL SCHOOL-CATERING & REFRESHMENTS,MISCELLANEOUS GENERAL MERCHANDISE,GPC
WALSALL COUNCIL,http://opendatacommunities.org/id/metropolitan-district-council/walsall ,31/03/2024,CHILDRENS SERVICES,DUNELM SOFT FURNISHINGS,11/01/2024,H59620240113UCGFCMOLQ-1,162.00,CARE LEAVER ENTITLEMENTS-SETTING UP HOME GRANT,"EQUIPMENT, FURNITURE, AND HOME FURNISHINGS STORES ",GPC
WALSALL COUNCIL,http://opendatacommunities.org/id/metropolitan-district-council/walsall ,31/03/2024,CHILDRENS SERVICES,HOTEL AT BOOKING.COM,11/01/2024,H59620240113UMJNDWYEJ-1,690.00,FAMILY SAFEGUARDING CENTRAL AN-SECTION 1/17CHILD CARE ACT 198,"HOTELS, MOTELS, RESORTS",GPC
WALSALL COUNCIL,http://opendatacommunities.org/id/metropolitan-district-council/walsall ,31/03/2024,CHILDRENS SERVICES,ALDI 772 129,11/01/2024,H59620240113UMPYRURFS-1,23.17,HOUSING YEI/ESF MATCH-MATERIALS,GROCERY STORES AND SUPERMARKETS,GPC
WALSALL COUNCIL,http://opendatacommunities.org/id/metropolitan-district-council/walsall ,31/03/2024,CHILDRENS SERVICES,AMZNMKTPLACE,11/01/2024,H59620240113USQRSCUHN-1,6.99,OUTDOOR LEARNING-MATERIALS,MISCELLANEOUS AND SPECIALTY RETAIL STORES,GPC
WALSALL COUNCIL,http://opendatacommunities.org/id/metropolitan-district-council/walsall ,31/03/2024,CHILDRENS SERVICES,AMZNMKTPLACE,11/01/2024,H59620240113VHXYGVHJO-1,49.16,GENERAL SUPPLIES SH-HEALTH & SAFETY PERSONAL PROTE,MISCELLANEOUS AND SPECIALTY RETAIL STORES,GPC
WALSALL COUNCIL,http://opendatacommunities.org/id/metropolitan-district-council/walsall ,31/03/2024,CHILDRENS SERVICES,ASDA SUPERSTORE,11/01/2024,H59620240113VIUEHPIYR-1,48.80,ROUGH SLEEPING INITIATIVE GRAN-CLOTHING & LAUNDRY,GROCERY STORES AND SUPERMARKETS,GPC
WALSALL COUNCIL,http://opendatacommunities.org/id/metropolitan-district-council/walsall ,31/03/2024,CHILDRENS SERVICES,AMZNMKTPLACE,11/01/2024,H59620240113VOLJPQXLB-1,64.00,SHORT HEATH FEDERATION-OPERATIONAL MAINTENANCE,MISCELLANEOUS AND SPECIALTY RETAIL STORES,GPC
WALSALL COUNCIL,http://opendatacommunities.org/id/metropolitan-district-council/walsall ,31/03/2024,CHILDRENS SERVICES,SUMUP *ASTON VILLA F.C.,11/01/2024,H59620240113VOXCRNISW-1,3.90,EDGE OF CARE TEAM-FOOD & DRINK SUPPLIES,CATERERS,GPC
WALSALL COUNCIL,http://opendatacommunities.org/id/metropolitan-district-council/walsall ,31/03/2024,CHILDRENS SERVICES,TRAINLINE,11/01/2024,H59620240113VQBRZQBMR-1,27.89,FAMILY SAFEGUARDING EAST LOCAL-SECTION 1/17CHILD CARE ACT 198,PASSENGER RAILWAYS,GPC
WALSALL COUNCIL,http://opendatacommunities.org/id/metropolitan-district-council/walsall ,31/03/2024,ADULT SOCIAL CARE,PREMIER INN,11/01/2024,H59620240113VWMIRLNEO-1,231.00,SOCIAL SUPPORT-BED & BREAKFAST PAYMENTS,PREMIER INN,GPC
WALSALL COUNCIL,http://opendatacommunities.org/id/metropolitan-district-council/walsall ,31/03/2024,ECONOMY & ENVIRONMENT,AMZNMKTPLACE,11/01/2024,H59620240113WDGIABWQR-1,95.96,WALSALL ARENA AND ARTS CENTRE-FOOD & DRINK SUPPLIES,MISCELLANEOUS AND SPECIALTY RETAIL STORES,GPC
WALSALL COUNCIL,http://opendatacommunities.org/id/metropolitan-district-council/walsall ,31/03/2024,CHILDRENS SERVICES,12STAY LIMITED,11/01/2024,H59620240113WJYWWPMII-1,816.00,SUPPORT UNDER SECT 23 OF THE C-SUPPORT UNDER SECTION 23 OF TH,"HOTELS, MOTELS, RESORTS",GPC
WALSALL COUNCIL,http://opendatacommunities.org/id/metropolitan-district-council/walsall ,31/03/2024,CHILDRENS SERVICES,AMZNMKTPLACE,11/01/2024,H59620240113WKGRPVWLH-1,-24.33,CHILD PROTECTION & REVIEW SERV-STATIONERY & GENERAL OFFICE SU,MISCELLANEOUS AND SPECIALTY RETAIL STORES,GPC
WALSALL COUNCIL,http://opendatacommunities.org/id/metropolitan-district-council/walsall ,31/03/2024,CHILDRENS SERVICES,AMZNMKTPLACE,11/01/2024,H59620240113WOLBNZFCM-1,23.51,NEW LEAF PUPIL REFERAL UNIT-OPERATIONAL MAINTENANCE,MISCELLANEOUS AND SPECIALTY RETAIL STORES,GPC
WALSALL COUNCIL,http://opendatacommunities.org/id/metropolitan-district-council/walsall ,31/03/2024,CHILDRENS SERVICES,AMZNMKTPLACE,11/01/2024,H59620240113XCWVVGPHI-1,59.46,ADMINISTRATIVE SUPPLIES-MATERIALS,MISCELLANEOUS AND SPECIALTY RETAIL STORES,GPC
WALSALL COUNCIL,http://opendatacommunities.org/id/metropolitan-district-council/walsall ,31/03/2024,CHILDRENS SERVICES,BKG*HOTEL AT BOOKING.C,11/01/2024,H59620240113XEYLYGZTH-1,205.00,BED & BREAKFAST PAYMENTS-BED & BREAKFAST PAYMENTS,TRAVEL AGENCIES AND TOUR OPERATORS,GPC
WALSALL COUNCIL,http://opendatacommunities.org/id/metropolitan-district-council/walsall ,31/03/2024,CHILDRENS SERVICES,BARONS COURT HOTEL,11/01/2024,H59620240113XQGDQELOQ-1,255.00,ROUGH SLEEPING INITIATIVE GRAN-BED & BREAKFAST PAYMENTS,"HOTELS, MOTELS, RESORTS",GPC
WALSALL COUNCIL,http://opendatacommunities.org/id/metropolitan-district-council/walsall ,31/03/2024,CHILDRENS SERVICES,SP TT ROCK STARS,11/01/2024,H59620240113XRINRCGQI-1,129.00,LICENCES / SUBSCRIPTIONS-MATERIALS,MISCELLANEOUS GENERAL MERCHANDISE,GPC
WALSALL COUNCIL,http://opendatacommunities.org/id/metropolitan-district-council/walsall ,31/03/2024,CHILDRENS SERVICES,TESCO STORES 4838,11/01/2024,H59620240113XUIQXIHSV-1,94.10,SPECIAL FACILITIES -  BEFORE/A-MATERIALS,GROCERY STORES AND SUPERMARKETS,GPC
WALSALL COUNCIL,http://opendatacommunities.org/id/metropolitan-district-council/walsall ,31/03/2024,CHILDRENS SERVICES,AMZNMKTPLACE,11/01/2024,H59620240113YBDNDYOJM-1,28.98,ST FRANCIS OF ASSISI CATHOLIC -OPERATIONAL MAINTENANCE,MISCELLANEOUS AND SPECIALTY RETAIL STORES,GPC
WALSALL COUNCIL,http://opendatacommunities.org/id/metropolitan-district-council/walsall ,31/03/2024,ECONOMY & ENVIRONMENT,BEACONS AND LIGHTBARS,11/01/2024,H59620240113YDPFWGLLW-1,167.99,FLEET-MATERIALS,HARDWARE STORES,GPC
WALSALL COUNCIL,http://opendatacommunities.org/id/metropolitan-district-council/walsall ,31/03/2024,RESOURCES AND TRANSFORMATION,WWW.BANNERUK.COM,11/01/2024,H59620240113YVEQSNWGN-1,25.80,HR ADMIN HUB-STATIONERY & GENERAL OFFICE SU,"STATIONERY, OFFICE SUPPLIES AND WRITING PAPER",GPC
WALSALL COUNCIL,http://opendatacommunities.org/id/metropolitan-district-council/walsall ,31/03/2024,ECONOMY & ENVIRONMENT,AMZNMKTPLACE,11/01/2024,H59620240113ZWGDMEDLN-1,6.98,CEMETERIES-STATIONERY & GENERAL OFFICE SU,MISCELLANEOUS AND SPECIALTY RETAIL STORES,GPC
WALSALL COUNCIL,http://opendatacommunities.org/id/metropolitan-district-council/walsall ,31/03/2024,RESOURCES AND TRANSFORMATION,CHICKEN JOES LTD,11/01/2024,H59620240116BBYUEDRCF-1,480.00,CATERING - SCHOOLS-FOOD & DRINK SUPPLIES,CATERERS,GPC
WALSALL COUNCIL,http://opendatacommunities.org/id/metropolitan-district-council/walsall ,31/03/2024,RESOURCES AND TRANSFORMATION,CHICKEN JOES LTD,11/01/2024,H59620240116BKLQCBNPC-1,83.44,CATERING - SCHOOLS-FOOD & DRINK SUPPLIES,CATERERS,GPC
WALSALL COUNCIL,http://opendatacommunities.org/id/metropolitan-district-council/walsall ,31/03/2024,RESOURCES AND TRANSFORMATION,CHICKEN JOES LTD,11/01/2024,H59620240116BPHBISNFR-1,78.72,CATERING - SCHOOLS-FOOD & DRINK SUPPLIES,CATERERS,GPC
WALSALL COUNCIL,http://opendatacommunities.org/id/metropolitan-district-council/walsall ,31/03/2024,RESOURCES AND TRANSFORMATION,CHICKEN JOES LTD,11/01/2024,H59620240116KLYXENFDO-1,220.56,CATERING - SCHOOLS-FOOD & DRINK SUPPLIES,CATERERS,GPC
WALSALL COUNCIL,http://opendatacommunities.org/id/metropolitan-district-council/walsall ,31/03/2024,RESOURCES AND TRANSFORMATION,CHICKEN JOES LTD,11/01/2024,H59620240116LZQZUXXRD-1,86.64,CATERING - SCHOOLS-FOOD & DRINK SUPPLIES,CATERERS,GPC
WALSALL COUNCIL,http://opendatacommunities.org/id/metropolitan-district-council/walsall ,31/03/2024,RESOURCES AND TRANSFORMATION,CHICKEN JOES LTD,11/01/2024,H59620240116NDNWERGEQ-1,116.25,CATERING - SCHOOLS-FOOD & DRINK SUPPLIES,CATERERS,GPC
WALSALL COUNCIL,http://opendatacommunities.org/id/metropolitan-district-council/walsall ,31/03/2024,CHILDRENS SERVICES,PAYPAL *EBAY UK,11/01/2024,H59620240116NHYIHDXUR-1,149.99,SCIENCE-MATERIALS,VARIETY STORES,GPC
WALSALL COUNCIL,http://opendatacommunities.org/id/metropolitan-district-council/walsall ,31/03/2024,RESOURCES AND TRANSFORMATION,CHICKEN JOES LTD,11/01/2024,H59620240116PRRWQDOMW-1,159.80,CATERING - SCHOOLS-FOOD & DRINK SUPPLIES,CATERERS,GPC
WALSALL COUNCIL,http://opendatacommunities.org/id/metropolitan-district-council/walsall ,31/03/2024,RESOURCES AND TRANSFORMATION,CHICKEN JOES LTD,11/01/2024,H59620240116PXOMGDXRS-1,83.44,CATERING - SCHOOLS-FOOD & DRINK SUPPLIES,CATERERS,GPC
WALSALL COUNCIL,http://opendatacommunities.org/id/metropolitan-district-council/walsall ,31/03/2024,RESOURCES AND TRANSFORMATION,CHICKEN JOES LTD,11/01/2024,H59620240116TLJWTBOOU-1,193.40,CATERING - SCHOOLS-FOOD & DRINK SUPPLIES,CATERERS,GPC
WALSALL COUNCIL,http://opendatacommunities.org/id/metropolitan-district-council/walsall ,31/03/2024,CHILDRENS SERVICES,PAYPAL *AUTISMINDEP,11/01/2024,H59620240116VCSOENUBL-1,594.00,EDUCATIONAL PSYCHOLOGISTS-EXTERNAL TRAINING,"ORGANIZATIONS, CHARITABLE AND SOCIAL SERVICE",GPC
WALSALL COUNCIL,http://opendatacommunities.org/id/metropolitan-district-council/walsall ,31/03/2024,CHILDRENS SERVICES,PRIMARK 690,11/01/2024,H59620240116VRUSYYATH-1,7.00,ROUGH SLEEPING INITIATIVE GRAN-CLOTHING & LAUNDRY,CLOTHING STORES,GPC
WALSALL COUNCIL,http://opendatacommunities.org/id/metropolitan-district-council/walsall ,31/03/2024,RESOURCES AND TRANSFORMATION,CHICKEN JOES LTD,11/01/2024,H59620240116WMECDOXRI-1,125.16,CATERING - SCHOOLS-FOOD & DRINK SUPPLIES,CATERERS,GPC
WALSALL COUNCIL,http://opendatacommunities.org/id/metropolitan-district-council/walsall ,31/03/2024,RESOURCES AND TRANSFORMATION,CHICKEN JOES LTD,11/01/2024,H59620240116YVOYDHUGT-1,114.46,CATERING - SCHOOLS-FOOD & DRINK SUPPLIES,CATERERS,GPC
WALSALL COUNCIL,http://opendatacommunities.org/id/metropolitan-district-council/walsall ,31/03/2024,RESOURCES AND TRANSFORMATION,WWW.SCC.COM,11/01/2024,H59620240120APHEUICCH-1,966.29,RECHARGEABLE EQUIPMENT-COMPUTER EQUIPMENT,"COMPUTERS, COMPUTER PERIPHERAL EQUIPMENT, SOFTWARE",GPC
WALSALL COUNCIL,http://opendatacommunities.org/id/metropolitan-district-council/walsall ,31/03/2024,CHILDRENS SERVICES,FOREIGN EXCHANGE FEE,12/01/2024,H59620240113PPOAMRPTW-1,-6.67,EARLY YEARS-MATERIALS,,GPC
WALSALL COUNCIL,http://opendatacommunities.org/id/metropolitan-district-council/walsall ,31/03/2024,CHILDRENS SERVICES,AMZNMKTPLACE,12/01/2024,H59620240113SNYUBVMDW-1,10.51,YEAR TWO-MATERIALS,MISCELLANEOUS AND SPECIALTY RETAIL STORES,GPC
WALSALL COUNCIL,http://opendatacommunities.org/id/metropolitan-district-council/walsall ,31/03/2024,CHILDRENS SERVICES,AMZNMKTPLACE,12/01/2024,H59620240113SNYUBVMDW-2,15.55,YEAR TWO-MATERIALS,MISCELLANEOUS AND SPECIALTY RETAIL STORES,GPC
WALSALL COUNCIL,http://opendatacommunities.org/id/metropolitan-district-council/walsall ,31/03/2024,CHILDRENS SERVICES,AMZNMKTPLACE,12/01/2024,H59620240116AGRSTDMUO-1,12.99,NURTURE-MATERIALS,MISCELLANEOUS AND SPECIALTY RETAIL STORES,GPC
WALSALL COUNCIL,http://opendatacommunities.org/id/metropolitan-district-council/walsall ,31/03/2024,CHILDRENS SERVICES,O2 UK PAY AND GO,12/01/2024,H59620240116ALPGELLOL-1,10.00,ADMINISTRATIVE SUPPLIES-MATERIALS,TELECOMMUNICATION SERVICES,GPC
WALSALL COUNCIL,http://opendatacommunities.org/id/metropolitan-district-council/walsall ,31/03/2024,CHILDRENS SERVICES,SAFETYSUPPL,12/01/2024,H59620240116BFNKQELQR-1,63.60,E19-MATERIALS,DEPARTMENT STORES,GPC
WALSALL COUNCIL,http://opendatacommunities.org/id/metropolitan-district-council/walsall ,31/03/2024,CHILDRENS SERVICES,AMZNMKTPLACE,12/01/2024,H59620240116BZCJAHOTF-1,152.99,DT-MATERIALS,MISCELLANEOUS AND SPECIALTY RETAIL STORES,GPC
WALSALL COUNCIL,http://opendatacommunities.org/id/metropolitan-district-council/walsall ,31/03/2024,RESOURCES AND TRANSFORMATION,AMZNMKTPLACE,12/01/2024,H59620240116CDKIUDUTP-1,-8.99,ADMIN SUPPORT-STATIONERY & GENERAL OFFICE SU,MISCELLANEOUS AND SPECIALTY RETAIL STORES,GPC
WALSALL COUNCIL,http://opendatacommunities.org/id/metropolitan-district-council/walsall ,31/03/2024,CHILDRENS SERVICES,POST OFFICE COUNTER,12/01/2024,H59620240116CDRRMNWPC-1,34.00,HOUSING YEI/ESF MATCH-POSTAGES & COURIER SERVICES,POSTAL SERVICES - GOVERNMENT ONLY,GPC
WALSALL COUNCIL,http://opendatacommunities.org/id/metropolitan-district-council/walsall ,31/03/2024,CHILDRENS SERVICES,ASDA,12/01/2024,H59620240116DNRGIIYCI-1,109.10,WALSALL CRISIS SUPPORT SCHEME-PURCHASE OF FURNITURE & EQUIPM,GROCERY STORES AND SUPERMARKETS,GPC
WALSALL COUNCIL,http://opendatacommunities.org/id/metropolitan-district-council/walsall ,31/03/2024,CHILDRENS SERVICES,TENPIN LIMITED,12/01/2024,H59620240116EGKMTKDIW-1,95.96,CORPORATE PARENTING-PARTICIPATION BUDGETS,BOWLING ALLEYS,GPC
WALSALL COUNCIL,http://opendatacommunities.org/id/metropolitan-district-council/walsall ,31/03/2024,CHILDRENS SERVICES,GEN REGISTER OFFICE,12/01/2024,H59620240116ELZSDTVUY-1,45.25,FAMILY SAFEGUARDING CENTRAL AN-SECTION 1/17CHILD CARE ACT 198,GOVERNMENT SERVICES,GPC
WALSALL COUNCIL,http://opendatacommunities.org/id/metropolitan-district-council/walsall ,31/03/2024,CHILDRENS SERVICES,PREMIER STORE,12/01/2024,H59620240116ERMOXEEUC-1,2.49,"43A HILTON ROAD, WILLENHALL-FOOD & DRINK SUPPLIES",GROCERY STORES AND SUPERMARKETS,GPC
WALSALL COUNCIL,http://opendatacommunities.org/id/metropolitan-district-council/walsall ,31/03/2024,ECONOMY & ENVIRONMENT,WALSALL STN T/O,12/01/2024,H59620240116GBMKDAKGJ-1,36.00,COMMONWEATH GAMES LEGACY FUNDI-VOLUNTEERS & OTHERS PUBLIC TRA,PASSENGER RAILWAYS,GPC
WALSALL COUNCIL,http://opendatacommunities.org/id/metropolitan-district-council/walsall ,31/03/2024,RESOURCES AND TRANSFORMATION,ASDA,12/01/2024,H59620240116GDIZDTMGV-1,10.88,TOWN HALL RESTAURANT BISTRO-FOOD & DRINK SUPPLIES,GROCERY STORES AND SUPERMARKETS,GPC
WALSALL COUNCIL,http://opendatacommunities.org/id/metropolitan-district-council/walsall ,31/03/2024,CHILDRENS SERVICES,FOREST SCHOOL ASSOC,12/01/2024,H59620240116GDQEPIALH-1,33.99,AWARDS AND REWARDS-MATERIALS,OTHER SCHOOLS AND EDUCATIONAL SERVICES,GPC
WALSALL COUNCIL,http://opendatacommunities.org/id/metropolitan-district-council/walsall ,31/03/2024,RESOURCES AND TRANSFORMATION,WWW.BANNERUK.COM,12/01/2024,H59620240116GZBUPBDZW-1,67.62,HR ADMIN HUB-STATIONERY & GENERAL OFFICE SU,"STATIONERY, OFFICE SUPPLIES AND WRITING PAPER",GPC
WALSALL COUNCIL,http://opendatacommunities.org/id/metropolitan-district-council/walsall ,31/03/2024,CHILDRENS SERVICES,BARONS COURT HOTEL,12/01/2024,H59620240116HBHKLITQG-1,255.00,ROUGH SLEEPING INITIATIVE GRAN-BED & BREAKFAST PAYMENTS,"HOTELS, MOTELS, RESORTS",GPC
WALSALL COUNCIL,http://opendatacommunities.org/id/metropolitan-district-council/walsall ,31/03/2024,CHILDRENS SERVICES,AMZNMKTPLACE,12/01/2024,H59620240116HHOZRESYG-1,155.96,SAFEGUARDING & STUDENT SUPPORT-MATERIALS,MISCELLANEOUS AND SPECIALTY RETAIL STORES,GPC
WALSALL COUNCIL,http://opendatacommunities.org/id/metropolitan-district-council/walsall ,31/03/2024,CHILDRENS SERVICES,AMZNMKTPLACE,12/01/2024,H59620240116IHCXNXGPN-1,5.99,SEN-MATERIALS,MISCELLANEOUS AND SPECIALTY RETAIL STORES,GPC
WALSALL COUNCIL,http://opendatacommunities.org/id/metropolitan-district-council/walsall ,31/03/2024,CHILDRENS SERVICES,NSPCC,12/01/2024,H59620240116ILBFHTQNW-1,35.00,WATLING STREET PRIMARY SCHOOL-EXTERNAL TRAINING,OTHER SCHOOLS AND EDUCATIONAL SERVICES,GPC
WALSALL COUNCIL,http://opendatacommunities.org/id/metropolitan-district-council/walsall ,31/03/2024,ADULT SOCIAL CARE,TRAVELODGE GB0000,12/01/2024,H59620240116ILXIKCSDV-1,127.46,EAST LOCALITY TEAM-BED & BREAKFAST PAYMENTS,TRAVELODGE,GPC
WALSALL COUNCIL,http://opendatacommunities.org/id/metropolitan-district-council/walsall ,31/03/2024,CHILDRENS SERVICES,ROYAL MAIL ONLINE SHOP,12/01/2024,H59620240116IRMONNDQZ-1,187.50,CHILDREN'S COMMISSIONING-POSTAGES & COURIER SERVICES,POSTAL SERVICES - GOVERNMENT ONLY,GPC
WALSALL COUNCIL,http://opendatacommunities.org/id/metropolitan-district-council/walsall ,31/03/2024,RESOURCES AND TRANSFORMATION,WWW.BANNERUK.COM,12/01/2024,H59620240116JBYFJYNLI-1,7.08,HR ADMIN HUB-STATIONERY & GENERAL OFFICE SU,"STATIONERY, OFFICE SUPPLIES AND WRITING PAPER",GPC
WALSALL COUNCIL,http://opendatacommunities.org/id/metropolitan-district-council/walsall ,31/03/2024,CHILDRENS SERVICES,AMZNMKTPLACE,12/01/2024,H59620240116JLDXXEDVA-1,75.90,NURTURE-MATERIALS,MISCELLANEOUS AND SPECIALTY RETAIL STORES,GPC
WALSALL COUNCIL,http://opendatacommunities.org/id/metropolitan-district-council/walsall ,31/03/2024,CHILDRENS SERVICES,WM MORRISONS STORE,12/01/2024,H59620240116JLILORSXE-1,20.13,BLUEBELLS-FOOD & DRINK SUPPLIES,GROCERY STORES AND SUPERMARKETS,GPC
WALSALL COUNCIL,http://opendatacommunities.org/id/metropolitan-district-council/walsall ,31/03/2024,CHILDRENS SERVICES,WM MORRISONS STORE,12/01/2024,H59620240116JLILORSXE-2,68.69,BLUEBELLS-FOOD & DRINK SUPPLIES,GROCERY STORES AND SUPERMARKETS,GPC
WALSALL COUNCIL,http://opendatacommunities.org/id/metropolitan-district-council/walsall ,31/03/2024,CHILDRENS SERVICES,AMZNMKTPLACE,12/01/2024,H59620240116JNNWXREOZ-1,41.97,E19-MATERIALS,MISCELLANEOUS AND SPECIALTY RETAIL STORES,GPC
WALSALL COUNCIL,http://opendatacommunities.org/id/metropolitan-district-council/walsall ,31/03/2024,CHILDRENS SERVICES,ASDA GEORGE COM LEEDS,12/01/2024,H59620240116KABURQZFC-1,25.00,SPECIAL FACILITIES-FOOD & DRINK SUPPLIES,GROCERY STORES AND SUPERMARKETS,GPC
WALSALL COUNCIL,http://opendatacommunities.org/id/metropolitan-district-council/walsall ,31/03/2024,CHILDRENS SERVICES,ASDA GEORGE COM LEEDS,12/01/2024,H59620240116KABURQZFC-2,3.50,SPECIAL FACILITIES-FOOD & DRINK SUPPLIES,GROCERY STORES AND SUPERMARKETS,GPC
WALSALL COUNCIL,http://opendatacommunities.org/id/metropolitan-district-council/walsall ,31/03/2024,CHILDRENS SERVICES,PAYPAL *IKEALIMITED 14,12/01/2024,H59620240116KDIEOEBUU-1,281.00,SAFEGUARDING & STUDENT SUPPORT-MATERIALS,"EQUIPMENT, FURNITURE, AND HOME FURNISHINGS STORES ",GPC
WALSALL COUNCIL,http://opendatacommunities.org/id/metropolitan-district-council/walsall ,31/03/2024,CHILDRENS SERVICES,AMZNMKTPLACE,12/01/2024,H59620240116KKRQBBPPP-1,249.95,SAFEGUARDING & STUDENT SUPPORT-MATERIALS,MISCELLANEOUS AND SPECIALTY RETAIL STORES,GPC
WALSALL COUNCIL,http://opendatacommunities.org/id/metropolitan-district-council/walsall ,31/03/2024,CHILDRENS SERVICES,AMZNMKTPLACE,12/01/2024,H59620240116KPBLQFHHV-1,-23.50,FAMILY SAFEGUARDING EAST LOCAL-STATIONERY & GENERAL OFFICE SU,MISCELLANEOUS AND SPECIALTY RETAIL STORES,GPC
WALSALL COUNCIL,http://opendatacommunities.org/id/metropolitan-district-council/walsall ,31/03/2024,CHILDRENS SERVICES,AMZNMKTPLACE,12/01/2024,H59620240116KRYDAYEWX-1,132.29,DT-MATERIALS,MISCELLANEOUS AND SPECIALTY RETAIL STORES,GPC
WALSALL COUNCIL,http://opendatacommunities.org/id/metropolitan-district-council/walsall ,31/03/2024,CHILDRENS SERVICES,WWW.SCREWFIX.COM,12/01/2024,H59620240116LECHWSSOH-1,54.99,PELSALL VILLAGE SCHOOL-OPERATIONAL MAINTENANCE,LUMBER & BUILDING MATERIALS STORES,GPC
WALSALL COUNCIL,http://opendatacommunities.org/id/metropolitan-district-council/walsall ,31/03/2024,CHILDRENS SERVICES,AMZNMKTPLACE,12/01/2024,H59620240116LKXFIDJDI-1,-163.92,LOCALITY FAMILY SUPPORT-NORTH-MATERIALS,MISCELLANEOUS AND SPECIALTY RETAIL STORES,GPC
WALSALL COUNCIL,http://opendatacommunities.org/id/metropolitan-district-council/walsall ,31/03/2024,CHILDRENS SERVICES,WWW.ARGOS.CO.UK,12/01/2024,H59620240116LNJCURSCR-1,372.09,CARE LEAVER ENTITLEMENTS-SETTING UP HOME GRANT,DEPARTMENT STORES,GPC
WALSALL COUNCIL,http://opendatacommunities.org/id/metropolitan-district-council/walsall ,31/03/2024,CHILDRENS SERVICES,AMZNMKTPLACE,12/01/2024,H59620240116LQFLTEIYJ-1,13.58,ADMINISTRATIVE SUPPLIES-STATIONERY & GENERAL OFFICE SU,MISCELLANEOUS AND SPECIALTY RETAIL STORES,GPC
WALSALL COUNCIL,http://opendatacommunities.org/id/metropolitan-district-council/walsall ,31/03/2024,RESOURCES AND TRANSFORMATION,NOBISCO LIMITED,12/01/2024,H59620240116MMLCUWIPT-1,96.47,CATERING - SCHOOLS-FOOD & DRINK SUPPLIES,OTHER INDUSTRIAL SUPPLIES,GPC
WALSALL COUNCIL,http://opendatacommunities.org/id/metropolitan-district-council/walsall ,31/03/2024,RESOURCES AND TRANSFORMATION,ARTHUR BRETT CATER,12/01/2024,H59620240116NSJXIPRDC-1,21.59,CATERING - SCHOOLS-FOOD & DRINK SUPPLIES,MISCELLANEOUS FOOD STORES & CONVENIENCE STORES,GPC
WALSALL COUNCIL,http://opendatacommunities.org/id/metropolitan-district-council/walsall ,31/03/2024,CHILDRENS SERVICES,WWW.ARGOS.CO.UK,12/01/2024,H59620240116OWXMLDOIK-1,74.80,HSF - HOUSING SUPPORT FUND GRA-PURCHASE OF FURNITURE & EQUIPM,DEPARTMENT STORES,GPC
WALSALL COUNCIL,http://opendatacommunities.org/id/metropolitan-district-council/walsall ,31/03/2024,CHILDRENS SERVICES,WWW.ARGOS.CO.UK,12/01/2024,H59620240116OWXMLDOIK-2,38.00,CARE LEAVER ENTITLEMENTS-SETTING UP HOME GRANT,DEPARTMENT STORES,GPC
WALSALL COUNCIL,http://opendatacommunities.org/id/metropolitan-district-council/walsall ,31/03/2024,ECONOMY & ENVIRONMENT,ANGEL HILL SITE CA311,12/01/2024,H59620240116OYJGCVLJI-1,507.00,ARBORETUM-FOOD & DRINK SUPPLIES,CATERERS,GPC
WALSALL COUNCIL,http://opendatacommunities.org/id/metropolitan-district-council/walsall ,31/03/2024,RESOURCES AND TRANSFORMATION,ARTHUR BRETT CATER,12/01/2024,H59620240116PGLBGRSLB-1,199.91,CATERING - SCHOOLS-FOOD & DRINK SUPPLIES,MISCELLANEOUS FOOD STORES & CONVENIENCE STORES,GPC
WALSALL COUNCIL,http://opendatacommunities.org/id/metropolitan-district-council/walsall ,31/03/2024,CHILDRENS SERVICES,THE TEACH HUB,12/01/2024,H59620240116PHBBRUQAX-1,50.00,MEADOW VIEW JMI PRIMARY SCHOOL-EXTERNAL TRAINING,OTHER SCHOOLS AND EDUCATIONAL SERVICES,GPC
WALSALL COUNCIL,http://opendatacommunities.org/id/metropolitan-district-council/walsall ,31/03/2024,CHILDRENS SERVICES,AMZNMKTPLACE,12/01/2024,H59620240116PINNEFCWX-1,-153.54,LOCALITY FAMILY SUPPORT-NORTH-MATERIALS,MISCELLANEOUS AND SPECIALTY RETAIL STORES,GPC
WALSALL COUNCIL,http://opendatacommunities.org/id/metropolitan-district-council/walsall ,31/03/2024,CHILDRENS SERVICES,ALDI 772 129,12/01/2024,H59620240116PRGNTGNJB-1,2.41,"43A HILTON ROAD, WILLENHALL-FOOD & DRINK SUPPLIES",GROCERY STORES AND SUPERMARKETS,GPC
WALSALL COUNCIL,http://opendatacommunities.org/id/metropolitan-district-council/walsall ,31/03/2024,CHILDRENS SERVICES,ALDI 772 129,12/01/2024,H59620240116PRGNTGNJB-2,36.61,"43A HILTON ROAD, WILLENHALL-FOOD & DRINK SUPPLIES",GROCERY STORES AND SUPERMARKETS,GPC
WALSALL COUNCIL,http://opendatacommunities.org/id/metropolitan-district-council/walsall ,31/03/2024,CHILDRENS SERVICES,AMZNMKTPLACE,12/01/2024,H59620240116QDVHDLQIF-1,62.98,E19-MATERIALS,MISCELLANEOUS AND SPECIALTY RETAIL STORES,GPC
WALSALL COUNCIL,http://opendatacommunities.org/id/metropolitan-district-council/walsall ,31/03/2024,ECONOMY & ENVIRONMENT,AMAZON.CO.UK*2B9623LW5,12/01/2024,H59620240116QMSBJETDB-1,20.71,OAK PARK ACTIVE LIVING CENTRE-MATERIALS,OTHER DIRECT MARKETING-OTHER DIRECT MARKETERS,GPC
WALSALL COUNCIL,http://opendatacommunities.org/id/metropolitan-district-council/walsall ,31/03/2024,CHILDRENS SERVICES,AMZNMKTPLACE,12/01/2024,H59620240116QPWSCVXLP-1,43.29,E19-MATERIALS,MISCELLANEOUS AND SPECIALTY RETAIL STORES,GPC
WALSALL COUNCIL,http://opendatacommunities.org/id/metropolitan-district-council/walsall ,31/03/2024,CHILDRENS SERVICES,COSTA WALLOWS LANE DT,12/01/2024,H59620240116RILKNLDYM-1,3.25,EDGE OF CARE TEAM-FOOD & DRINK SUPPLIES,QUICK PAYMENT SERVICE-FAST-FOOD RESTAURANTS,GPC
WALSALL COUNCIL,http://opendatacommunities.org/id/metropolitan-district-council/walsall ,31/03/2024,CHILDRENS SERVICES,FIRST RESCUE TRAIN,12/01/2024,H59620240116SGUSKUOGQ-1,80.34,FIRST AID (MEDICAL)-MATERIALS,MISCELLANEOUS GENERAL MERCHANDISE,GPC
WALSALL COUNCIL,http://opendatacommunities.org/id/metropolitan-district-council/walsall ,31/03/2024,CHILDRENS SERVICES,B&M 419 - HS REEDSWOOD,12/01/2024,H59620240116TYELGXBOV-1,125.50,CARE LEAVER ENTITLEMENTS-SETTING UP HOME GRANT,MISCELLANEOUS GENERAL MERCHANDISE,GPC
WALSALL COUNCIL,http://opendatacommunities.org/id/metropolitan-district-council/walsall ,31/03/2024,CHILDRENS SERVICES,AMZNMKTPLACE,12/01/2024,H59620240116UFWYIPHJF-1,-153.94,LOCALITY FAMILY SUPPORT-NORTH-MATERIALS,MISCELLANEOUS AND SPECIALTY RETAIL STORES,GPC
WALSALL COUNCIL,http://opendatacommunities.org/id/metropolitan-district-council/walsall ,31/03/2024,CHILDRENS SERVICES,MANIC STREET TEACHERS,12/01/2024,H59620240116UGHJLJALQ-1,85.00,MUSIC-SUBSCRIPTIONS,"COMPUTER PROGRAM, SYSTEM DESIGN",GPC
WALSALL COUNCIL,http://opendatacommunities.org/id/metropolitan-district-council/walsall ,31/03/2024,CHILDRENS SERVICES,AMZNMKTPLACE,12/01/2024,H59620240116UQSWNRSCS-1,18.61,ADMINISTRATIVE SUPPLIES-MATERIALS,MISCELLANEOUS AND SPECIALTY RETAIL STORES,GPC
WALSALL COUNCIL,http://opendatacommunities.org/id/metropolitan-district-council/walsall ,31/03/2024,CHILDRENS SERVICES,ASDA GEORGE COM LEEDS,12/01/2024,H59620240116USLRAFUNY-1,15.00,SPECIAL FACILITIES-MATERIALS,GROCERY STORES AND SUPERMARKETS,GPC
WALSALL COUNCIL,http://opendatacommunities.org/id/metropolitan-district-council/walsall ,31/03/2024,CHILDRENS SERVICES,ASDA GEORGE COM LEEDS,12/01/2024,H59620240116USLRAFUNY-2,8.00,SPECIAL FACILITIES-MATERIALS,GROCERY STORES AND SUPERMARKETS,GPC
WALSALL COUNCIL,http://opendatacommunities.org/id/metropolitan-district-council/walsall ,31/03/2024,CHILDRENS SERVICES,CPD ONLINE COLLEGE,12/01/2024,H59620240116VCYSWOJJU-1,24.00,NEW LEAF PUPIL REFERAL UNIT-EXTERNAL TRAINING,OTHER SCHOOLS AND EDUCATIONAL SERVICES,GPC
WALSALL COUNCIL,http://opendatacommunities.org/id/metropolitan-district-council/walsall ,31/03/2024,CHILDRENS SERVICES,FRANKIE AND LOLAS WALSALL,12/01/2024,H59620240116VMWDAYJNR-1,8.99,PARENTING TEAM-FEES & LICENCES,OTHER RECREATION SERVICES,GPC
WALSALL COUNCIL,http://opendatacommunities.org/id/metropolitan-district-council/walsall ,31/03/2024,CHILDRENS SERVICES,AMZNMKTPLACE,12/01/2024,H59620240116VNSPANJUW-1,9.98,ADMINISTRATIVE SUPPLIES-STATIONERY & GENERAL OFFICE SU,MISCELLANEOUS AND SPECIALTY RETAIL STORES,GPC
WALSALL COUNCIL,http://opendatacommunities.org/id/metropolitan-district-council/walsall ,31/03/2024,CHILDRENS SERVICES,ASDA SUPERSTORE,12/01/2024,H59620240116VXHDDDOLW-1,4.85,REDRUTH ROAD-FOOD & DRINK SUPPLIES,GROCERY STORES AND SUPERMARKETS,GPC
WALSALL COUNCIL,http://opendatacommunities.org/id/metropolitan-district-council/walsall ,31/03/2024,CHILDRENS SERVICES,ASDA SUPERSTORE,12/01/2024,H59620240116VXHDDDOLW-2,85.98,REDRUTH ROAD-FOOD & DRINK SUPPLIES,GROCERY STORES AND SUPERMARKETS,GPC
WALSALL COUNCIL,http://opendatacommunities.org/id/metropolitan-district-council/walsall ,31/03/2024,ECONOMY & ENVIRONMENT,AMZNMKTPLACE,12/01/2024,H59620240116WMUEVNLPC-1,49.98,OAK PARK ACTIVE LIVING CENTRE-MATERIALS,MISCELLANEOUS AND SPECIALTY RETAIL STORES,GPC
WALSALL COUNCIL,http://opendatacommunities.org/id/metropolitan-district-council/walsall ,31/03/2024,CHILDRENS SERVICES,FRANKIE AND LOLAS WALSALL,12/01/2024,H59620240116WRYWWEERF-1,1.99,PARENTING TEAM-FEES & LICENCES,OTHER RECREATION SERVICES,GPC
WALSALL COUNCIL,http://opendatacommunities.org/id/metropolitan-district-council/walsall ,31/03/2024,CHILDRENS SERVICES,AMZNMKTPLACE,12/01/2024,H59620240116XKLOBHTMX-1,77.98,ST FRANCIS OF ASSISI CATHOLIC -OPERATIONAL MAINTENANCE,MISCELLANEOUS AND SPECIALTY RETAIL STORES,GPC
WALSALL COUNCIL,http://opendatacommunities.org/id/metropolitan-district-council/walsall ,31/03/2024,RESOURCES AND TRANSFORMATION,ARTHUR BRETT CATER,12/01/2024,H59620240116XMPXQFOWE-1,46.63,TOWN HALL RESTAURANT BISTRO-FOOD & DRINK SUPPLIES,MISCELLANEOUS FOOD STORES & CONVENIENCE STORES,GPC
WALSALL COUNCIL,http://opendatacommunities.org/id/metropolitan-district-council/walsall ,31/03/2024,CHILDRENS SERVICES,AMZNMKTPLACE,12/01/2024,H59620240116XQNXCRPMB-1,41.97,E19-MATERIALS,MISCELLANEOUS AND SPECIALTY RETAIL STORES,GPC
WALSALL COUNCIL,http://opendatacommunities.org/id/metropolitan-district-council/walsall ,31/03/2024,CHILDRENS SERVICES,WOB.COM,12/01/2024,H59620240116YWWMEZQKZ-1,64.00,E19-MATERIALS,"BOOKS, PERIODICALS AND NEWSPAPERS",GPC
WALSALL COUNCIL,http://opendatacommunities.org/id/metropolitan-district-council/walsall ,31/03/2024,CHILDRENS SERVICES,SNAPFISH UK *,12/01/2024,H59620240117XSWIROJUP-1,2.48,ADMINISTRATIVE SUPPLIES-STATIONERY & GENERAL OFFICE SU,"PHOTO DEVELOPING, PHOTOFINISHING LABORATORIES",GPC
WALSALL COUNCIL,http://opendatacommunities.org/id/metropolitan-district-council/walsall ,31/03/2024,CHILDRENS SERVICES,AMZNMKTPLACE,13/01/2024,H59620240116BGWMKRGHF-1,47.94,DT-MATERIALS,MISCELLANEOUS AND SPECIALTY RETAIL STORES,GPC
WALSALL COUNCIL,http://opendatacommunities.org/id/metropolitan-district-council/walsall ,31/03/2024,CHILDRENS SERVICES,IONOS CLOUD LTD,13/01/2024,H59620240116DPHVMAJKC-1,6.00,ICT LEARNING RESOURCES-MATERIALS,COMPUTER NETWORK/INFORMATION SERVICES,GPC
WALSALL COUNCIL,http://opendatacommunities.org/id/metropolitan-district-council/walsall ,31/03/2024,ECONOMY & ENVIRONMENT,AMZNMKTPLACE,13/01/2024,H59620240116ECSAIIISW-1,39.20,WALSALL ARENA AND ARTS CENTRE-FOOD & DRINK SUPPLIES,MISCELLANEOUS AND SPECIALTY RETAIL STORES,GPC
WALSALL COUNCIL,http://opendatacommunities.org/id/metropolitan-district-council/walsall ,31/03/2024,ECONOMY & ENVIRONMENT,AMAZON.CO.UK*3L52U1HZ5,13/01/2024,H59620240116EOJGTWMMB-1,28.99,ARBORETUM-MATERIALS,OTHER DIRECT MARKETING-OTHER DIRECT MARKETERS,GPC
WALSALL COUNCIL,http://opendatacommunities.org/id/metropolitan-district-council/walsall ,31/03/2024,ECONOMY & ENVIRONMENT,AMZNMKTPLACE,13/01/2024,H59620240116EZSSWFVDB-1,13.65,WALSALL ARENA AND ARTS CENTRE-STATIONERY & GENERAL OFFICE SU,MISCELLANEOUS AND SPECIALTY RETAIL STORES,GPC
WALSALL COUNCIL,http://opendatacommunities.org/id/metropolitan-district-council/walsall ,31/03/2024,CHILDRENS SERVICES,AMAZON.CO.UK*J03K96VN5,13/01/2024,H59620240116HXDTYQCJP-1,14.04,DT-MATERIALS,OTHER DIRECT MARKETING-OTHER DIRECT MARKETERS,GPC
WALSALL COUNCIL,http://opendatacommunities.org/id/metropolitan-district-council/walsall ,31/03/2024,CHILDRENS SERVICES,AMZNMKTPLACE,13/01/2024,H59620240116MKGXAHYYF-1,159.96,DT-MATERIALS,MISCELLANEOUS AND SPECIALTY RETAIL STORES,GPC
WALSALL COUNCIL,http://opendatacommunities.org/id/metropolitan-district-council/walsall ,31/03/2024,CHILDRENS SERVICES,AMAZON.CO.UK*Q60ED49F5,13/01/2024,H59620240116OBXCRJCGE-1,3.80,DT-MATERIALS,OTHER DIRECT MARKETING-OTHER DIRECT MARKETERS,GPC
WALSALL COUNCIL,http://opendatacommunities.org/id/metropolitan-district-council/walsall ,31/03/2024,ECONOMY & ENVIRONMENT,AMZNMKTPLACE,13/01/2024,H59620240116OVMGAOOFA-1,8.35,ARBORETUM VISITOR CENTRE-MATERIALS,MISCELLANEOUS AND SPECIALTY RETAIL STORES,GPC
WALSALL COUNCIL,http://opendatacommunities.org/id/metropolitan-district-council/walsall ,31/03/2024,CHILDRENS SERVICES,AMZNMKTPLACE,13/01/2024,H59620240116OZEKTJTKS-1,9.99,DT-MATERIALS,MISCELLANEOUS AND SPECIALTY RETAIL STORES,GPC
WALSALL COUNCIL,http://opendatacommunities.org/id/metropolitan-district-council/walsall ,31/03/2024,CHILDRENS SERVICES,AMZNMKTPLACE,13/01/2024,H59620240116RGXWIWTED-1,44.99,CARE LEAVER ENTITLEMENTS-SETTING UP HOME GRANT,MISCELLANEOUS AND SPECIALTY RETAIL STORES,GPC
WALSALL COUNCIL,http://opendatacommunities.org/id/metropolitan-district-council/walsall ,31/03/2024,CHILDRENS SERVICES,AMZNMKTPLACE,13/01/2024,H59620240116UAVJNSDCU-1,14.39,DT-MATERIALS,MISCELLANEOUS AND SPECIALTY RETAIL STORES,GPC
WALSALL COUNCIL,http://opendatacommunities.org/id/metropolitan-district-council/walsall ,31/03/2024,CHILDRENS SERVICES,B&M 419 - HS REEDSWOOD,13/01/2024,H59620240116UJLQNWDJF-1,2.68,"43A HILTON ROAD, WILLENHALL-CLEANING MATERIALS",MISCELLANEOUS GENERAL MERCHANDISE,GPC
WALSALL COUNCIL,http://opendatacommunities.org/id/metropolitan-district-council/walsall ,31/03/2024,CHILDRENS SERVICES,B&M 419 - HS REEDSWOOD,13/01/2024,H59620240116UJLQNWDJF-2,70.00,"43A HILTON ROAD, WILLENHALL-PURCHASE OF FURNITURE & EQUIPM",MISCELLANEOUS GENERAL MERCHANDISE,GPC
WALSALL COUNCIL,http://opendatacommunities.org/id/metropolitan-district-council/walsall ,31/03/2024,CHILDRENS SERVICES,AMZNMKTPLACE,13/01/2024,H59620240116XLYTVSMEB-1,-173.82,LOCALITY FAMILY SUPPORT-NORTH-MATERIALS,MISCELLANEOUS AND SPECIALTY RETAIL STORES,GPC
WALSALL COUNCIL,http://opendatacommunities.org/id/metropolitan-district-council/walsall ,31/03/2024,CHILDRENS SERVICES,APPLE.COM/BILL,13/01/2024,H59620240116YCYSOOGXY-1,10.99,MUSIC-MATERIALS,DIGITAL GOODS - LARGE DIGITAL GOODS MERCHANT,GPC
WALSALL COUNCIL,http://opendatacommunities.org/id/metropolitan-district-council/walsall ,31/03/2024,CHILDRENS SERVICES,IKEA LTD 142 BIRMINGHAM E,13/01/2024,H59620240116ZPVJXMJMX-1,226.00,THE CRESCENT-PURCHASE OF FURNITURE & EQUIPM,"EQUIPMENT, FURNITURE, AND HOME FURNISHINGS STORES ",GPC
WALSALL COUNCIL,http://opendatacommunities.org/id/metropolitan-district-council/walsall ,31/03/2024,ECONOMY & ENVIRONMENT,AMZNMKTPLACE,14/01/2024,H59620240116BPQTGVYNK-1,57.94,EMERGENCY PLANNING-STATIONERY & GENERAL OFFICE SU,MISCELLANEOUS AND SPECIALTY RETAIL STORES,GPC
WALSALL COUNCIL,http://opendatacommunities.org/id/metropolitan-district-council/walsall ,31/03/2024,RESOURCES AND TRANSFORMATION,MAILCHIMP,14/01/2024,H59620240116CFMXIBCMT-1,777.67,ASSET MANAGEMENT-COMPUTER EQUIPMENT,DIGITAL GOODS - LARGE DIGITAL GOODS MERCHANT,GPC
WALSALL COUNCIL,http://opendatacommunities.org/id/metropolitan-district-council/walsall ,31/03/2024,CHILDRENS SERVICES,AMZNMKTPLACE,14/01/2024,H59620240116CJQLOAHHA-1,24.97,ICT LEARNING RESOURCES-PURCHASE OF FURNITURE & EQUIPM,MISCELLANEOUS AND SPECIALTY RETAIL STORES,GPC
WALSALL COUNCIL,http://opendatacommunities.org/id/metropolitan-district-council/walsall ,31/03/2024,CHILDRENS SERVICES,AMZNMKTPLACE,14/01/2024,H59620240116DQKDFNKRS-1,33.00,E19-MATERIALS,MISCELLANEOUS AND SPECIALTY RETAIL STORES,GPC
WALSALL COUNCIL,http://opendatacommunities.org/id/metropolitan-district-council/walsall ,31/03/2024,CHILDRENS SERVICES,AMZNMKTPLACE,14/01/2024,H59620240116EDUMTFPJF-1,68.99,SAFEGUARDING & STUDENT SUPPORT-MATERIALS,MISCELLANEOUS AND SPECIALTY RETAIL STORES,GPC
WALSALL COUNCIL,http://opendatacommunities.org/id/metropolitan-district-council/walsall ,31/03/2024,CHILDRENS SERVICES,AMZNMKTPLACE,14/01/2024,H59620240116EIJDFJGNA-1,21.82,E19-MATERIALS,MISCELLANEOUS AND SPECIALTY RETAIL STORES,GPC
WALSALL COUNCIL,http://opendatacommunities.org/id/metropolitan-district-council/walsall ,31/03/2024,CHILDRENS SERVICES,AMZNMKTPLACE,14/01/2024,H59620240116GSWDWAJHU-1,14.78,E19-MATERIALS,MISCELLANEOUS AND SPECIALTY RETAIL STORES,GPC
WALSALL COUNCIL,http://opendatacommunities.org/id/metropolitan-district-council/walsall ,31/03/2024,CHILDRENS SERVICES,AMZNMKTPLACE,14/01/2024,H59620240116GSWDWAJHU-2,14.78,E19-MATERIALS,MISCELLANEOUS AND SPECIALTY RETAIL STORES,GPC
WALSALL COUNCIL,http://opendatacommunities.org/id/metropolitan-district-council/walsall ,31/03/2024,CHILDRENS SERVICES,AMZNMKTPLACE,14/01/2024,H59620240116GSWDWAJHU-3,14.78,E19-MATERIALS,MISCELLANEOUS AND SPECIALTY RETAIL STORES,GPC
WALSALL COUNCIL,http://opendatacommunities.org/id/metropolitan-district-council/walsall ,31/03/2024,CHILDRENS SERVICES,AMZNMKTPLACE,14/01/2024,H59620240116HYRPHLYLQ-1,59.99,ST FRANCIS OF ASSISI CATHOLIC -OPERATIONAL MAINTENANCE,MISCELLANEOUS AND SPECIALTY RETAIL STORES,GPC
WALSALL COUNCIL,http://opendatacommunities.org/id/metropolitan-district-council/walsall ,31/03/2024,CHILDRENS SERVICES,AMZNMKTPLACE,14/01/2024,H59620240116IGLIDUTEN-1,-127.58,LOCALITY FAMILY SUPPORT-NORTH-MATERIALS,MISCELLANEOUS AND SPECIALTY RETAIL STORES,GPC
WALSALL COUNCIL,http://opendatacommunities.org/id/metropolitan-district-council/walsall ,31/03/2024,CHILDRENS SERVICES,AMZNMKTPLACE,14/01/2024,H59620240116IUAWKTSTL-1,47.45,SAFEGUARDING & STUDENT SUPPORT-MATERIALS,MISCELLANEOUS AND SPECIALTY RETAIL STORES,GPC
WALSALL COUNCIL,http://opendatacommunities.org/id/metropolitan-district-council/walsall ,31/03/2024,CHILDRENS SERVICES,AMZNMKTPLACE,14/01/2024,H59620240116IVGHOEMVH-1,27.15,NURTURE-MATERIALS,MISCELLANEOUS AND SPECIALTY RETAIL STORES,GPC
WALSALL COUNCIL,http://opendatacommunities.org/id/metropolitan-district-council/walsall ,31/03/2024,CHILDRENS SERVICES,AMZNMKTPLACE,14/01/2024,H59620240116JKORMJTKG-1,13.75,E19-MATERIALS,MISCELLANEOUS AND SPECIALTY RETAIL STORES,GPC
WALSALL COUNCIL,http://opendatacommunities.org/id/metropolitan-district-council/walsall ,31/03/2024,CHILDRENS SERVICES,AMZNBUSINESS*3H9PJ35E5,14/01/2024,H59620240116KKGZBPORH-1,50.99,ADMINISTRATIVE SUPPLIES-PURCHASE OF FURNITURE & EQUIPM,MISCELLANEOUS AND SPECIALTY RETAIL STORES,GPC
WALSALL COUNCIL,http://opendatacommunities.org/id/metropolitan-district-council/walsall ,31/03/2024,CHILDRENS SERVICES,AMZNMKTPLACE,14/01/2024,H59620240116LHMJXXVFL-1,15.29,SAFEGUARDING & STUDENT SUPPORT-MATERIALS,MISCELLANEOUS AND SPECIALTY RETAIL STORES,GPC
WALSALL COUNCIL,http://opendatacommunities.org/id/metropolitan-district-council/walsall ,31/03/2024,CHILDRENS SERVICES,AMZNMKTPLACE,14/01/2024,H59620240116NBZVENVYU-1,139.98,ICT LEARNING RESOURCES-PURCHASE OF FURNITURE & EQUIPM,MISCELLANEOUS AND SPECIALTY RETAIL STORES,GPC
WALSALL COUNCIL,http://opendatacommunities.org/id/metropolitan-district-council/walsall ,31/03/2024,CHILDRENS SERVICES,AMZNMKTPLACE,14/01/2024,H59620240116NCNMZBZFR-1,7.49,NURTURE-MATERIALS,MISCELLANEOUS AND SPECIALTY RETAIL STORES,GPC
WALSALL COUNCIL,http://opendatacommunities.org/id/metropolitan-district-council/walsall ,31/03/2024,CHILDRENS SERVICES,AMZNMKTPLACE,14/01/2024,H59620240116NOUUQQCIX-1,15.49,SAFEGUARDING & STUDENT SUPPORT-MATERIALS,MISCELLANEOUS AND SPECIALTY RETAIL STORES,GPC
